Workbook

Sheet 2008 Dashboard (hidden)
A1: West Chester University Retention & Graduation Rates 2008
G4: 4th Fall | J4: 5th Fall | M4: 6th Fall | P4: 7th Fall
A7: University Summary
C9: N | D9: % | E9: % Change
A11: Total
A18: Admit Type
C20: N | D20: % | E20: % Change
A29: Student Ethnicity
C31: N | D31: % | E31: % Change
A41: Gender
C43: N | D43: % | E43: % Change
A52: Tuition Residency
C54: N | D54: % | E54: % Change
A63: College
C65: N | D65: % | E65: % Change

Sheet Fall 2008 Enrollment (hidden)
A1: West Chester University's Total Enrollment Fall 2008
B4: Student Level | C4: N | D4: Full-time | E4: Part-time | F4: Female | G4: Male | H4: African-American | I4: Native-American | J4: Asian | K4: Latino | L4: White | M4: NRA | N4: Unknown | O4: Non-Resident PA | P4: Resident
D5: Full-Time | E5: Full-Time | F5: Full-Time | G5: Full-Time | H5: Full-Time | I5: Full-Time | J5: Full-Time | K5: Full-Time | L5: Full-Time | M5: Full-Time | N5: Full-Time | O5: Full-Time | P5: Full-Time
B6: First-time, First-year | C6: 2002 | D6: 1993 | E6: 9 | F6: 1236 | G6: 766 | H6: 202 | I6: 5 | J6: 42 | K6: 90 | L6: 1646 | M6: 5 | N6: 12 | O6: 294 | P6: 1708
B7: Other, First-year | C7: 943 | D7: 901 | E7: 42 | F7: 510 | G7: 433 | H7: 116 | I7: 6 | J7: 17 | K7: 23 | L7: 777 | M7: 2 | N7: 2 | O7: 116 | P7: 827
B8: Sophmore | C8: 2606 | D8: 2523 | E8: 83 | F8: 1581 | G8: 1025 | H8: 226 | I8: 6 | J8: 51 | K8: 77 | L8: 2238 | M8: 5 | N8: 3 | O8: 334 | P8: 2272
B9: Junior | C9: 2575 | D9: 2396 | E9: 179 | F9: 1583 | G9: 992 | H9: 211 | I9: 9 | J9: 55 | K9: 55 | L9: 2241 | M9: 4 | N9: 0 | O9: 304 | P9: 2271
B10: Senior | C10: 3002 | D10: 2477 | E10: 525 | F10: 1848 | G10: 1154 | H10: 224 | I10: 5 | J10: 59 | K10: 89 | L10: 2610 | M10: 13 | N10: 2 | O10: 296 | P10: 2706
B11: Non-degree UG** | C11: 356 | D11: 52 | E11: 304 | F11: 220 | G11: 136 | H11: 18 | I11: 3 | J11: 7 | K11: 7 | L11: 304 | M11: 1 | N11: 16 | O11: 13 | P11: 343
B12: Total Undergraduate | C12: 11484 | D12: 10342 | E12: 1142 | F12: 6978 | G12: 4506 | H12: 997 | I12: 34 | J12: 231 | K12: 341 | L12: 9816 | M12: 30 | N12: 35 | O12: 1357 | P12: 10127
B13: First-time Graduate Student | C13: 512 | D13: 216 | E13: 296 | F13: 363 | G13: 149 | H13: 35 | I13: 1 | J13: 16 | K13: 8 | L13: 444 | M13: 5 | N13: 3 | O13: 68 | P13: 444
B14: Graduate Student | C14: 1116 | D14: 310 | E14: 806 | F14: 831 | G14: 285 | H14: 86 | I14: 0 | J14: 22 | K14: 21 | L14: 939 | M14: 46 | N14: 2 | O14: 131 | P14: 985
B15: Non-degree Graduate** | C15: 509 | D15: 89 | E15: 420 | F15: 357 | G15: 152 | H15: 22 | I15: 1 | J15: 17 | K15: 5 | L15: 455 | M15: 6 | N15: 3 | O15: 20 | P15: 489
B16: Total Graduate | C16: 2137 | D16: 615 | E16: 1522 | F16: 1551 | G16: 586 | H16: 143 | I16: 2 | J16: 55 | K16: 34 | L16: 1838 | M16: 57 | N16: 8 | O16: 219 | P16: 1918
B17: Total University | C17: 13621 | D17: 10957 | E17: 2664 | F17: 8529 | G17: 5092 | H17: 1140 | I17: 36 | J17: 286 | K17: 375 | L17: 11654 | M17: 87 | N17: 43 | O17: 1576 | P17: 12045
C107: Percent Change of Total Enrollment from Fall 2007 to Fall 2008 | J107: Difference in Headcount of African-Americans & Latinos from Fall 2007 to Fall 2008
C108: Acad Career | D108: Student Level | F108: Percent | J108: Acad Career | K108: Student Level | M108: African-Americans | O108: Latinos
C109: Undergraduate | D109: First-time, First-year | F109: 0.002716393804 | M109: N | O109: N
D110: Other, First-year | F110: 0.004331546876
D111: Sophmore | F111: 0.002789809852 | J111: Undergraduate | K111: First-time, First-year | M111: 11 | O111: 28
D112: Junior | F112: 0.0004404962925 | K112: Other, First-year | M112: 10 | O112: -11
D113: Senior | F113: 0.01974891711 | K113: Sophmore | M113: 1 | O113: 22
D114: Non-degree UG** | F114: -0.002789809852 | K114: Junior | M114: 3 | O114: -15
D115: Total Undergraduate | F115: 0.02723735409 | K115: Senior | M115: -11 | O115: 17
C116: Graduate | D116: First-time Graduate Student | F116: 0.00117465678 | K116: Non-degree UG** | M116: -4 | O116: -2
D117: Graduate Student | F117: 0.004184714779 | K117: Total Undergraduate | M117: 10 | O117: 39
D118: Non-degree Graduate** | F118: -0.003377138242 | J118: Graduate | K118: First-time Graduate Student | M118: -16 | O118: -3
D119: Total Graduate | F119: 0.001982233316 | K119: Graduate Student | M119: 27 | O119: 7
C120: Total University | F120: 0.0292195874 | K120: Non-degree Graduate** | M120: 2 | O120: -1
K121: Total Graduate | M121: 13 | O121: 3
J122: Total University | M122: 23 | O122: 42
H129: Student Level | I129: 2008 | J129: 2007
H131: Total Undergraduate | I131: 11484 | J131: 11113
H132: Total Graduate | I132: 2137 | J132: 2110
H133: Total University | I133: 13621 | J133: 13223

Sheet Fall 2007 Enrollment (hidden)
A1: West Chester University's Total Enrollment Fall 2007
B4: Student Level | C4: N | D4: Full-time | E4: Part-time | F4: Female | G4: Male | H4: African-American | I4: Native-American | J4: Asian | K4: Latino | L4: White | M4: NRA | N4: Unknown | O4: Non-Resident PA | P4: Resident
D5: Full-Time | E5: Full-Time | F5: Full-Time | G5: Full-Time | H5: Full-Time | I5: Full-Time | J5: Full-Time | K5: Full-Time | L5: Full-Time | M5: Full-Time | N5: Full-Time | O5: Full-Time | P5: Full-Time
B6: First-time, First-year | C6: 1965 | D6: 1957 | E6: 8 | F6: 1221 | G6: 744 | H6: 191 | I6: 9 | J6: 39 | K6: 62 | L6: 1662 | M6: 1 | N6: 1 | O6: 303 | P6: 1662
B7: Other, First-year | C7: 884 | D7: 851 | E7: 33 | F7: 483 | G7: 401 | H7: 106 | I7: 2 | J7: 17 | K7: 34 | L7: 723 | M7: 2 | N7: 0 | O7: 116 | P7: 768
B8: Sophmore | C8: 2568 | D8: 2483 | E8: 85 | F8: 1568 | G8: 1000 | H8: 225 | I8: 7 | J8: 49 | K8: 55 | L8: 2228 | M8: 4 | N8: 0 | O8: 341 | P8: 2227
B9: Junior | C9: 2569 | D9: 2363 | E9: 206 | F9: 1556 | G9: 1013 | H9: 208 | I9: 7 | J9: 45 | K9: 70 | L9: 2229 | M9: 10 | N9: 0 | O9: 286 | P9: 2283
B10: Senior | C10: 2733 | D10: 2259 | E10: 474 | F10: 1696 | G10: 1037 | H10: 235 | I10: 6 | J10: 64 | K10: 72 | L10: 2342 | M10: 10 | N10: 4 | O10: 271 | P10: 2462
B11: Non-degree UG** | C11: 394 | D11: 63 | E11: 331 | F11: 257 | G11: 137 | H11: 22 | I11: 1 | J11: 6 | K11: 9 | L11: 352 | M11: 3 | N11: 1 | O11: 9 | P11: 385
B12: Total Undergraduate | C12: 11113 | D12: 9976 | E12: 1137 | F12: 6781 | G12: 4332 | H12: 987 | I12: 32 | J12: 220 | K12: 302 | L12: 9536 | M12: 30 | N12: 6 | O12: 1326 | P12: 9787
B13: First-time Graduate Student | C13: 496 | D13: 221 | E13: 275 | F13: 364 | G13: 132 | H13: 51 | I13: 0 | J13: 9 | K13: 11 | L13: 398 | M13: 26 | N13: 1 | O13: 81 | P13: 415
B14: Graduate Student | C14: 1059 | D14: 293 | E14: 766 | F14: 794 | G14: 265 | H14: 59 | I14: 1 | J14: 26 | K14: 14 | L14: 916 | M14: 42 | N14: 1 | O14: 134 | P14: 925
B15: Non-degree Graduate** | C15: 555 | D15: 106 | E15: 449 | F15: 414 | G15: 141 | H15: 20 | I15: 0 | J15: 11 | K15: 6 | L15: 515 | M15: 3 | N15: 0 | O15: 21 | P15: 534
B16: Total Graduate | C16: 2110 | D16: 620 | E16: 1490 | F16: 1572 | G16: 538 | H16: 130 | I16: 1 | J16: 46 | K16: 31 | L16: 1829 | M16: 71 | N16: 2 | O16: 236 | P16: 1874
B17: Total University | C17: 13223 | D17: 10596 | E17: 2627 | F17: 8353 | G17: 4870 | H17: 1117 | I17: 33 | J17: 266 | K17: 333 | L17: 11365 | M17: 101 | N17: 8 | O17: 1562 | P17: 11661

Sheet F02-08 Enrollment by AcadPlan (hidden)
A1: West Chester University's Total Enrollment by Academic Plan Fall 2002 - 2008
C5: Undergraduate Enrollment by Academic Plan Fall 2002 - 2008
C7: =C25 -> College | D7: ='Dashboard Scroll Data'!D5 -> Descrip | F7: ='Dashboard Scroll Data'!E5 -> Fall 02 | G7: ='Dashboard Scroll Data'!F5 -> Fall 03 | H7: ='Dashboard Scroll Data'!G5 -> Fall 04 | I7: ='Dashboard Scroll Data'!H5 -> Fall 05 | J7: ='Dashboard Scroll Data'!I5 -> Fall 06 | K7: ='Dashboard Scroll Data'!J5 -> Fall 07 | L7: ='Dashboard Scroll Data'!K5 -> Fall 08
C8: =OFFSET('Dashboard Scroll Data'!C5, Calculation!$D$5, 0, 1, 1) -> CAS | D8: =OFFSET('Dashboard Scroll Data'!D5, Calculation!$D$5, 0, 1, 1) -> A102 Anthropology BA | F8: =OFFSET('Dashboard Scroll Data'!E5, Calculation!$D$5, 0) -> 33 | G8: =OFFSET('Dashboard Scroll Data'!F5, Calculation!$D$5, 0) -> 33 | H8: =OFFSET('Dashboard Scroll Data'!G5, Calculation!$D$5, 0) -> 29 | I8: =OFFSET('Dashboard Scroll Data'!H5, Calculation!$D$5, 0) -> 29 | J8: =OFFSET('Dashboard Scroll Data'!I5, Calculation!$D$5, 0) -> 31 | K8: 0 | L8: =OFFSET('Dashboard Scroll Data'!K5, Calculation!$D$5, 0) -> 39
C9: =OFFSET('Dashboard Scroll Data'!C6, Calculation!$D$5, 0, 1, 1) -> CAS | D9: =OFFSET('Dashboard Scroll Data'!D6, Calculation!$D$5, 0, 1, 1) -> A103 Anthropology-Sociology BA | F9: 0 | G9: 0 | H9: =OFFSET('Dashboard Scroll Data'!G6, Calculation!$D$5, 0) -> 2 | I9: =OFFSET('Dashboard Scroll Data'!H6, Calculation!$D$5, 0) -> 1 | J9: =OFFSET('Dashboard Scroll Data'!I6, Calculation!$D$5, 0) -> 0 | K9: =OFFSET('Dashboard Scroll Data'!J6, Calculation!$D$5, 0) -> 0 | L9: =OFFSET('Dashboard Scroll Data'!K6, Calculation!$D$5, 0) -> 0
C10: =OFFSET('Dashboard Scroll Data'!C7, Calculation!$D$5, 0, 1, 1) -> CAS | D10: =OFFSET('Dashboard Scroll Data'!D7, Calculation!$D$5, 0, 1, 1) -> A185 Sociology BA | F10: 0 | G10: 0 | H10: =OFFSET('Dashboard Scroll Data'!G7, Calculation!$D$5, 0) -> 81 | I10: =OFFSET('Dashboard Scroll Data'!H7, Calculation!$D$5, 0) -> 77 | J10: =OFFSET('Dashboard Scroll Data'!I7, Calculation!$D$5, 0) -> 94 | K10: =OFFSET('Dashboard Scroll Data'!J7, Calculation!$D$5, 0) -> 92 | L10: =OFFSET('Dashboard Scroll Data'!K7, Calculation!$D$5, 0) -> 92
C11: =OFFSET('Dashboard Scroll Data'!C8, Calculation!$D$5, 0, 1, 1) -> CAS | D11: =OFFSET('Dashboard Scroll Data'!D8, Calculation!$D$5, 0, 1, 1) -> E174 Social Studies: Anthropol BSED | F11: 0 | G11: 0 | H11: =OFFSET('Dashboard Scroll Data'!G8, Calculation!$D$5, 0) -> 0 | I11: =OFFSET('Dashboard Scroll Data'!H8, Calculation!$D$5, 0) -> 0 | J11: =OFFSET('Dashboard Scroll Data'!I8, Calculation!$D$5, 0) -> 0 | K11: =OFFSET('Dashboard Scroll Data'!J8, Calculation!$D$5, 0) -> 0 | L11: =OFFSET('Dashboard Scroll Data'!K8, Calculation!$D$5, 0) -> 0
C12: =OFFSET('Dashboard Scroll Data'!C9, Calculation!$D$5, 0, 1, 1) -> CAS | D12: =OFFSET('Dashboard Scroll Data'!D9, Calculation!$D$5, 0, 1, 1) -> E182 Social Studies: Sociology BSED | F12: 0 | G12: 0 | H12: =OFFSET('Dashboard Scroll Data'!G9, Calculation!$D$5, 0) -> 1 | I12: =OFFSET('Dashboard Scroll Data'!H9, Calculation!$D$5, 0) -> 0 | J12: =OFFSET('Dashboard Scroll Data'!I9, Calculation!$D$5, 0) -> 0 | K12: 0 | L12: =OFFSET('Dashboard Scroll Data'!K9, Calculation!$D$5, 0) -> 0
C13: =OFFSET('Dashboard Scroll Data'!C10, Calculation!$D$5, 0, 1, 1) -> CAS | D13: =OFFSET('Dashboard Scroll Data'!D10, Calculation!$D$5, 0, 1, 1) -> A104 Studio Arts BA | F13: 0 | G13: 0 | H13: =OFFSET('Dashboard Scroll Data'!G10, Calculation!$D$5, 0) -> 0 | I13: =OFFSET('Dashboard Scroll Data'!H10, Calculation!$D$5, 0) -> 0 | J13: =OFFSET('Dashboard Scroll Data'!I10, Calculation!$D$5, 0) -> 0 | K13: =OFFSET('Dashboard Scroll Data'!J10, Calculation!$D$5, 0) -> 0 | L13: =OFFSET('Dashboard Scroll Data'!K10, Calculation!$D$5, 0) -> 0
C14: =OFFSET('Dashboard Scroll Data'!C11, Calculation!$D$5, 0, 1, 1) -> CAS | D14: =OFFSET('Dashboard Scroll Data'!D11, Calculation!$D$5, 0, 1, 1) -> F190 Studio Arts BFA | F14: 0 | G14: 0 | H14: =OFFSET('Dashboard Scroll Data'!G11, Calculation!$D$5, 0) -> 0 | I14: =OFFSET('Dashboard Scroll Data'!H11, Calculation!$D$5, 0) -> 0 | J14: =OFFSET('Dashboard Scroll Data'!I11, Calculation!$D$5, 0) -> 0 | K14: =OFFSET('Dashboard Scroll Data'!J11, Calculation!$D$5, 0) -> 0 | L14: =OFFSET('Dashboard Scroll Data'!K11, Calculation!$D$5, 0) -> 0
C15: =OFFSET('Dashboard Scroll Data'!C12, Calculation!$D$5, 0, 1, 1) -> CAS | D15: =OFFSET('Dashboard Scroll Data'!D12, Calculation!$D$5, 0, 1, 1) -> A106 Biology BA | F15: 0 | G15: 0 | H15: =OFFSET('Dashboard Scroll Data'!G12, Calculation!$D$5, 0) -> 19 | I15: 0 | J15: =OFFSET('Dashboard Scroll Data'!I12, Calculation!$D$5, 0) -> 23 | K15: =OFFSET('Dashboard Scroll Data'!J12, Calculation!$D$5, 0) -> 21 | L15: 0
C16: =OFFSET('Dashboard Scroll Data'!C13, Calculation!$D$5, 0, 1, 1) -> CAS | D16: =OFFSET('Dashboard Scroll Data'!D13, Calculation!$D$5, 0, 1, 1) -> E106 Biology BSED | F16: 0 | G16: 0 | H16: =OFFSET('Dashboard Scroll Data'!G13, Calculation!$D$5, 0) -> 28 | I16: =OFFSET('Dashboard Scroll Data'!H13, Calculation!$D$5, 0) -> 37 | J16: =OFFSET('Dashboard Scroll Data'!I13, Calculation!$D$5, 0) -> 48 | K16: =OFFSET('Dashboard Scroll Data'!J13, Calculation!$D$5, 0) -> 37 | L16: =OFFSET('Dashboard Scroll Data'!K13, Calculation!$D$5, 0) -> 36
C17: =OFFSET('Dashboard Scroll Data'!C14, Calculation!$D$5, 0, 1, 1) -> CAS | D17: =OFFSET('Dashboard Scroll Data'!D14, Calculation!$D$5, 0, 1, 1) -> S106 Biology BS | F17: =OFFSET('Dashboard Scroll Data'!E14, Calculation!$D$5, 0) -> 120 | G17: =OFFSET('Dashboard Scroll Data'!F14, Calculation!$D$5, 0) -> 117 | H17: =OFFSET('Dashboard Scroll Data'!G14, Calculation!$D$5, 0) -> 106 | I17: =OFFSET('Dashboard Scroll Data'!H14, Calculation!$D$5, 0) -> 121 | J17: =OFFSET('Dashboard Scroll Data'!I14, Calculation!$D$5, 0) -> 135 | K17: =OFFSET('Dashboard Scroll Data'!J14, Calculation!$D$5, 0) -> 170 | L17: =OFFSET('Dashboard Scroll Data'!K14, Calculation!$D$5, 0) -> 200
C23: Graduate Enrollment by Academic Plan Fall 2002 - 2008
C25: ='Dashboard Scroll Data'!C184 -> College | D25: ='Dashboard Scroll Data'!D184 -> Descrip | F25: ='Dashboard Scroll Data'!E184 -> Fall 02 | G25: ='Dashboard Scroll Data'!F184 -> Fall 03 | H25: ='Dashboard Scroll Data'!G184 -> Fall 04 | I25: ='Dashboard Scroll Data'!H184 -> Fall 05 | J25: ='Dashboard Scroll Data'!I184 -> Fall 06 | K25: ='Dashboard Scroll Data'!J184 -> Fall 07 | L25: ='Dashboard Scroll Data'!K184 -> Fall 08
C26: =OFFSET('Dashboard Scroll Data'!C184, Calculation!$D$13, 0, 1, 1) -> CAS | D26: =OFFSET('Dashboard Scroll Data'!D184, Calculation!$D$13, 0, 1, 1) -> C204 Gerontology CERTIF | F26: =OFFSET('Dashboard Scroll Data'!E184, Calculation!$D$13, 0, 1, 1) -> 1 | G26: =OFFSET('Dashboard Scroll Data'!F184, Calculation!$D$13, 0, 1, 1) -> 2 | H26: =OFFSET('Dashboard Scroll Data'!G184, Calculation!$D$13, 0, 1, 1) -> 2 | I26: =OFFSET('Dashboard Scroll Data'!H184, Calculation!$D$13, 0, 1, 1) -> 0 | J26: =OFFSET('Dashboard Scroll Data'!I184, Calculation!$D$13, 0, 1, 1) -> 0 | K26: =OFFSET('Dashboard Scroll Data'!J184, Calculation!$D$13, 0, 1, 1) -> 0 | L26: =OFFSET('Dashboard Scroll Data'!K184, Calculation!$D$13, 0, 1, 1) -> 1
C27: =OFFSET('Dashboard Scroll Data'!C185, Calculation!$D$13, 0, 1, 1) -> CAS | D27: =OFFSET('Dashboard Scroll Data'!D185, Calculation!$D$13, 0, 1, 1) -> S175 Long-Term Hlth Care MSA | F27: =OFFSET('Dashboard Scroll Data'!E185, Calculation!$D$13, 0, 1, 1) -> 2 | G27: =OFFSET('Dashboard Scroll Data'!F185, Calculation!$D$13, 0, 1, 1) -> 5 | H27: =OFFSET('Dashboard Scroll Data'!G185, Calculation!$D$13, 0, 1, 1) -> 5 | I27: =OFFSET('Dashboard Scroll Data'!H185, Calculation!$D$13, 0, 1, 1) -> 4 | J27: =OFFSET('Dashboard Scroll Data'!I185, Calculation!$D$13, 0, 1, 1) -> 2 | K27: =OFFSET('Dashboard Scroll Data'!J185, Calculation!$D$13, 0, 1, 1) -> 0 | L27: =OFFSET('Dashboard Scroll Data'!K185, Calculation!$D$13, 0, 1, 1) -> 0
C28: =OFFSET('Dashboard Scroll Data'!C186, Calculation!$D$13, 0, 1, 1) -> CAS | D28: =OFFSET('Dashboard Scroll Data'!D186, Calculation!$D$13, 0, 1, 1) -> PG02 Biology PROF-GRW | F28: =OFFSET('Dashboard Scroll Data'!E186, Calculation!$D$13, 0, 1, 1) -> 0 | G28: =OFFSET('Dashboard Scroll Data'!F186, Calculation!$D$13, 0, 1, 1) -> 0 | H28: =OFFSET('Dashboard Scroll Data'!G186, Calculation!$D$13, 0, 1, 1) -> 3 | I28: =OFFSET('Dashboard Scroll Data'!H186, Calculation!$D$13, 0, 1, 1) -> 3 | J28: =OFFSET('Dashboard Scroll Data'!I186, Calculation!$D$13, 0, 1, 1) -> 0 | K28: =OFFSET('Dashboard Scroll Data'!J186, Calculation!$D$13, 0, 1, 1) -> 1 | L28: =OFFSET('Dashboard Scroll Data'!K186, Calculation!$D$13, 0, 1, 1) -> 2
C29: =OFFSET('Dashboard Scroll Data'!C187, Calculation!$D$13, 0, 1, 1) -> CAS | D29: =OFFSET('Dashboard Scroll Data'!D187, Calculation!$D$13, 0, 1, 1) -> S173 Biology MS | F29: =OFFSET('Dashboard Scroll Data'!E187, Calculation!$D$13, 0, 1, 1) -> 9 | G29: =OFFSET('Dashboard Scroll Data'!F187, Calculation!$D$13, 0, 1, 1) -> 16 | H29: =OFFSET('Dashboard Scroll Data'!G187, Calculation!$D$13, 0, 1, 1) -> 15 | I29: =OFFSET('Dashboard Scroll Data'!H187, Calculation!$D$13, 0, 1, 1) -> 17 | J29: =OFFSET('Dashboard Scroll Data'!I187, Calculation!$D$13, 0, 1, 1) -> 18 | K29: =OFFSET('Dashboard Scroll Data'!J187, Calculation!$D$13, 0, 1, 1) -> 14 | L29: =OFFSET('Dashboard Scroll Data'!K187, Calculation!$D$13, 0, 1, 1) -> 9
C30: =OFFSET('Dashboard Scroll Data'!C188, Calculation!$D$13, 0, 1, 1) -> CAS | D30: =OFFSET('Dashboard Scroll Data'!D188, Calculation!$D$13, 0, 1, 1) -> S174 Biology - Thesis MS | F30: =OFFSET('Dashboard Scroll Data'!E188, Calculation!$D$13, 0, 1, 1) -> 11 | G30: =OFFSET('Dashboard Scroll Data'!F188, Calculation!$D$13, 0, 1, 1) -> 7 | H30: =OFFSET('Dashboard Scroll Data'!G188, Calculation!$D$13, 0, 1, 1) -> 8 | I30: =OFFSET('Dashboard Scroll Data'!H188, Calculation!$D$13, 0, 1, 1) -> 6 | J30: =OFFSET('Dashboard Scroll Data'!I188, Calculation!$D$13, 0, 1, 1) -> 8 | K30: =OFFSET('Dashboard Scroll Data'!J188, Calculation!$D$13, 0, 1, 1) -> 18 | L30: =OFFSET('Dashboard Scroll Data'!K188, Calculation!$D$13, 0, 1, 1) -> 17
C31: =OFFSET('Dashboard Scroll Data'!C189, Calculation!$D$13, 0, 1, 1) -> CAS | D31: =OFFSET('Dashboard Scroll Data'!D189, Calculation!$D$13, 0, 1, 1) -> S561 Biology - Natural Science MS | F31: =OFFSET('Dashboard Scroll Data'!E189, Calculation!$D$13, 0, 1, 1) -> 1 | G31: =OFFSET('Dashboard Scroll Data'!F189, Calculation!$D$13, 0, 1, 1) -> 0 | H31: =OFFSET('Dashboard Scroll Data'!G189, Calculation!$D$13, 0, 1, 1) -> 0 | I31: =OFFSET('Dashboard Scroll Data'!H189, Calculation!$D$13, 0, 1, 1) -> 0 | J31: =OFFSET('Dashboard Scroll Data'!I189, Calculation!$D$13, 0, 1, 1) -> 0 | K31: =OFFSET('Dashboard Scroll Data'!J189, Calculation!$D$13, 0, 1, 1) -> 0 | L31: =OFFSET('Dashboard Scroll Data'!K189, Calculation!$D$13, 0, 1, 1) -> 0
C32: =OFFSET('Dashboard Scroll Data'!C190, Calculation!$D$13, 0, 1, 1) -> CAS | D32: =OFFSET('Dashboard Scroll Data'!D190, Calculation!$D$13, 0, 1, 1) -> T181 Biology TCHGCERT | F32: =OFFSET('Dashboard Scroll Data'!E190, Calculation!$D$13, 0, 1, 1) -> 0 | G32: =OFFSET('Dashboard Scroll Data'!F190, Calculation!$D$13, 0, 1, 1) -> 0 | H32: =OFFSET('Dashboard Scroll Data'!G190, Calculation!$D$13, 0, 1, 1) -> 0 | I32: =OFFSET('Dashboard Scroll Data'!H190, Calculation!$D$13, 0, 1, 1) -> 0 | J32: =OFFSET('Dashboard Scroll Data'!I190, Calculation!$D$13, 0, 1, 1) -> 0 | K32: =OFFSET('Dashboard Scroll Data'!J190, Calculation!$D$13, 0, 1, 1) -> 0 | L32: =OFFSET('Dashboard Scroll Data'!K190, Calculation!$D$13, 0, 1, 1) -> 2
C33: =OFFSET('Dashboard Scroll Data'!C191, Calculation!$D$13, 0, 1, 1) -> CAS | D33: =OFFSET('Dashboard Scroll Data'!D191, Calculation!$D$13, 0, 1, 1) -> A105 Physical Science: Chemistry MA | F33: =OFFSET('Dashboard Scroll Data'!E191, Calculation!$D$13, 0, 1, 1) -> 1 | G33: =OFFSET('Dashboard Scroll Data'!F191, Calculation!$D$13, 0, 1, 1) -> 0 | H33: =OFFSET('Dashboard Scroll Data'!G191, Calculation!$D$13, 0, 1, 1) -> 0 | I33: =OFFSET('Dashboard Scroll Data'!H191, Calculation!$D$13, 0, 1, 1) -> 0 | J33: =OFFSET('Dashboard Scroll Data'!I191, Calculation!$D$13, 0, 1, 1) -> 0 | K33: =OFFSET('Dashboard Scroll Data'!J191, Calculation!$D$13, 0, 1, 1) -> 0 | L33: =OFFSET('Dashboard Scroll Data'!K191, Calculation!$D$13, 0, 1, 1) -> 0
C34: =OFFSET('Dashboard Scroll Data'!C192, Calculation!$D$13, 0, 1, 1) -> CAS | D34: =OFFSET('Dashboard Scroll Data'!D192, Calculation!$D$13, 0, 1, 1) -> E104 Chemistry MED | F34: =OFFSET('Dashboard Scroll Data'!E192, Calculation!$D$13, 0, 1, 1) -> 2 | G34: =OFFSET('Dashboard Scroll Data'!F192, Calculation!$D$13, 0, 1, 1) -> 2 | H34: =OFFSET('Dashboard Scroll Data'!G192, Calculation!$D$13, 0, 1, 1) -> 1 | I34: =OFFSET('Dashboard Scroll Data'!H192, Calculation!$D$13, 0, 1, 1) -> 0 | J34: =OFFSET('Dashboard Scroll Data'!I192, Calculation!$D$13, 0, 1, 1) -> 0 | K34: =OFFSET('Dashboard Scroll Data'!J192, Calculation!$D$13, 0, 1, 1) -> 0 | L34: =OFFSET('Dashboard Scroll Data'!K192, Calculation!$D$13, 0, 1, 1) -> 0
C35: =OFFSET('Dashboard Scroll Data'!C193, Calculation!$D$13, 0, 1, 1) -> CAS | D35: =OFFSET('Dashboard Scroll Data'!D193, Calculation!$D$13, 0, 1, 1) -> PG03 Chemistry PROF-GRW | F35: =OFFSET('Dashboard Scroll Data'!E193, Calculation!$D$13, 0, 1, 1) -> 1 | G35: =OFFSET('Dashboard Scroll Data'!F193, Calculation!$D$13, 0, 1, 1) -> 0 | H35: =OFFSET('Dashboard Scroll Data'!G193, Calculation!$D$13, 0, 1, 1) -> 0 | I35: =OFFSET('Dashboard Scroll Data'!H193, Calculation!$D$13, 0, 1, 1) -> 0 | J35: =OFFSET('Dashboard Scroll Data'!I193, Calculation!$D$13, 0, 1, 1) -> 0 | K35: =OFFSET('Dashboard Scroll Data'!J193, Calculation!$D$13, 0, 1, 1) -> 0 | L35: =OFFSET('Dashboard Scroll Data'!K193, Calculation!$D$13, 0, 1, 1) -> 0
C46: Level | D46: College | E46: Academic Plan | F46: Fall 02 | G46: Fall 03 | H46: Fall 04 | I46: Fall 05 | J46: Fall 06 | K46: Fall 07 | L46: Fall 08
C47: Undergrad | D47: CAS | E47: A102 Anthropology BA | F47: 33 | G47: 33 | H47: 29 | I47: 29 | J47: 31 | K47: 42 | L47: 39
C48: Undergrad | D48: CAS | E48: A103 Anthropology-Sociology BA | F48: 10 | G48: 4 | H48: 2 | I48: 1 | J48: 0 | K48: 0 | L48: 0
C49: Undergrad | D49: CAS | E49: A185 Sociology BA | F49: 99 | G49: 97 | H49: 81 | I49: 77 | J49: 94 | K49: 92 | L49: 92
C50: Undergrad | D50: CAS | E50: E174 Social Studies: Anthropol BSED | F50: 3 | G50: 0 | H50: 0 | I50: 0 | J50: 0 | K50: 0 | L50: 0
C51: Undergrad | D51: CAS | E51: E182 Social Studies: Sociology BSED | F51: 3 | G51: 1 | H51: 1 | I51: 0 | J51: 0 | K51: 0 | L51: 0
C52: Undergrad | D52: CAS | E52: A104 Studio Arts BA | F52: 31 | G52: 32 | H52: 0 | I52: 0 | J52: 0 | K52: 0 | L52: 0
C53: Undergrad | D53: CAS | E53: F190 Studio Arts BFA | F53: 194 | G53: 192 | H53: 0 | I53: 0 | J53: 0 | K53: 0 | L53: 0
C54: Undergrad | D54: CAS | E54: A106 Biology BA | F54: 16 | G54: 15 | H54: 19 | I54: 18 | J54: 23 | K54: 21 | L54: 17
C55: Undergrad | D55: CAS | E55: E106 Biology BSED | F55: 40 | G55: 28 | H55: 28 | I55: 37 | J55: 48 | K55: 37 | L55: 36
C56: Undergrad | D56: CAS | E56: S106 Biology BS | F56: 120 | G56: 117 | H56: 106 | I56: 121 | J56: 135 | K56: 170 | L56: 200
C57: Undergrad | D57: CAS | E57: S107 Biology: Microbiology BS | F57: 22 | G57: 13 | H57: 15 | I57: 14 | J57: 19 | K57: 25 | L57: 26
C58: Undergrad | D58: CAS | E58: S108 Biology: Ecology BS | F58: 24 | G58: 29 | H58: 26 | I58: 23 | J58: 14 | K58: 12 | L58: 23
C59: Undergrad | D59: CAS | E59: S109 Biology: Medical Technology BS | F59: 9 | G59: 11 | H59: 18 | I59: 21 | J59: 26 | K59: 19 | L59: 19
C60: Undergrad | D60: CAS | E60: S115 Biology: Cell & Molecular BS | F60: 48 | G60: 49 | H60: 50 | I60: 35 | J60: 31 | K60: 32 | L60: 33
C61: Undergrad | D61: CAS | E61: T193 Biology TCHGCERT | F61: 2 | G61: 2 | H61: 3 | I61: 2 | J61: 3 | K61: 0 | L61: 1
C62: Undergrad | D62: CAS | E62: E112 Chemistry BSED | F62: 8 | G62: 10 | H62: 14 | I62: 14 | J62: 18 | K62: 19 | L62: 20
C63: Undergrad | D63: CAS | E63: S111 Chemistry-Biology * BS | F63: 31 | G63: 33 | H63: 37 | I63: 64 | J63: 70 | K63: 75 | L63: 81
C64: Undergrad | D64: CAS | E64: S112 Chemistry BS | F64: 25 | G64: 29 | H64: 35 | I64: 42 | J64: 39 | K64: 41 | L64: 32
C65: Undergrad | D65: CAS | E65: S114 Biochemistry BS | F65: 5 | G65: 14 | H65: 21 | I65: 23 | J65: 24 | K65: 21 | L65: 26
C66: Undergrad | D66: CAS | E66: S129 Foren & Toxicol Chemistry BS | F66: 83 | G66: 101 | H66: 103 | I66: 109 | J66: 92 | K66: 86 | L66: 73
C67: Undergrad | D67: CAS | E67: T194 Chemistry TCHGCERT | F67: 2 | G67: 3 | H67: 4 | I67: 3 | J67: 1 | K67: 1 | L67: 2
C68: Undergrad | D68: CAS | E68: A188 Communication Studies BA | F68: 311 | G68: 339 | H68: 363 | I68: 365 | J68: 335 | K68: 328 | L68: 330
C69: Undergrad | D69: CAS | E69: E115 Communication-Comm/Tha BSED | F69: 12 | G69: 16 | H69: 13 | I69: 15 | J69: 8 | K69: 8 | L69: 3
C70: Undergrad | D70: CAS | E70: E118 Communication-Theatre/Med BSED | F70: 1 | G70: 1 | H70: 0 | I70: 0 | J70: 0 | K70: 0 | L70: 0
C71: Undergrad | D71: CAS | E71: E119 Communication - Media/Com BSED | F71: 1 | G71: 0 | H71: 1 | I71: 0 | J71: 0 | K71: 1 | L71: 1
C72: Undergrad | D72: CAS | E72: T195 Communication TCHGCERT | F72: 1 | G72: 2 | H72: 1 | I72: 0 | J72: 0 | K72: 0 | L72: 0
C73: Undergrad | D73: CAS | E73: T195 Communications TCHGCERT | F73: 0 | G73: 0 | H73: 0 | I73: 0 | J73: 0 | K73: 0 | L73: 1
C74: Undergrad | D74: CAS | E74: S118 Computer Science BS | F74: 188 | G74: 175 | H74: 138 | I74: 113 | J74: 107 | K74: 107 | L74: 110
C75: Undergrad | D75: CAS | E75: S311 Computer Science - Comp Sys BS | F75: 1 | G75: 1 | H75: 0 | I75: 0 | J75: 0 | K75: 0 | L75: 0
C76: Undergrad | D76: CAS | E76: A117 Comparative Literature BA | F76: 10 | G76: 11 | H76: 9 | I76: 7 | J76: 6 | K76: 0 | L76: 0
C77: Undergrad | D77: CAS | E77: A142 Literature BA | F77: 138 | G77: 166 | H77: 179 | I77: 217 | J77: 211 | K77: 0 | L77: 0
C78: Undergrad | D78: CAS | E78: A146 English BA | F78: 0 | G78: 0 | H78: 0 | I78: 0 | J78: 0 | K78: 219 | L78: 256
C79: Undergrad | D79: CAS | E79: E128 English BSED | F79: 128 | G79: 138 | H79: 148 | I79: 179 | J79: 180 | K79: 196 | L79: 203
C80: Undergrad | D80: CAS | E80: T199 English TCHGCERT | F80: 12 | G80: 9 | H80: 12 | I80: 8 | J80: 2 | K80: 1 | L80: 2
C81: Undergrad | D81: CAS | E81: E122 Earth-Space Science - Env BSED | F81: 4 | G81: 2 | H81: 0 | I81: 0 | J81: 0 | K81: 0 | L81: 0
C82: Undergrad | D82: CAS | E82: E123 Earth-Space Science BSED | F82: 15 | G82: 20 | H82: 33 | I82: 34 | J82: 29 | K82: 25 | L82: 21
C83: Undergrad | D83: CAS | E83: E124 Earth-Space Sci - Geology BSED | F83: 16 | G83: 23 | H83: 8 | I83: 2 | J83: 0 | K83: 0 | L83: 0
C84: Undergrad | D84: CAS | E84: E125 Earth-Space Science BSED | F84: 1 | G84: 0 | H84: 0 | I84: 0 | J84: 0 | K84: 0 | L84: 0
C85: Undergrad | D85: CAS | E85: S122 Geoscience - Earth Systems BS | F85: 10 | G85: 11 | H85: 11 | I85: 10 | J85: 13 | K85: 11 | L85: 14
C86: Undergrad | D86: CAS | E86: S124 Geoscience: Geology BS | F86: 9 | G86: 12 | H86: 18 | I86: 23 | J86: 24 | K86: 17 | L86: 16
C87: Undergrad | D87: CAS | E87: S125 Geoscience: Environ Geosci BS | F87: 15 | G87: 10 | H87: 2 | I87: 2 | J87: 0 | K87: 0 | L87: 0
C88: Undergrad | D88: CAS | E88: T200 General Science TCHGCERT | F88: 2 | G88: 5 | H88: 6 | I88: 0 | J88: 0 | K88: 0 | L88: 1
C89: Undergrad | D89: CAS | E89: T201 Earth Sciences TCHGCERT | F89: 1 | G89: 4 | H89: 3 | I89: 0 | J89: 1 | K89: 0 | L89: 0
C90: Undergrad | D90: CAS | E90: T201 Earth-Space Science TCHGCERT | F90: 0 | G90: 0 | H90: 0 | I90: 1 | J90: 0 | K90: 0 | L90: 1
C91: Undergrad | D91: CAS | E91: A130 French BA | F91: 11 | G91: 13 | H91: 21 | I91: 20 | J91: 22 | K91: 25 | L91: 26
C92: Undergrad | D92: CAS | E92: A134 German BA | F92: 1 | G92: 5 | H92: 5 | I92: 9 | J92: 16 | K92: 18 | L92: 16
C93: Undergrad | D93: CAS | E93: A140 Latin BA | F93: 0 | G93: 2 | H93: 6 | I93: 9 | J93: 7 | K93: 8 | L93: 6
C94: Undergrad | D94: CAS | E94: A171 Russian BA | F94: 4 | G94: 4 | H94: 1 | I94: 4 | J94: 3 | K94: 8 | L94: 4
C95: Undergrad | D95: CAS | E95: A186 Spanish BA | F95: 23 | G95: 36 | H95: 46 | I95: 69 | J95: 71 | K95: 72 | L95: 76
C96: Undergrad | D96: CAS | E96: E130 French BSED | F96: 7 | G96: 6 | H96: 2 | I96: 0 | J96: 0 | K96: 0 | L96: 0
C97: Undergrad | D97: CAS | E97: E134 German BSED | F97: 1 | G97: 3 | H97: 1 | I97: 0 | J97: 0 | K97: 0 | L97: 0
C98: Undergrad | D98: CAS | E98: E140 Latin BSED | F98: 1 | G98: 1 | H98: 1 | I98: 1 | J98: 0 | K98: 1 | L98: 0
C99: Undergrad | D99: CAS | E99: E186 Spanish BSED | F99: 38 | G99: 27 | H99: 15 | I99: 8 | J99: 2 | K99: 0 | L99: 0
C100: Undergrad | D100: CAS | E100: T203 German TCHGCERT | F100: 2 | G100: 1 | H100: 2 | I100: 1 | J100: 0 | K100: 0 | L100: 0
C101: Undergrad | D101: CAS | E101: T204 French TCHGCERT | F101: 2 | G101: 2 | H101: 1 | I101: 1 | J101: 0 | K101: 0 | L101: 1
C102: Undergrad | D102: CAS | E102: T205 Spanish TCHGCERT | F102: 4 | G102: 2 | H102: 4 | I102: 5 | J102: 2 | K102: 0 | L102: 1
C103: Undergrad | D103: CAS | E103: A101 American Studies BA | F103: 7 | G103: 10 | H103: 9 | I103: 5 | J103: 3 | K103: 6 | L103: 4
C104: Undergrad | D104: CAS | E104: A137 History BA | F104: 209 | G104: 279 | H104: 348 | I104: 387 | J104: 404 | K104: 431 | L104: 422
C105: Undergrad | D105: CAS | E105: E177 Social Studies: History BSED | F105: 128 | G105: 66 | H105: 28 | I105: 9 | J105: 3 | K105: 0 | L105: 0
C106: Undergrad | D106: CAS | E106: T207 Social Studies TCHGCERT | F106: 0 | G106: 11 | H106: 3 | I106: 0 | J106: 0 | K106: 0 | L106: 0
C107: Undergrad | D107: CAS | E107: T210 History TCHGCERT | F107: 21 | G107: 0 | H107: 0 | I107: 0 | J107: 0 | K107: 0 | L107: 0
C108: Undergrad | D108: CAS | E108: T210 Soc Studies - History TCHGCERT | F108: 0 | G108: 0 | H108: 0 | I108: 1 | J108: 0 | K108: 0 | L108: 0
C109: Undergrad | D109: CAS | E109: A141 Liberal Studies: Arts & Sci BA | F109: 7 | G109: 48 | H109: 64 | I109: 89 | J109: 76 | K109: 82 | L109: 85
C110: Undergrad | D110: CAS | E110: A143 Liberal Studies: Career Pre BA | F110: 123 | G110: 51 | H110: 14 | I110: 7 | J110: 3 | K110: 4 | L110: 3
C111: Undergrad | D111: CAS | E111: S100 Pharmaceutical Product Dev BS | F111: 41 | G111: 42 | H111: 38 | I111: 42 | J111: 47 | K111: 43 | L111: 47
C112: Undergrad | D112: CAS | E112: S141 Liberal Studies: Sci/Math BS | F112: 26 | G112: 13 | H112: 25 | I112: 15 | J112: 22 | K112: 24 | L112: 15
C113: Undergrad | D113: CAS | E113: S322 Liberal Studies: Profession BS | F113: 111 | G113: 222 | H113: 222 | I113: 265 | J113: 295 | K113: 294 | L113: 300
C114: Undergrad | D114: CAS | E114: A144 Mathematics BA | F114: 22 | G114: 27 | H114: 30 | I114: 35 | J114: 39 | K114: 31 | L114: 27
C115: Undergrad | D115: CAS | E115: A145 Mathematics-Computer Sci BA | F115: 6 | G115: 1 | H115: 0 | I115: 0 | J115: 0 | K115: 0 | L115: 0
C116: Undergrad | D116: CAS | E116: A518 Mathematics BS | F116: 0 | G116: 0 | H116: 0 | I116: 0 | J116: 2 | K116: 23 | L116: 34
C117: Undergrad | D117: CAS | E117: E144 Mathematics BSED | F117: 91 | G117: 116 | H117: 121 | I117: 139 | J117: 134 | K117: 131 | L117: 122
C118: Undergrad | D118: CAS | E118: T213 Mathematics TCHGCERT | F118: 1 | G118: 2 | H118: 3 | I118: 1 | J118: 1 | K118: 0 | L118: 3
C119: Undergrad | D119: CAS | E119: A157 Philosophy BA | F119: 27 | G119: 31 | H119: 33 | I119: 35 | J119: 24 | K119: 30 | L119: 46
C120: Undergrad | D120: CAS | E120: A158 Philosophy-Religious Studie BA | F120: 11 | G120: 8 | H120: 1 | I120: 1 | J120: 0 | K120: 0 | L120: 0
C121: Undergrad | D121: CAS | E121: A245 Philosophy-Religious Studie BA | F121: 0 | G121: 0 | H121: 0 | I121: 0 | J121: 0 | K121: 4 | L121: 6
C122: Undergrad | D122: CAS | E122: E159 Physics BSED | F122: 5 | G122: 8 | H122: 11 | I122: 18 | J122: 16 | K122: 12 | L122: 17
C123: Undergrad | D123: CAS | E123: S159 Physics BS | F123: 9 | G123: 12 | H123: 13 | I123: 12 | J123: 14 | K123: 18 | L123: 24
C124: Undergrad | D124: CAS | E124: S160 Physics-Engineering BS | F124: 14 | G124: 15 | H124: 13 | I124: 17 | J124: 13 | K124: 19 | L124: 18
C125: Undergrad | D125: CAS | E125: T215 Physics TCHGCERT | F125: 3 | G125: 3 | H125: 1 | I125: 0 | J125: 0 | K125: 0 | L125: 2
C126: Undergrad | D126: CAS | E126: A168 Psychology BA | F126: 472 | G126: 455 | H126: 454 | I126: 469 | J126: 480 | K126: 461 | L126: 476
C127: Undergrad | D127: CAS | E127: E181 Social Studies: Psycholog BSED | F127: 4 | G127: 1 | H127: 1 | I127: 0 | J127: 0 | K127: 0 | L127: 0
C128: Undergrad | D128: CAS | E128: A190 Theatre Arts: Acting BA | F128: 1 | G128: 0 | H128: 0 | I128: 0 | J128: 0 | K128: 0 | L128: 0
C129: Undergrad | D129: CAS | E129: A191 Theatre Arts: Performance BA | F129: 34 | G129: 27 | H129: 0 | I129: 0 | J129: 0 | K129: 0 | L129: 0
C130: Undergrad | D130: CAS | E130: A194 Theatre Arts: Mus Theatre BA | F130: 29 | G130: 30 | H130: 0 | I130: 0 | J130: 0 | K130: 0 | L130: 0
C131: Undergrad | D131: CAS | E131: A195 Theatre Arts: Tech Producti BA | F131: 19 | G131: 13 | H131: 0 | I131: 0 | J131: 0 | K131: 0 | L131: 0
C132: Undergrad | D132: CAS | E132: A888 Theatre Arts: General BA | F132: 13 | G132: 13 | H132: 0 | I132: 0 | J132: 0 | K132: 0 | L132: 0
C133: Undergrad | D133: CAS | E133: A230 Women's Studies BA | F133: 16 | G133: 20 | H133: 15 | I133: 12 | J133: 8 | K133: 9 | L133: 8
C134: Undergrad | D134: CBPA | E134: S232 Accounting BS | F134: 227 | G134: 256 | H134: 265 | I134: 272 | J134: 309 | K134: 318 | L134: 364
C135: Undergrad | D135: CBPA | E135: S119 Criminal Justice BS | F135: 385 | G135: 362 | H135: 350 | I135: 329 | J135: 329 | K135: 350 | L135: 365
C136: Undergrad | D136: CBPA | E136: A126 Economics-Business BA | F136: 1 | G136: 0 | H136: 0 | I136: 0 | J136: 0 | K136: 0 | L136: 0
C137: Undergrad | D137: CBPA | E137: F455 Pre-Business Eco-Finance BS | F137: 50 | G137: 81 | H137: 58 | I137: 57 | J137: 68 | K137: 100 | L137: 128
C138: Undergrad | D138: CBPA | E138: S126 Economics BS | F138: 27 | G138: 16 | H138: 21 | I138: 15 | J138: 12 | K138: 9 | L138: 6
C139: Undergrad | D139: CBPA | E139: S128 Finance BS | F139: 137 | G139: 107 | H139: 91 | I139: 83 | J139: 81 | K139: 91 | L139: 87
C140: Undergrad | D140: CBPA | E140: S312 Business BS | F140: 0 | G140: 0 | H140: 0 | I140: 0 | J140: 0 | K140: 1 | L140: 0
C141: Undergrad | D141: CBPA | E141: A133 Geography BA | F141: 25 | G141: 22 | H141: 25 | I141: 27 | J141: 24 | K141: 27 | L141: 23
C142: Undergrad | D142: CBPA | E142: A237 Geography-Urban/Regional Pl BA | F142: 6 | G142: 5 | H142: 5 | I142: 3 | J142: 5 | K142: 8 | L142: 5
C143: Undergrad | D143: CBPA | E143: A238 Geography-Geographic Analys BA | F143: 11 | G143: 9 | H143: 8 | I143: 6 | J143: 7 | K143: 3 | L143: 3
C144: Undergrad | D144: CBPA | E144: A162 Poli Sci-Applied Pub Policy BA | F144: 8 | G144: 8 | H144: 8 | I144: 9 | J144: 16 | K144: 26 | L144: 32
C145: Undergrad | D145: CBPA | E145: A163 Polit Sci - Int'l Relations BA | F145: 56 | G145: 61 | H145: 46 | I145: 56 | J145: 68 | K145: 67 | L145: 79
C146: Undergrad | D146: CBPA | E146: A164 Political Science BA | F146: 133 | G146: 158 | H146: 162 | I146: 176 | J146: 142 | K146: 131 | L146: 128
C147: Undergrad | D147: CBPA | E147: E176 Social Studies: Geography BSED | F147: 2 | G147: 1 | H147: 1 | I147: 0 | J147: 0 | K147: 0 | L147: 0
C148: Undergrad | D148: CBPA | E148: E180 Social Studies: Polit Sci BSED | F148: 6 | G148: 1 | H148: 0 | I148: 0 | J148: 0 | K148: 0 | L148: 0
C149: Undergrad | D149: CBPA | E149: T207 Social Studies TCHGCERT | F149: 1 | G149: 0 | H149: 0 | I149: 0 | J149: 0 | K149: 0 | L149: 0
C150: Undergrad | D150: CBPA | E150: M455 Pre-Business-Management BS | F150: 97 | G150: 169 | H150: 178 | I150: 213 | J150: 219 | K150: 223 | L150: 255
C151: Undergrad | D151: CBPA | E151: S233 Business Management BS | F151: 385 | G151: 278 | H151: 239 | I151: 211 | J151: 201 | K151: 190 | L151: 174
C152: Undergrad | D152: CBPA | E152: K455 Pre-Business-Marketing BS | F152: 74 | G152: 109 | H152: 131 | I152: 140 | J152: 165 | K152: 164 | L152: 166
C153: Undergrad | D153: CBPA | E153: S143 Marketing BS | F153: 266 | G153: 205 | H153: 157 | I153: 159 | J153: 132 | K153: 134 | L153: 145
C154: Undergrad | D154: CBPA | E154: A184 Social Work BSW | F154: 108 | G154: 138 | H154: 165 | I154: 175 | J154: 150 | K154: 142 | L154: 134
C155: Undergrad | D155: EDS | E155: A143 Liberal Studies: Career Pre BA | F155: 0 | G155: 0 | H155: 1 | I155: 0 | J155: 0 | K155: 0 | L155: 0
C156: Undergrad | D156: EDS | E156: A196 Undeclared General UNDECL | F156: 1643 | G156: 1550 | H156: 1535 | I156: 1561 | J156: 1540 | K156: 1688 | L156: 1743
C157: Undergrad | D157: EDS | E157: A197 Undeclared Business UNDECL | F157: 27 | G157: 56 | H157: 96 | I157: 56 | J157: 20 | K157: 7 | L157: 1
C158: Undergrad | D158: EDS | E158: Z107 NON-DEGR General | F158: 329 | G158: 297 | H158: 306 | I158: 198 | J158: 205 | K158: 176 | L158: 88
C159: Undergrad | D159: EDS | E159: Z108 NON-DEGR Professnl Development | F159: 6 | G159: 2 | H159: 3 | I159: 3 | J159: 2 | K159: 0 | L159: 0
C160: Undergrad | D160: EDS | E160: Z109 NON-DEGR Commun Disord Interes | F160: 1 | G160: 0 | H160: 0 | I160: 1 | J160: 18 | K160: 21 | L160: 20
C161: Undergrad | D161: EDS | E161: Z110 NON-DEGR ESL Program | F161: 3 | G161: 1 | H161: 2 | I161: 1 | J161: 0 | K161: 4 | L161: 0
C162: Undergrad | D162: EDS | E162: Z111 NON-DEGR Nat Student Exchange | F162: 14 | G162: 9 | H162: 4 | I162: 7 | J162: 9 | K162: 5 | L162: 8
C163: Undergrad | D163: EDS | E163: Z112 NON-DEGR Post Baccalaur: WCU | F163: 29 | G163: 36 | H163: 31 | I163: 27 | J163: 28 | K163: 38 | L163: 25
C164: Undergrad | D164: EDS | E164: Z113 NON-DEGR Post Baccal: Non-WCU | F164: 77 | G164: 92 | H164: 64 | I164: 79 | J164: 67 | K164: 93 | L164: 70
C165: Undergrad | D165: EDS | E165: Z115 NON-DEGR Cheyney University | F165: 2 | G165: 4 | H165: 3 | I165: 2 | J165: 1 | K165: 1 | L165: 2
C166: Undergrad | D166: EDS | E166: Z116 NON-DEGR Senior Citizen | F166: 42 | G166: 36 | H166: 29 | I166: 33 | J166: 29 | K166: 40 | L166: 38
C167: Undergrad | D167: EDS | E167: Z117 NON-DEGR Post Associate: WCU | F167: 1 | G167: 1 | H167: 0 | I167: 1 | J167: 0 | K167: 0 | L167: 0
C168: Undergrad | D168: EDS | E168: Z119 NON-DEGR Qualifier | F168: 18 | G168: 21 | H168: 20 | I168: 20 | J168: 4 | K168: 0 | L168: 0
C169: Undergrad | D169: EDS | E169: Z121 NON-DEGR SSHE Visiting Student | F169: 0 | G169: 1 | H169: 2 | I169: 0 | J169: 1 | K169: 6 | L169: 6
C170: Undergrad | D170: EDS | E170: Z140 NON-DEGR High School Student | F170: 0 | G170: 0 | H170: 0 | I170: 0 | J170: 0 | K170: 0 | L170: 61
C171: Undergrad | D171: COE | E171: E121 Early Childhood Educ BSED | F171: 230 | G171: 256 | H171: 259 | I171: 303 | J171: 340 | K171: 331 | L171: 295
C172: Undergrad | D172: COE | E172: E187 Special Education BSED | F172: 261 | G172: 231 | H172: 253 | I172: 254 | J172: 263 | K172: 282 | L172: 260
C173: Undergrad | D173: COE | E173: T196 Special Education TCHGCERT | F173: 1 | G173: 0 | H173: 0 | I173: 0 | J173: 0 | K173: 0 | L173: 0
C174: Undergrad | D174: COE | E174: T197 Early Childhood Educ TCHGCERT | F174: 0 | G174: 1 | H174: 1 | I174: 1 | J174: 0 | K174: 0 | L174: 1
C175: Undergrad | D175: COE | E175: E127 Elementary Education BSED | F175: 920 | G175: 896 | H175: 896 | I175: 871 | J175: 844 | K175: 787 | L175: 814
C176: Undergrad | D176: COE | E176: T198 Elementary Education TCHGCERT | F176: 0 | G176: 0 | H176: 0 | I176: 0 | J176: 0 | K176: 0 | L176: 1
C177: Undergrad | D177: CHS | E177: S136 Health Education BS | F177: 1 | G177: 0 | H177: 0 | I177: 0 | J177: 0 | K177: 0 | L177: 0
C178: Undergrad | D178: CHS | E178: S169 Public Health:Health Promot BS | F178: 40 | G178: 42 | H178: 66 | I178: 40 | J178: 56 | K178: 50 | L178: 55
C179: Undergrad | D179: CHS | E179: S170 Public Health:Environmental BS | F179: 11 | G179: 10 | H179: 10 | I179: 11 | J179: 9 | K179: 18 | L179: 28
C180: Undergrad | D180: CHS | E180: S171 Nutrition and Dietetics BS | F180: 61 | G180: 86 | H180: 94 | I180: 162 | J180: 197 | K180: 197 | L180: 239
C181: Undergrad | D181: CHS | E181: S301 Health Sci: General BS | F181: 15 | G181: 16 | H181: 15 | I181: 13 | J181: 16 | K181: 24 | L181: 16
C182: Undergrad | D182: CHS | E182: S302 Health Sci: Dental Hygiene BS | F182: 2 | G182: 1 | H182: 0 | I182: 0 | J182: 0 | K182: 0 | L182: 0
C183: Undergrad | D183: CHS | E183: S303 Hlth Sci: Respiratory Care BS | F183: 26 | G183: 33 | H183: 51 | I183: 63 | J183: 64 | K183: 73 | L183: 75
C184: Undergrad | D184: CHS | E184: S135 Health & Physical Educ BS | F184: 373 | G184: 393 | H184: 435 | I184: 428 | J184: 463 | K184: 456 | L184: 455
C185: Undergrad | D185: CHS | E185: S138 Exercise Science Specialist BS | F185: 180 | G185: 190 | H185: 182 | I185: 185 | J185: 175 | K185: 217 | L185: 277
C186: Undergrad | D186: CHS | E186: T212 Health & Phys Educ TCHGCERT | F186: 0 | G186: 0 | H186: 0 | I186: 40 | J186: 0 | K186: 0 | L186: 20
C187: Undergrad | D187: CHS | E187: T212 Physical Education TCHGCERT | F187: 35 | G187: 26 | H187: 35 | I187: 0 | J187: 24 | K187: 9 | L187: 0
C188: Undergrad | D188: CHS | E188: S156 Nursing BSN | F188: 291 | G188: 324 | H188: 332 | I188: 292 | J188: 262 | K188: 264 | L188: 286
C189: Undergrad | D189: CHS | E189: S166 RN to BSN | F189: 0 | G189: 0 | H189: 0 | I189: 0 | J189: 28 | K189: 51 | L189: 69
C190: Undergrad | D190: CHS | E190: S105 Athletic Training BS | F190: 100 | G190: 101 | H190: 111 | I190: 112 | J190: 120 | K190: 115 | L190: 135
C191: Undergrad | D191: CHS | E191: A116 Communicative Disorders BA | F191: 63 | G191: 58 | H191: 79 | I191: 88 | J191: 100 | K191: 111 | L191: 106
C192: Undergrad | D192: CVPA | E192: M175 Music: Keybrd Perf - Pedago BM | F192: 0 | G192: 1 | H192: 0 | I192: 0 | J192: 0 | K192: 0 | L192: 0
C193: Undergrad | D193: CVPA | E193: M188 Music - Performance BM | F193: 0 | G193: 45 | H193: 38 | I193: 41 | J193: 41 | K193: 42 | L193: 54
C194: Undergrad | D194: CVPA | E194: A104 Studio Arts BA | F194: 0 | G194: 0 | H194: 25 | I194: 30 | J194: 36 | K194: 33 | L194: 38
C195: Undergrad | D195: CVPA | E195: F190 Studio Arts BFA | F195: 0 | G195: 0 | H195: 192 | I195: 197 | J195: 147 | K195: 144 | L195: 139
C196: Undergrad | D196: CVPA | E196: M151 Music: Instrumental Perform BM | F196: 14 | G196: 0 | H196: 0 | I196: 0 | J196: 0 | K196: 0 | L196: 0
C197: Undergrad | D197: CVPA | E197: M188 Music - Performance BM | F197: 27 | G197: 0 | H197: 0 | I197: 0 | J197: 0 | K197: 0 | L197: 0
C198: Undergrad | D198: CVPA | E198: M152 Music: Keyboard Performance BM | F198: 2 | G198: 0 | H198: 0 | I198: 0 | J198: 0 | K198: 0 | L198: 0
C199: Undergrad | D199: CVPA | E199: M175 Music: Keybrd Perf - Pedago BM | F199: 1 | G199: 0 | H199: 0 | I199: 0 | J199: 0 | K199: 0 | L199: 0
C200: Undergrad | D200: CVPA | E200: M145 Music: Elective Studies BM | F200: 35 | G200: 30 | H200: 32 | I200: 34 | J200: 34 | K200: 25 | L200: 27
C201: Undergrad | D201: CVPA | E201: M150 Music: Composition BM | F201: 8 | G201: 5 | H201: 2 | I201: 1 | J201: 0 | K201: 0 | L201: 0
C202: Undergrad | D202: CVPA | E202: M153 Music: Theory BM | F202: 10 | G202: 3 | H202: 0 | I202: 0 | J202: 0 | K202: 0 | L202: 0
C203: Undergrad | D203: CVPA | E203: M190 Music: Theory & Composition BM | F203: 2 | G203: 6 | H203: 8 | I203: 10 | J203: 11 | K203: 14 | L203: 14
C204: Undergrad | D204: CVPA | E204: M147 Music Educ: Instrument BM | F204: 179 | G204: 195 | H204: 211 | I204: 186 | J204: 213 | K204: 225 | L204: 225
C205: Undergrad | D205: CVPA | E205: M148 Music Educ: Voice BM | F205: 87 | G205: 101 | H205: 98 | I205: 95 | J205: 94 | K205: 94 | L205: 94
C206: Undergrad | D206: CVPA | E206: M149 Music Educ: Keyboard BM | F206: 42 | G206: 35 | H206: 25 | I206: 25 | J206: 33 | K206: 33 | L206: 34
C207: Undergrad | D207: CVPA | E207: S147 Music Educ: General-Instrum BS | F207: 10 | G207: 0 | H207: 0 | I207: 0 | J207: 0 | K207: 0 | L207: 0
C208: Undergrad | D208: CVPA | E208: S149 Music Ed: Vocal/Choral-Voic BS | F208: 3 | G208: 0 | H208: 0 | I208: 0 | J208: 0 | K208: 0 | L208: 0
C209: Undergrad | D209: CVPA | E209: S314 Music Educ: General-Voice BS | F209: 2 | G209: 0 | H209: 0 | I209: 0 | J209: 0 | K209: 0 | L209: 0
C210: Undergrad | D210: CVPA | E210: T214 Music Education TCHGCERT | F210: 3 | G210: 3 | H210: 2 | I210: 2 | J210: 2 | K210: 0 | L210: 1
C211: Undergrad | D211: CVPA | E211: A191 Theatre and Dance: Perfmnce BA | F211: 0 | G211: 0 | H211: 0 | I211: 27 | J211: 0 | K211: 0 | L211: 9
C212: Undergrad | D212: CVPA | E212: A191 Theatre Arts: Performance BA | F212: 0 | G212: 0 | H212: 0 | I212: 0 | J212: 13 | K212: 14 | L212: 0
C213: Undergrad | D213: CVPA | E213: A194 Theatre and Dnce: Mus Thtre BA | F213: 0 | G213: 0 | H213: 39 | I213: 22 | J213: 0 | K213: 0 | L213: 15
C214: Undergrad | D214: CVPA | E214: A194 Theatre Arts: Mus Theatre BA | F214: 0 | G214: 0 | H214: 30 | I214: 0 | J214: 17 | K214: 13 | L214: 0
C215: Undergrad | D215: CVPA | E215: A195 Theatre and Dnce: Tech Prod BA | F215: 0 | G215: 0 | H215: 0 | I215: 9 | J215: 0 | K215: 0 | L215: 10
C216: Undergrad | D216: CVPA | E216: A195 Theatre Arts: Tech Producti BA | F216: 0 | G216: 0 | H216: 15 | I216: 0 | J216: 9 | K216: 4 | L216: 0
C217: Undergrad | D217: CVPA | E217: A888 Theatre and Dance: General BA | F217: 0 | G217: 0 | H217: 0 | I217: 50 | J217: 0 | K217: 0 | L217: 68
C218: Undergrad | D218: CVPA | E218: A888 Theatre Arts: General BA | F218: 0 | G218: 0 | H218: 14 | I218: 0 | J218: 67 | K218: 64 | L218: 0
C219: Undergrad | D219: CVPA | E219: M155 Music: Vocal Performance BM | F219: 7 | G219: 0 | H219: 0 | I219: 0 | J219: 0 | K219: 0 | L219: 0
C220: Graduate | D220: CAS | E220: C204 Gerontology CERTIF | F220: 1 | G220: 2 | H220: 2 | I220: 0 | J220: 0 | K220: 0 | L220: 1
... 132 more rows

Sheet Calculation (hidden)
C3: Calculation
C5: Actual Start Position | D5: 1
C6: Maximum Position | D6: 1
C10: Calculation
C12: Actual Start Position | D12: 124
C13: Maximum Position | D13: 1

Sheet Dashboard Scroll Data (hidden)
N2: Difference from 07 to 08
C5: College | D5: Descrip | E5: Fall 02 | F5: Fall 03 | G5: Fall 04 | H5: Fall 05 | I5: Fall 06 | J5: Fall 07 | K5: Fall 08
C6: CAS | D6: A102 Anthropology BA | E6: 33 | F6: 33 | G6: 29 | H6: 29 | I6: 31 | J6: 42 | K6: 39 | N6: =K6-J6 -> -3 | O6: =N6/J6 -> -0.07142857143
C7: CAS | D7: A103 Anthropology-Sociology BA | E7: 10 | F7: 4 | G7: 2 | H7: 1 | I7: 0 | J7: 0 | K7: 0 | N7: =K7-J7 -> 0 | O7: =N7/J7 -> 
C8: CAS | D8: A185 Sociology BA | E8: 99 | F8: 97 | G8: 81 | H8: 77 | I8: 94 | J8: 92 | K8: 92 | N8: 0 | O8: 0
C9: CAS | D9: E174 Social Studies: Anthropol BSED | E9: 3 | F9: 0 | G9: 0 | H9: 0 | I9: 0 | J9: 0 | K9: 0 | N9: 0
C10: CAS | D10: E182 Social Studies: Sociology BSED | E10: 3 | F10: 1 | G10: 1 | H10: 0 | I10: 0 | J10: 0 | K10: 0 | N10: 0
C11: CAS | D11: A104 Studio Arts BA | E11: 31 | F11: 32 | N11: 0
C12: CAS | D12: F190 Studio Arts BFA | E12: 194 | F12: 192 | N12: 0
C13: CAS | D13: A106 Biology BA | E13: 16 | F13: 15 | G13: 19 | H13: 18 | I13: 23 | J13: 21 | K13: 17 | N13: -4 | O13: -0.1904761905
C14: CAS | D14: E106 Biology BSED | E14: 40 | F14: 28 | G14: 28 | H14: 37 | I14: 48 | J14: 37 | K14: 36 | N14: -1 | O14: -0.02702702703
C15: CAS | D15: S106 Biology BS | E15: 120 | F15: 117 | G15: 106 | H15: 121 | I15: 135 | J15: 170 | K15: 200 | N15: 30 | O15: 0.1764705882
C16: CAS | D16: S107 Biology: Microbiology BS | E16: 22 | F16: 13 | G16: 15 | H16: 14 | I16: 19 | J16: 25 | K16: 26 | N16: 1 | O16: 0.04
C17: CAS | D17: S108 Biology: Ecology BS | E17: 24 | F17: 29 | G17: 26 | H17: 23 | I17: 14 | J17: 12 | K17: 23 | N17: 11 | O17: 0.9166666667
C18: CAS | D18: S109 Biology: Medical Technology BS | E18: 9 | F18: 11 | G18: 18 | H18: 21 | I18: 26 | J18: 19 | K18: 19 | N18: 0 | O18: 0
C19: CAS | D19: S115 Biology: Cell & Molecular BS | E19: 48 | F19: 49 | G19: 50 | H19: 35 | I19: 31 | J19: 32 | K19: 33 | N19: 1 | O19: 0.03125
C20: CAS | D20: T193 Biology TCHGCERT | E20: 2 | F20: 2 | G20: 3 | H20: 2 | I20: 3 | J20: 0 | K20: 1 | N20: 1
C21: CAS | D21: E112 Chemistry BSED | E21: 8 | F21: 10 | G21: 14 | H21: 14 | I21: 18 | J21: 19 | K21: 20 | N21: 1 | O21: 0.05263157895
C22: CAS | D22: S111 Chemistry-Biology * BS | E22: 31 | F22: 33 | G22: 37 | H22: 64 | I22: 70 | J22: 75 | K22: 81 | N22: 6 | O22: 0.08
C23: CAS | D23: S112 Chemistry BS | E23: 25 | F23: 29 | G23: 35 | H23: 42 | I23: 39 | J23: 41 | K23: 32 | N23: -9 | O23: -0.2195121951
C24: CAS | D24: S114 Biochemistry BS | E24: 5 | F24: 14 | G24: 21 | H24: 23 | I24: 24 | J24: 21 | K24: 26 | N24: 5 | O24: 0.2380952381
C25: CAS | D25: S129 Foren & Toxicol Chemistry BS | E25: 83 | F25: 101 | G25: 103 | H25: 109 | I25: 92 | J25: 86 | K25: 73 | N25: -13 | O25: -0.1511627907
C26: CAS | D26: T194 Chemistry TCHGCERT | E26: 2 | F26: 3 | G26: 4 | H26: 3 | I26: 1 | J26: 1 | K26: 2 | N26: 1 | O26: 1
C27: CAS | D27: A188 Communication Studies BA | E27: 311 | F27: 339 | G27: 363 | H27: 365 | I27: 335 | J27: 328 | K27: 330 | N27: 2 | O27: 0.006097560976
C28: CAS | D28: E115 Communication-Comm/Tha BSED | E28: 12 | F28: 16 | G28: 13 | H28: 15 | I28: 8 | J28: 8 | K28: 3 | N28: -5 | O28: -0.625
C29: CAS | D29: E118 Communication-Theatre/Med BSED | E29: 1 | F29: 1 | G29: 0 | H29: 0 | I29: 0 | J29: 0 | K29: 0 | N29: 0
C30: CAS | D30: E119 Communication - Media/Com BSED | E30: 1 | F30: 0 | G30: 1 | H30: 0 | I30: 0 | J30: 1 | K30: 1 | N30: 0 | O30: 0
C31: CAS | D31: T195 Communication TCHGCERT | E31: 1 | F31: 2 | G31: 1 | H31: 0 | I31: 0 | J31: 0 | K31: 0 | N31: 0
C32: CAS | D32: T195 Communications TCHGCERT | E32: 0 | F32: 0 | G32: 0 | H32: 0 | I32: 0 | J32: 0 | K32: 1 | N32: 1
C33: CAS | D33: S118 Computer Science BS | E33: 188 | F33: 175 | G33: 138 | H33: 113 | I33: 107 | J33: 107 | K33: 110 | N33: 3 | O33: 0.02803738318
C34: CAS | D34: S311 Computer Science - Comp Sys BS | E34: 1 | F34: 1 | G34: 0 | H34: 0 | I34: 0 | J34: 0 | K34: 0 | N34: 0
C35: CAS | D35: A117 Comparative Literature BA | E35: 10 | F35: 11 | G35: 9 | H35: 7 | I35: 6 | J35: 0 | K35: 0 | N35: 0
C36: CAS | D36: A142 Literature BA | E36: 138 | F36: 166 | G36: 179 | H36: 217 | I36: 211 | J36: 0 | K36: 0 | N36: 0
C37: CAS | D37: A146 English BA | E37: 0 | F37: 0 | G37: 0 | H37: 0 | I37: 0 | J37: 219 | K37: 256 | N37: 37 | O37: 0.1689497717
C38: CAS | D38: E128 English BSED | E38: 128 | F38: 138 | G38: 148 | H38: 179 | I38: 180 | J38: 196 | K38: 203 | N38: 7 | O38: 0.03571428571
C39: CAS | D39: T199 English TCHGCERT | E39: 12 | F39: 9 | G39: 12 | H39: 8 | I39: 2 | J39: 1 | K39: 2 | N39: 1 | O39: 1
C40: CAS | D40: E122 Earth-Space Science - Env BSED | E40: 4 | F40: 2 | G40: 0 | H40: 0 | I40: 0 | J40: 0 | K40: 0 | N40: 0
C41: CAS | D41: E123 Earth-Space Science BSED | E41: 15 | F41: 20 | G41: 33 | H41: 34 | I41: 29 | J41: 25 | K41: 21 | N41: -4 | O41: -0.16
C42: CAS | D42: E124 Earth-Space Sci - Geology BSED | E42: 16 | F42: 23 | G42: 8 | H42: 2 | I42: 0 | J42: 0 | K42: 0 | N42: 0
C43: CAS | D43: E125 Earth-Space Science BSED | E43: 1 | F43: 0 | G43: 0 | H43: 0 | I43: 0 | J43: 0 | K43: 0 | N43: 0
C44: CAS | D44: S122 Geoscience - Earth Systems BS | E44: 10 | F44: 11 | G44: 11 | H44: 10 | I44: 13 | J44: 11 | K44: 14 | N44: 3 | O44: 0.2727272727
C45: CAS | D45: S124 Geoscience: Geology BS | E45: 9 | F45: 12 | G45: 18 | H45: 23 | I45: 24 | J45: 17 | K45: 16 | N45: -1 | O45: -0.05882352941
C46: CAS | D46: S125 Geoscience: Environ Geosci BS | E46: 15 | F46: 10 | G46: 2 | H46: 2 | I46: 0 | J46: 0 | K46: 0 | N46: 0
C47: CAS | D47: T200 General Science TCHGCERT | E47: 2 | F47: 5 | G47: 6 | H47: 0 | I47: 0 | J47: 0 | K47: 1 | N47: 1
C48: CAS | D48: T201 Earth Sciences TCHGCERT | E48: 1 | F48: 4 | G48: 3 | H48: 0 | I48: 1 | J48: 0 | K48: 0 | N48: 0
C49: CAS | D49: T201 Earth-Space Science TCHGCERT | E49: 0 | F49: 0 | G49: 0 | H49: 1 | I49: 0 | J49: 0 | K49: 1 | N49: 1
C50: CAS | D50: A130 French BA | E50: 11 | F50: 13 | G50: 21 | H50: 20 | I50: 22 | J50: 25 | K50: 26 | N50: 1 | O50: 0.04
C51: CAS | D51: A134 German BA | E51: 1 | F51: 5 | G51: 5 | H51: 9 | I51: 16 | J51: 18 | K51: 16 | N51: -2 | O51: -0.1111111111
C52: CAS | D52: A140 Latin BA | E52: 0 | F52: 2 | G52: 6 | H52: 9 | I52: 7 | J52: 8 | K52: 6 | N52: -2 | O52: -0.25
C53: CAS | D53: A171 Russian BA | E53: 4 | F53: 4 | G53: 1 | H53: 4 | I53: 3 | J53: 8 | K53: 4 | N53: -4 | O53: -0.5
C54: CAS | D54: A186 Spanish BA | E54: 23 | F54: 36 | G54: 46 | H54: 69 | I54: 71 | J54: 72 | K54: 76 | N54: 4 | O54: 0.05555555556
C55: CAS | D55: E130 French BSED | E55: 7 | F55: 6 | G55: 2 | H55: 0 | I55: 0 | J55: 0 | K55: 0 | N55: 0
C56: CAS | D56: E134 German BSED | E56: 1 | F56: 3 | G56: 1 | H56: 0 | I56: 0 | J56: 0 | K56: 0 | N56: 0
C57: CAS | D57: E140 Latin BSED | E57: 1 | F57: 1 | G57: 1 | H57: 1 | I57: 0 | J57: 1 | K57: 0 | N57: -1 | O57: -1
C58: CAS | D58: E186 Spanish BSED | E58: 38 | F58: 27 | G58: 15 | H58: 8 | I58: 2 | J58: 0 | K58: 0 | N58: 0
C59: CAS | D59: T203 German TCHGCERT | E59: 2 | F59: 1 | G59: 2 | H59: 1 | I59: 0 | J59: 0 | K59: 0 | N59: 0
C60: CAS | D60: T204 French TCHGCERT | E60: 2 | F60: 2 | G60: 1 | H60: 1 | I60: 0 | J60: 0 | K60: 1 | N60: 1
C61: CAS | D61: T205 Spanish TCHGCERT | E61: 4 | F61: 2 | G61: 4 | H61: 5 | I61: 2 | J61: 0 | K61: 1 | N61: 1
C62: CAS | D62: A101 American Studies BA | E62: 7 | F62: 10 | G62: 9 | H62: 5 | I62: 3 | J62: 6 | K62: 4 | N62: -2 | O62: -0.3333333333
C63: CAS | D63: A137 History BA | E63: 209 | F63: 279 | G63: 348 | H63: 387 | I63: 404 | J63: 431 | K63: 422 | N63: -9 | O63: -0.02088167053
C64: CAS | D64: E177 Social Studies: History BSED | E64: 128 | F64: 66 | G64: 28 | H64: 9 | I64: 3 | J64: 0 | K64: 0 | N64: 0
C65: CAS | D65: T207 Social Studies TCHGCERT | E65: 0 | F65: 11 | G65: 3 | H65: 0 | I65: 0 | J65: 0 | K65: 0 | N65: 0
C66: CAS | D66: T210 History TCHGCERT | E66: 21 | F66: 0 | G66: 0 | H66: 0 | I66: 0 | J66: 0 | K66: 0 | N66: 0
C67: CAS | D67: T210 Soc Studies - History TCHGCERT | E67: 0 | F67: 0 | G67: 0 | H67: 1 | I67: 0 | J67: 0 | K67: 0 | N67: 0
C68: CAS | D68: A141 Liberal Studies: Arts & Sci BA | E68: 7 | F68: 48 | G68: 64 | H68: 89 | I68: 76 | J68: 82 | K68: 85 | N68: 3 | O68: 0.03658536585
C69: CAS | D69: A143 Liberal Studies: Career Pre BA | E69: 123 | F69: 51 | G69: 14 | H69: 7 | I69: 3 | J69: 4 | K69: 3 | N69: -1 | O69: -0.25
C70: CAS | D70: S100 Pharmaceutical Product Dev BS | E70: 41 | F70: 42 | G70: 38 | H70: 42 | I70: 47 | J70: 43 | K70: 47 | N70: 4 | O70: 0.09302325581
C71: CAS | D71: S141 Liberal Studies: Sci/Math BS | E71: 26 | F71: 13 | G71: 25 | H71: 15 | I71: 22 | J71: 24 | K71: 15 | N71: =K71-J71 -> -9 | O71: =N71/J71 -> -0.375
C72: CAS | D72: S322 Liberal Studies: Profession BS | E72: 111 | F72: 222 | G72: 222 | H72: 265 | I72: 295 | J72: 294 | K72: 300 | N72: 6 | O72: 0.02040816327
C73: CAS | D73: A144 Mathematics BA | E73: 22 | F73: 27 | G73: 30 | H73: 35 | I73: 39 | J73: 31 | K73: 27 | N73: -4 | O73: -0.1290322581
C74: CAS | D74: A145 Mathematics-Computer Sci BA | E74: 6 | F74: 1 | G74: 0 | H74: 0 | I74: 0 | J74: 0 | K74: 0 | N74: 0
C75: CAS | D75: A518 Mathematics BS | E75: 0 | F75: 0 | G75: 0 | H75: 0 | I75: 2 | J75: 23 | K75: 34 | N75: 11 | O75: 0.4782608696
C76: CAS | D76: E144 Mathematics BSED | E76: 91 | F76: 116 | G76: 121 | H76: 139 | I76: 134 | J76: 131 | K76: 122 | N76: -9 | O76: -0.06870229008
C77: CAS | D77: T213 Mathematics TCHGCERT | E77: 1 | F77: 2 | G77: 3 | H77: 1 | I77: 1 | J77: 0 | K77: 3 | N77: 3
C78: CAS | D78: A157 Philosophy BA | E78: 27 | F78: 31 | G78: 33 | H78: 35 | I78: 24 | J78: 30 | K78: 46 | N78: 16 | O78: 0.5333333333
C79: CAS | D79: A158 Philosophy-Religious Studie BA | E79: 11 | F79: 8 | G79: 1 | H79: 1 | I79: 0 | J79: 0 | K79: 0 | N79: 0
C80: CAS | D80: A245 Philosophy-Religious Studie BA | E80: 0 | F80: 0 | G80: 0 | H80: 0 | I80: 0 | J80: 4 | K80: 6 | N80: 2 | O80: 0.5
C81: CAS | D81: E159 Physics BSED | E81: 5 | F81: 8 | G81: 11 | H81: 18 | I81: 16 | J81: 12 | K81: 17 | N81: 5 | O81: 0.4166666667
C82: CAS | D82: S159 Physics BS | E82: 9 | F82: 12 | G82: 13 | H82: 12 | I82: 14 | J82: 18 | K82: 24 | N82: 6 | O82: 0.3333333333
C83: CAS | D83: S160 Physics-Engineering BS | E83: 14 | F83: 15 | G83: 13 | H83: 17 | I83: 13 | J83: 19 | K83: 18 | N83: -1 | O83: -0.05263157895
C84: CAS | D84: T215 Physics TCHGCERT | E84: 3 | F84: 3 | G84: 1 | H84: 0 | I84: 0 | J84: 0 | K84: 2 | N84: 2
C85: CAS | D85: A168 Psychology BA | E85: 472 | F85: 455 | G85: 454 | H85: 469 | I85: 480 | J85: 461 | K85: 476 | N85: 15 | O85: 0.03253796095
C86: CAS | D86: E181 Social Studies: Psycholog BSED | E86: 4 | F86: 1 | G86: 1 | H86: 0 | I86: 0 | J86: 0 | K86: 0 | N86: 0
C87: CAS | D87: A190 Theatre Arts: Acting BA | E87: 1 | F87: 0 | N87: 0
C88: CAS | D88: A191 Theatre Arts: Performance BA | E88: 34 | F88: 27 | N88: 0
C89: CAS | D89: A194 Theatre Arts: Mus Theatre BA | E89: 29 | F89: 30 | N89: 0
C90: CAS | D90: A195 Theatre Arts: Tech Producti BA | E90: 19 | F90: 13 | N90: 0
C91: CAS | D91: A888 Theatre Arts: General BA | E91: 13 | F91: 13 | N91: 0
C92: CAS | D92: A230 Women's Studies BA | E92: 16 | F92: 20 | G92: 15 | H92: 12 | I92: 8 | J92: 9 | K92: 8 | N92: -1 | O92: -0.1111111111
C93: CBPA | D93: S232 Accounting BS | E93: 227 | F93: 256 | G93: 265 | H93: 272 | I93: 309 | J93: 318 | K93: 364 | N93: 46 | O93: 0.1446540881
C94: CBPA | D94: S119 Criminal Justice BS | E94: 385 | F94: 362 | G94: 350 | H94: 329 | I94: 329 | J94: 350 | K94: 365 | N94: 15 | O94: 0.04285714286
C95: CBPA | D95: A126 Economics-Business BA | E95: 1 | F95: 0 | G95: 0 | H95: 0 | I95: 0 | J95: 0 | K95: 0 | N95: 0
C96: CBPA | D96: F455 Pre-Business Eco-Finance BS | E96: 50 | F96: 81 | G96: 58 | H96: 57 | I96: 68 | J96: 100 | K96: 128 | N96: 28 | O96: 0.28
C97: CBPA | D97: S126 Economics BS | E97: 27 | F97: 16 | G97: 21 | H97: 15 | I97: 12 | J97: 9 | K97: 6 | N97: -3 | O97: -0.3333333333
C98: CBPA | D98: S128 Finance BS | E98: 137 | F98: 107 | G98: 91 | H98: 83 | I98: 81 | J98: 91 | K98: 87 | N98: -4 | O98: -0.04395604396
C99: CBPA | D99: S312 Business BS | E99: 0 | F99: 0 | G99: 0 | H99: 0 | I99: 0 | J99: 1 | K99: 0 | N99: -1 | O99: -1
C100: CBPA | D100: A133 Geography BA | E100: 25 | F100: 22 | G100: 25 | H100: 27 | I100: 24 | J100: 27 | K100: 23 | N100: -4 | O100: -0.1481481481
C101: CBPA | D101: A237 Geography-Urban/Regional Pl BA | E101: 6 | F101: 5 | G101: 5 | H101: 3 | I101: 5 | J101: 8 | K101: 5 | N101: -3 | O101: -0.375
C102: CBPA | D102: A238 Geography-Geographic Analys BA | E102: 11 | F102: 9 | G102: 8 | H102: 6 | I102: 7 | J102: 3 | K102: 3 | N102: 0 | O102: 0
C103: CBPA | D103: A162 Poli Sci-Applied Pub Policy BA | E103: 8 | F103: 8 | G103: 8 | H103: 9 | I103: 16 | J103: 26 | K103: 32 | N103: 6 | O103: 0.2307692308
C104: CBPA | D104: A163 Polit Sci - Int'l Relations BA | E104: 56 | F104: 61 | G104: 46 | H104: 56 | I104: 68 | J104: 67 | K104: 79 | N104: 12 | O104: 0.1791044776
C105: CBPA | D105: A164 Political Science BA | E105: 133 | F105: 158 | G105: 162 | H105: 176 | I105: 142 | J105: 131 | K105: 128 | N105: -3 | O105: -0.02290076336
C106: CBPA | D106: E176 Social Studies: Geography BSED | E106: 2 | F106: 1 | G106: 1 | H106: 0 | I106: 0 | J106: 0 | K106: 0 | N106: 0
C107: CBPA | D107: E180 Social Studies: Polit Sci BSED | E107: 6 | F107: 1 | G107: 0 | H107: 0 | I107: 0 | J107: 0 | K107: 0 | N107: 0
C108: CBPA | D108: T207 Social Studies TCHGCERT | E108: 1 | F108: 0 | G108: 0 | H108: 0 | I108: 0 | J108: 0 | K108: 0 | N108: 0
C109: CBPA | D109: M455 Pre-Business-Management BS | E109: 97 | F109: 169 | G109: 178 | H109: 213 | I109: 219 | J109: 223 | K109: 255 | N109: 32 | O109: 0.1434977578
C110: CBPA | D110: S233 Business Management BS | E110: 385 | F110: 278 | G110: 239 | H110: 211 | I110: 201 | J110: 190 | K110: 174 | N110: -16 | O110: -0.08421052632
C111: CBPA | D111: K455 Pre-Business-Marketing BS | E111: 74 | F111: 109 | G111: 131 | H111: 140 | I111: 165 | J111: 164 | K111: 166 | N111: 2 | O111: 0.01219512195
C112: CBPA | D112: S143 Marketing BS | E112: 266 | F112: 205 | G112: 157 | H112: 159 | I112: 132 | J112: 134 | K112: 145 | N112: 11 | O112: 0.08208955224
C113: CBPA | D113: A184 Social Work BSW | E113: 108 | F113: 138 | G113: 165 | H113: 175 | I113: 150 | J113: 142 | K113: 134 | N113: -8 | O113: -0.05633802817
C114: EDS | D114: A143 Liberal Studies: Career Pre BA | E114: 0 | F114: 0 | G114: 1 | H114: 0 | I114: 0 | J114: 0 | K114: 0 | N114: 0
C115: EDS | D115: A196 Undeclared General UNDECL | E115: 1643 | F115: 1550 | G115: 1535 | H115: 1561 | I115: 1540 | J115: 1688 | K115: 1743 | N115: 55 | O115: 0.03258293839
C116: EDS | D116: A197 Undeclared Business UNDECL | E116: 27 | F116: 56 | G116: 96 | H116: 56 | I116: 20 | J116: 7 | K116: 1 | N116: -6 | O116: -0.8571428571
C117: EDS | D117: Z107 NON-DEGR General | E117: 329 | F117: 297 | G117: 306 | H117: 198 | I117: 205 | J117: 176 | K117: 88 | N117: -88 | O117: -0.5
C118: EDS | D118: Z108 NON-DEGR Professnl Development | E118: 6 | F118: 2 | G118: 3 | H118: 3 | I118: 2 | J118: 0 | K118: 0 | N118: 0
C119: EDS | D119: Z109 NON-DEGR Commun Disord Interes | E119: 1 | F119: 0 | G119: 0 | H119: 1 | I119: 18 | J119: 21 | K119: 20 | N119: -1 | O119: -0.04761904762
C120: EDS | D120: Z110 NON-DEGR ESL Program | E120: 3 | F120: 1 | G120: 2 | H120: 1 | I120: 0 | J120: 4 | K120: 0 | N120: -4 | O120: -1
C121: EDS | D121: Z111 NON-DEGR Nat Student Exchange | E121: 14 | F121: 9 | G121: 4 | H121: 7 | I121: 9 | J121: 5 | K121: 8 | N121: 3 | O121: 0.6
C122: EDS | D122: Z112 NON-DEGR Post Baccalaur: WCU | E122: 29 | F122: 36 | G122: 31 | H122: 27 | I122: 28 | J122: 38 | K122: 25 | N122: -13 | O122: -0.3421052632
C123: EDS | D123: Z113 NON-DEGR Post Baccal: Non-WCU | E123: 77 | F123: 92 | G123: 64 | H123: 79 | I123: 67 | J123: 93 | K123: 70 | N123: -23 | O123: -0.247311828
C124: EDS | D124: Z115 NON-DEGR Cheyney University | E124: 2 | F124: 4 | G124: 3 | H124: 2 | I124: 1 | J124: 1 | K124: 2 | N124: 1 | O124: 1
C125: EDS | D125: Z116 NON-DEGR Senior Citizen | E125: 42 | F125: 36 | G125: 29 | H125: 33 | I125: 29 | J125: 40 | K125: 38 | N125: -2 | O125: -0.05
C126: EDS | D126: Z117 NON-DEGR Post Associate: WCU | E126: 1 | F126: 1 | G126: 0 | H126: 1 | I126: 0 | J126: 0 | K126: 0 | N126: 0
C127: EDS | D127: Z119 NON-DEGR Qualifier | E127: 18 | F127: 21 | G127: 20 | H127: 20 | I127: 4 | J127: 0 | K127: 0 | N127: 0
C128: EDS | D128: Z121 NON-DEGR SSHE Visiting Student | E128: 0 | F128: 1 | G128: 2 | H128: 0 | I128: 1 | J128: 6 | K128: 6 | N128: 0 | O128: 0
C129: EDS | D129: Z140 NON-DEGR High School Student | E129: 0 | F129: 0 | G129: 0 | H129: 0 | I129: 0 | J129: 0 | K129: 61 | N129: 61
C130: COE | D130: E121 Early Childhood Educ BSED | E130: 230 | F130: 256 | G130: 259 | H130: 303 | I130: 340 | J130: 331 | K130: 295 | N130: -36 | O130: -0.1087613293
C131: COE | D131: E187 Special Education BSED | E131: 261 | F131: 231 | G131: 253 | H131: 254 | I131: 263 | J131: 282 | K131: 260 | N131: -22 | O131: -0.0780141844
C132: COE | D132: T196 Special Education TCHGCERT | E132: 1 | F132: 0 | G132: 0 | H132: 0 | I132: 0 | J132: 0 | K132: 0 | N132: 0
C133: COE | D133: T197 Early Childhood Educ TCHGCERT | E133: 0 | F133: 1 | G133: 1 | H133: 1 | I133: 0 | K133: 1
C134: COE | D134: E127 Elementary Education BSED | E134: 920 | F134: 896 | G134: 896 | H134: 871 | I134: 844 | J134: 787 | K134: 814 | N134: 27 | O134: 0.03430749682
C135: COE | D135: T198 Elementary Education TCHGCERT | E135: 0 | F135: 0 | G135: 0 | H135: 0 | I135: 0 | J135: 0 | K135: 1 | N135: =K135-J135 -> 1 | O135: =N135/J135 -> 
C136: CHS | D136: S136 Health Education BS | E136: 1 | F136: 0 | G136: 0 | H136: 0 | I136: 0 | J136: 0 | K136: 0 | N136: 0
C137: CHS | D137: S169 Public Health:Health Promot BS | E137: 40 | F137: 42 | G137: 66 | H137: 40 | I137: 56 | J137: 50 | K137: 55 | N137: 5 | O137: 0.1
C138: CHS | D138: S170 Public Health:Environmental BS | E138: 11 | F138: 10 | G138: 10 | H138: 11 | I138: 9 | J138: 18 | K138: 28 | N138: 10 | O138: 0.5555555556
C139: CHS | D139: S171 Nutrition and Dietetics BS | E139: 61 | F139: 86 | G139: 94 | H139: 162 | I139: 197 | J139: 197 | K139: 239 | N139: 42 | O139: 0.2131979695
C140: CHS | D140: S301 Health Sci: General BS | E140: 15 | F140: 16 | G140: 15 | H140: 13 | I140: 16 | J140: 24 | K140: 16 | N140: -8 | O140: -0.3333333333
C141: CHS | D141: S302 Health Sci: Dental Hygiene BS | E141: 2 | F141: 1 | G141: 0 | H141: 0 | I141: 0 | J141: 0 | K141: 0 | N141: 0
C142: CHS | D142: S303 Hlth Sci: Respiratory Care BS | E142: 26 | F142: 33 | G142: 51 | H142: 63 | I142: 64 | J142: 73 | K142: 75 | N142: 2 | O142: 0.02739726027
C143: CHS | D143: S135 Health & Physical Educ BS | E143: 373 | F143: 393 | G143: 435 | H143: 428 | I143: 463 | J143: 456 | K143: 455 | N143: -1 | O143: -0.002192982456
C144: CHS | D144: S138 Exercise Science Specialist BS | E144: 180 | F144: 190 | G144: 182 | H144: 185 | I144: 175 | J144: 217 | K144: 277 | N144: 60 | O144: 0.2764976959
C145: CHS | D145: T212 Health & Phys Educ TCHGCERT | E145: 0 | F145: 0 | G145: 0 | H145: 40 | I145: 0 | J145: 0 | K145: 20 | N145: 20
C146: CHS | D146: T212 Physical Education TCHGCERT | E146: 35 | F146: 26 | G146: 35 | I146: 24 | J146: 9
C147: CHS | D147: S156 Nursing BSN | E147: 291 | F147: 324 | G147: 332 | H147: 292 | I147: 262 | J147: 264 | K147: 286 | N147: 22 | O147: 0.08333333333
C148: CHS | D148: S166 RN to BSN | E148: 0 | F148: 0 | G148: 0 | H148: 0 | I148: 28 | J148: 51 | K148: 69 | N148: 18 | O148: 0.3529411765
C149: CHS | D149: S105 Athletic Training BS | E149: 100 | F149: 101 | G149: 111 | H149: 112 | I149: 120 | J149: 115 | K149: 135 | N149: 20 | O149: 0.1739130435
C150: CHS | D150: A116 Communicative Disorders BA | E150: 63 | F150: 58 | G150: 79 | H150: 88 | I150: 100 | J150: 111 | K150: 106 | N150: -5 | O150: -0.04504504505
C151: CVPA | D151: M175 Music: Keybrd Perf - Pedago BM | E151: 0 | F151: 1 | G151: 0 | H151: 0 | I151: 0 | J151: 0 | K151: 0 | N151: 0
C152: CVPA | D152: M188 Music - Performance BM | E152: 0 | F152: 45 | G152: 38 | H152: 41 | I152: 41 | J152: 42 | K152: 54 | N152: 12 | O152: 0.2857142857
C153: CVPA | D153: A104 Studio Arts BA | G153: 25 | H153: 30 | I153: 36 | J153: 33 | K153: 38 | N153: 5 | O153: 0.1515151515
C154: CVPA | D154: F190 Studio Arts BFA | G154: 192 | H154: 197 | I154: 147 | J154: 144 | K154: 139 | N154: -5 | O154: -0.03472222222
C155: CVPA | D155: M151 Music: Instrumental Perform BM | E155: 14 | N155: 0
C156: CVPA | D156: M188 Music - Performance BM | E156: 27 | N156: 0
C157: CVPA | D157: M152 Music: Keyboard Performance BM | E157: 2 | N157: 0
C158: CVPA | D158: M175 Music: Keybrd Perf - Pedago BM | E158: 1 | N158: 0
C159: CVPA | D159: M145 Music: Elective Studies BM | E159: 35 | F159: 30 | G159: 32 | H159: 34 | I159: 34 | J159: 25 | K159: 27 | N159: 2 | O159: 0.08
C160: CVPA | D160: M150 Music: Composition BM | E160: 8 | F160: 5 | G160: 2 | H160: 1 | I160: 0 | J160: 0 | K160: 0 | N160: 0
C161: CVPA | D161: M153 Music: Theory BM | E161: 10 | F161: 3 | G161: 0 | H161: 0 | I161: 0 | J161: 0 | K161: 0 | N161: 0
C162: CVPA | D162: M190 Music: Theory & Composition BM | E162: 2 | F162: 6 | G162: 8 | H162: 10 | I162: 11 | J162: 14 | K162: 14 | N162: 0 | O162: 0
C163: CVPA | D163: M147 Music Educ: Instrument BM | E163: 179 | F163: 195 | G163: 211 | H163: 186 | I163: 213 | J163: 225 | K163: 225 | N163: 0 | O163: 0
C164: CVPA | D164: M148 Music Educ: Voice BM | E164: 87 | F164: 101 | G164: 98 | H164: 95 | I164: 94 | J164: 94 | K164: 94 | N164: 0 | O164: 0
C165: CVPA | D165: M149 Music Educ: Keyboard BM | E165: 42 | F165: 35 | G165: 25 | H165: 25 | I165: 33 | J165: 33 | K165: 34 | N165: 1 | O165: 0.0303030303
C166: CVPA | D166: S147 Music Educ: General-Instrum BS | E166: 10 | F166: 0 | G166: 0 | H166: 0 | I166: 0 | J166: 0 | K166: 0 | N166: 0
C167: CVPA | D167: S149 Music Ed: Vocal/Choral-Voic BS | E167: 3 | F167: 0 | G167: 0 | H167: 0 | I167: 0 | J167: 0 | K167: 0 | N167: 0
C168: CVPA | D168: S314 Music Educ: General-Voice BS | E168: 2 | F168: 0 | G168: 0 | H168: 0 | I168: 0 | J168: 0 | K168: 0 | N168: 0
C169: CVPA | D169: T214 Music Education TCHGCERT | E169: 3 | F169: 3 | G169: 2 | H169: 2 | I169: 2 | K169: 1
C170: CVPA | D170: A191 Theatre and Dance: Perfmnce BA | G170: 0 | H170: 27 | I170: 0 | J170: 0 | K170: 9 | N170: 9
C171: CVPA | D171: A191 Theatre Arts: Performance BA | G171: 0 | H171: 0 | I171: 13 | J171: 14 | K171: 0 | N171: -14 | O171: -1
C172: CVPA | D172: A194 Theatre and Dnce: Mus Thtre BA | G172: 39 | H172: 22 | I172: 0 | J172: 0 | K172: 15 | N172: 15
C173: CVPA | D173: A194 Theatre Arts: Mus Theatre BA | G173: 30 | H173: 0 | I173: 17 | J173: 13 | K173: 0 | N173: -13 | O173: -1
C174: CVPA | D174: A195 Theatre and Dnce: Tech Prod BA | G174: 0 | H174: 9 | I174: 0 | J174: 0 | K174: 10 | N174: 10
C175: CVPA | D175: A195 Theatre Arts: Tech Producti BA | G175: 15 | H175: 0 | I175: 9 | J175: 4 | K175: 0 | N175: -4 | O175: -1
C176: CVPA | D176: A888 Theatre and Dance: General BA | G176: 0 | H176: 50 | I176: 0 | J176: 0 | K176: 68 | N176: 68
C177: CVPA | D177: A888 Theatre Arts: General BA | G177: 14 | H177: 0 | I177: 67 | J177: 64 | K177: 0 | N177: -64 | O177: -1
C178: CVPA | D178: M155 Music: Vocal Performance BM | E178: 7 | N178: 0
C184: College | D184: Descrip | E184: Fall 02 | F184: Fall 03 | G184: Fall 04 | H184: Fall 05 | I184: Fall 06 | J184: Fall 07 | K184: Fall 08
C185: CAS | D185: C204 Gerontology CERTIF | E185: 1 | F185: 2 | G185: 2 | H185: 0 | I185: 0 | J185: 0 | K185: 1
C186: CAS | D186: S175 Long-Term Hlth Care MSA | E186: 2 | F186: 5 | G186: 5 | H186: 4 | I186: 2 | J186: 0 | K186: 0
C187: CAS | D187: PG02 Biology PROF-GRW | E187: 0 | F187: 0 | G187: 3 | H187: 3 | I187: 0 | J187: 1 | K187: 2
C188: CAS | D188: S173 Biology MS | E188: 9 | F188: 16 | G188: 15 | H188: 17 | I188: 18 | J188: 14 | K188: 9
C189: CAS | D189: S174 Biology - Thesis MS | E189: 11 | F189: 7 | G189: 8 | H189: 6 | I189: 8 | J189: 18 | K189: 17
C190: CAS | D190: S561 Biology - Natural Science MS | E190: 1 | F190: 0 | G190: 0 | H190: 0 | I190: 0 | J190: 0 | K190: 0
C191: CAS | D191: T181 Biology TCHGCERT | E191: 0 | F191: 0 | G191: 0 | H191: 0 | I191: 0 | J191: 0 | K191: 2
C192: CAS | D192: A105 Physical Science: Chemistry MA | E192: 1 | F192: 0 | G192: 0 | H192: 0 | I192: 0 | J192: 0 | K192: 0
C193: CAS | D193: E104 Chemistry MED | E193: 2 | F193: 2 | G193: 1 | H193: 0 | I193: 0 | J193: 0 | K193: 0
C194: CAS | D194: PG03 Chemistry PROF-GRW | E194: 1 | F194: 0 | G194: 0 | H194: 0 | I194: 0 | J194: 0 | K194: 0
C195: CAS | D195: S102 Chemistry MS | E195: 4 | F195: 2 | G195: 1 | H195: 2 | I195: 0 | J195: 0 | K195: 0
C196: CAS | D196: S103 Clinical Chemistry MS | E196: 10 | F196: 5 | G196: 3 | H196: 2 | I196: 1 | J196: 0 | K196: 0
C197: CAS | D197: A506 Communication Studies MA | E197: 14 | F197: 22 | G197: 17 | H197: 17 | I197: 18 | J197: 22 | K197: 19
C198: CAS | D198: C206 Computer Science Cert PROF-GRW | E198: 4 | F198: 1 | G198: 2 | H198: 0 | I198: 0 | J198: 3 | K198: 1
C199: CAS | D199: PG05 Computer Science PROF-GRW | E199: 1 | F199: 1 | G199: 0 | H199: 0 | I199: 0 | J199: 0 | K199: 1
C200: CAS | D200: S518 Computer Science MS | E200: 37 | F200: 30 | G200: 24 | H200: 28 | I200: 23 | J200: 24 | K200: 18
C201: CAS | D201: A107 English MA | E201: 42 | F201: 60 | G201: 69 | H201: 45 | I201: 47 | J201: 61 | K201: 52
C202: CAS | D202: A124 Writing, Tching & Criticism MA | E202: 0 | F202: 0 | G202: 5 | H202: 13 | I202: 13 | J202: 2 | K202: 0
C203: CAS | D203: A173 TESL MA | E203: 32 | F203: 46 | G203: 51 | H203: 44 | I203: 36 | J203: 27 | K203: 28
C204: CAS | D204: A232 English - Non-Thesis Option MA | E204: 0 | F204: 1 | G204: 0 | H204: 0 | I204: 0 | J204: 0 | K204: 0
C205: CAS | D205: C220 TESL CERTIF | E205: 0 | F205: 2 | G205: 4 | H205: 4 | I205: 4 | J205: 8 | K205: 6
C206: CAS | D206: PG31 TESL PROF-GRW | E206: 7 | F206: 5 | G206: 5 | H206: 0 | I206: 0 | J206: 0 | K206: 0
C207: CAS | D207: T182 English TCHGCERT | E207: 0 | F207: 0 | G207: 0 | H207: 0 | I207: 0 | J207: 0 | K207: 7
C208: CAS | D208: A114 Physical Science: Earth Sci MA | E208: 12 | F208: 12 | G208: 8 | H208: 13 | I208: 8 | J208: 6 | K208: 22
... 109 more rows

Sheet Historic Deg Counts 2003 - 07 (hidden)
A1: West Chester University's Historic Degree Counts 2003 - 2007
B4: Graduate Level | H4: Undergraduate Level
B6: Degree Type
B8: Degree Type | C8: Degree Year | G8: Total | H8: Degree Type | I8: Degree Year | M8: Total
C9: 2003-04 | D9: 2004-05 | E9: 2005-06 | F9: 2006-07 | I9: 2003-04 | J9: 2004-05 | K9: 2005-06 | L9: 2006-07
B10: MA | C10: 131 | D10: 123 | E10: 125 | F10: 142 | G10: =SUM(C10:F10) -> 521 | H10: BA | I10: 445 | J10: 524 | K10: 550 | L10: 526 | M10: =SUM(I10:L10) -> 2045
B11: MBA | C11: 53 | D11: 55 | E11: 41 | F11: 32 | G11: =SUM(C11:F11) -> 181 | H11: BFA | I11: 47 | J11: 48 | K11: 63 | L11: 62 | M11: =SUM(I11:L11) -> 220
B12: MED | C12: 157 | D12: 172 | E12: 162 | F12: 188 | G12: 679 | H12: BM | I12: 57 | J12: 82 | K12: 69 | L12: 66 | M12: 274
B13: MM | C13: 29 | D13: 8 | E13: 12 | F13: 26 | G13: 75 | H13: BS | I13: 820 | J13: 819 | K13: 958 | L13: 953 | M13: 3550
B14: MPH | C14: 20 | D14: 16 | E14: 21 | F14: 44 | G14: 101 | H14: BSED | I14: 439 | J14: 416 | K14: 406 | L14: 422 | M14: 1683
B15: MS | C15: 102 | D15: 96 | E15: 80 | F15: 74 | G15: 352 | H15: BSN | I15: 68 | J15: 83 | K15: 82 | L15: 89 | M15: 322
B16: MSA | C16: 0 | D16: 0 | E16: 33 | F16: 29 | G16: 62 | H16: BSW | I16: 25 | J16: 48 | K16: 38 | L16: 42 | M16: 153
B17: MSN | C17: 12 | D17: 7 | E17: 12 | F17: 12 | G17: 43 | H17: Total | I17: =SUM(I10:I16) -> 1901 | J17: =SUM(J10:J16) -> 2020 | K17: =SUM(K10:K16) -> 2166 | L17: =SUM(L10:L16) -> 2160 | M17: =SUM(M10:M16) -> 8247
B18: MSW | C18: 17 | D18: 28 | E18: 37 | F18: 32 | G18: 114
B19: Total | C19: =SUM(C10:C18) -> 521 | D19: =SUM(D10:D18) -> 505 | E19: =SUM(E10:E18) -> 523 | F19: =SUM(F10:F18) -> 579 | G19: 2128
B21: College
B23: College | C23: 2003-04 | D23: 2004-05 | E23: 2005-06 | F23: 2006-07 | G23: Total | H23: College | I23: 2003-04 | J23: 2004-05 | K23: 2005-06 | L23: 2006-07 | M23: Total
B24: College of Arts & Sciences | C24: 110 | D24: 126 | E24: 131 | F24: 150 | G24: =SUM(C24:F24) -> 517 | H24: College of Arts & Sciences | I24: 711 | J24: 723 | K24: 795 | L24: 782 | M24: =SUM(I24:L24) -> 3011
B25: College of Business & Public Affairs | C25: 110 | D25: 113 | E25: 111 | F25: 95 | G25: =SUM(C25:F25) -> 429 | H25: College of Business & Public Affairs | I25: 555 | J25: 552 | K25: 566 | L25: 509 | M25: =SUM(I25:L25) -> 2182
B26: College of Education | C26: 184 | D26: 189 | E26: 173 | F26: 197 | G26: =SUM(C26:F26) -> 743 | H26: College of Education | I26: 360 | J26: 351 | K26: 333 | L26: 357 | M26: =SUM(I26:L26) -> 1401
B27: College of Health Sciences | C27: 87 | D27: 69 | E27: 94 | F27: 110 | G27: =SUM(C27:F27) -> 360 | H27: College of Health Sciences | I27: 218 | J27: 247 | K27: 319 | L27: 366 | M27: =SUM(I27:L27) -> 1150
B28: College of Visual & Performing Arts | C28: 30 | D28: 8 | E28: 14 | F28: 27 | G28: =SUM(C28:F28) -> 79 | H28: College of Visual & Performing Arts | I28: 57 | J28: 147 | K28: 153 | L28: 146 | M28: =SUM(I28:L28) -> 503
B29: Total | C29: =SUM(C24:C28) -> 521 | D29: =SUM(D24:D28) -> 505 | E29: =SUM(E24:E28) -> 523 | F29: =SUM(F24:F28) -> 579 | G29: =SUM(G24:G28) -> 2128 | H29: Total | I29: =SUM(I24:I28) -> 1901 | J29: =SUM(J24:J28) -> 2020 | K29: =SUM(K24:K28) -> 2166 | L29: =SUM(L24:L28) -> 2160 | M29: =SUM(M24:M28) -> 8247
B31: % Change in Historic Degree Counts
B34: Degree Type | D34: % change from 2004-05 to 2005-06 | F34: % change from 2005-06 to 2006-07 | H34: Degree Type | I34: % change from 2004-05 to 2005-06 | K34: % change from 2005-06 to 2006-07
B36: MA | D36: 0.016 | F36: 0.1197183099 | H36: BA | I36: 0.04727272727 | K36: -0.04562737643
B37: MBA | D37: -0.3414634146 | F37: -0.28125 | H37: BFA | I37: 0.2380952381 | K37: -0.01612903226
B38: MED | D38: -0.06172839506 | F38: 0.1382978723 | H38: BM | I38: -0.1884057971 | K38: -0.04545454545
B39: MM | D39: 0.3333333333 | F39: 0.5384615385 | H39: BS | I39: 0.1450939457 | K39: -0.005246589717
B40: MPH | D40: 0.2380952381 | F40: 0.5227272727 | H40: BSED | I40: -0.02463054187 | K40: 0.03791469194
B41: MS | D41: -0.2 | F41: -0.08108108108 | H41: BSN | I41: -0.01219512195 | K41: 0.07865168539
B42: MSA | D42: 1 | F42: -0.1379310345 | H42: BSW | I42: -0.2631578947 | K42: 0.09523809524
B43: MSN | D43: 0.4166666667 | F43: 0 | H43: Total | I43: 0.06740535549 | K43: -0.002777777778
B44: MSW | D44: 0.2432432432 | F44: -0.15625
B45: Total | D45: 0.034416826 | F45: 0.09671848014 | H45: College
B46: College | H46: College of Arts & Sciences | I46: 0.09056603774 | K46: -0.01662404092
B47: College of Arts & Sciences | D47: 0.03816793893 | F47: 0.1266666667 | H47: College of Business & Public Affairs | I47: 0.02473498233 | K47: -0.1119842829
B48: College of Business & Public Affairs | D48: -0.01801801802 | F48: -0.1684210526 | H48: College of Education | I48: -0.05405405405 | K48: 0.06722689076
B49: College of Education | D49: -0.09248554913 | F49: 0.1218274112 | H49: College of Health Sciences | I49: 0.2257053292 | K49: 0.1284153005
B50: College of Health Sciences | D50: 0.2659574468 | F50: 0.1454545455 | H50: College of Visual & Performing Arts | I50: 0.03921568627 | K50: -0.04794520548
B51: College of Visual & Performing Arts | D51: 0.4285714286 | F51: 0.4814814815 | H51: Total | I51: 0.06740535549 | K51: -0.002777777778
B52: Total | D52: 0.034416826 | F52: 0.09671848014

Sheet Scrap work (hidden)
A1: Degree Type | B1: Degree Year | L1: Total | N1: Degree Type | O1: Degree Year | Y1: Total
B2: 2003-04 | C2: 2004-05 | D2: N | E2: % | F2: % CHANGE | G2: 2005-06 | H2: N | I2: % | J2: % CHANGE | K2: 2006-07 | O2: 2003-04 | P2: 2004-05 | Q2: N | R2: % | S2: % CHANGE | T2: 2005-06 | U2: N | V2: % | W2: % CHANGE | X2: 2006-07
A3: MA | B3: 131 | C3: 123 | D3: =G3-C3 -> 2 | E3: =C3/G3 -> 0.984 | F3: =100%-E3 -> 0.016 | G3: 125 | H3: =K3-G3 -> 17 | I3: =G3/K3 -> 0.8802816901 | J3: =100%-I3 -> 0.1197183099 | K3: 142 | L3: =SUM(B3:K3) -> 542 | N3: BA | O3: 445 | P3: 524 | Q3: =T3-P3 -> 26 | R3: =P3/T3 -> 0.9527272727 | S3: =100%-R3 -> 0.04727272727 | T3: 550 | U3: =X3-T3 -> -24 | V3: =T3/X3 -> 1.045627376 | W3: =100%-V3 -> -0.04562737643 | X3: 526 | Y3: =SUM(O3:X3) -> 2049
A4: MBA | B4: 53 | C4: 55 | D4: -14 | E4: =C4/G4 -> 1.341463415 | F4: -0.3414634146 | G4: 41 | H4: =K4-G4 -> -9 | I4: =G4/K4 -> 1.28125 | J4: =100%-I4 -> -0.28125 | K4: 32 | L4: 160 | N4: BFA | O4: 47 | P4: 48 | Q4: =T4-P4 -> 15 | R4: =P4/T4 -> 0.7619047619 | S4: =100%-R4 -> 0.2380952381 | T4: 63 | U4: =X4-T4 -> -1 | V4: =T4/X4 -> 1.016129032 | W4: =100%-V4 -> -0.01612903226 | X4: 62 | Y4: 236
A5: MED | B5: 157 | C5: 172 | D5: -10 | E5: 1.061728395 | F5: -0.06172839506 | G5: 162 | H5: 26 | I5: 0.8617021277 | J5: 0.1382978723 | K5: 188 | L5: 697 | N5: BM | O5: 57 | P5: 82 | Q5: -13 | R5: 1.188405797 | S5: -0.1884057971 | T5: 69 | U5: -3 | V5: 1.045454545 | W5: -0.04545454545 | X5: 66 | Y5: 260
A6: MM | B6: 29 | C6: 8 | D6: 4 | E6: 0.6666666667 | F6: 0.3333333333 | G6: 12 | H6: 14 | I6: 0.4615384615 | J6: 0.5384615385 | K6: 26 | L6: 95 | N6: BS | O6: 820 | P6: 819 | Q6: 139 | R6: 0.8549060543 | S6: 0.1450939457 | T6: 958 | U6: -5 | V6: 1.00524659 | W6: -0.005246589717 | X6: 953 | Y6: 3686
A7: MPH | B7: 20 | C7: 16 | D7: 5 | E7: 0.7619047619 | F7: 0.2380952381 | G7: 21 | H7: 23 | I7: 0.4772727273 | J7: 0.5227272727 | K7: 44 | L7: 131 | N7: BSED | O7: 439 | P7: 416 | Q7: -10 | R7: 1.024630542 | S7: -0.02463054187 | T7: 406 | U7: 16 | V7: 0.9620853081 | W7: 0.03791469194 | X7: 422 | Y7: 1691
A8: MS | B8: 102 | C8: 96 | D8: -16 | E8: 1.2 | F8: -0.2 | G8: 80 | H8: -6 | I8: 1.081081081 | J8: -0.08108108108 | K8: 74 | L8: 332 | N8: BSN | O8: 68 | P8: 83 | Q8: -1 | R8: 1.012195122 | S8: -0.01219512195 | T8: 82 | U8: 7 | V8: 0.9213483146 | W8: 0.07865168539 | X8: 89 | Y8: 330
A9: MSA | B9: 0 | C9: 0 | D9: 33 | E9: 0 | F9: 1 | G9: 33 | H9: -4 | I9: 1.137931034 | J9: -0.1379310345 | K9: 29 | L9: 93 | N9: BSW | O9: 25 | P9: 48 | Q9: -10 | R9: 1.263157895 | S9: -0.2631578947 | T9: 38 | U9: 4 | V9: 0.9047619048 | W9: 0.09523809524 | X9: 42 | Y9: 149
A10: MSN | B10: 12 | C10: 7 | D10: 5 | E10: 0.5833333333 | F10: 0.4166666667 | G10: 12 | H10: 0 | I10: 1 | J10: 0 | K10: 12 | L10: 50 | N10: Total | O10: =SUM(O3:O9) -> 1901 | P10: =SUM(P3:P9) -> 2020 | Q10: 146 | R10: 0.9325946445 | S10: 0.06740535549 | T10: =SUM(T3:T9) -> 2166 | U10: -6 | V10: 1.002777778 | W10: -0.002777777778 | X10: =SUM(X3:X9) -> 2160 | Y10: =SUM(Y3:Y9) -> 8401
A11: MSW | B11: 17 | C11: 28 | D11: 9 | E11: 0.7567567568 | F11: 0.2432432432 | G11: 37 | H11: -5 | I11: 1.15625 | J11: -0.15625 | K11: 32 | L11: 120
A12: Total | B12: =SUM(B3:B11) -> 521 | C12: =SUM(C3:C11) -> 505 | D12: 18 | E12: 0.965583174 | F12: 0.034416826 | G12: =SUM(G3:G11) -> 523 | H12: 56 | I12: =G12/K12 -> 0.9032815199 | J12: 0.09671848014 | K12: =SUM(K3:K11) -> 579 | L12: 2204
A14: College
A16: College | B16: 2003-04 | C16: 2004-05 | D16: N | E16: % | F16: % CHANGE | G16: 2005-06 | H16: N | I16: % | J16: % CHANGE | K16: 2006-07 | L16: Total | N16: College | O16: 2003-04 | P16: 2004-05 | Q16: N | R16: % | S16: % CHANGE | T16: 2005-06 | U16: N | V16: % | W16: % CHANGE | X16: 2006-07 | Y16: Total
A17: College of Arts & Sciences | B17: 110 | C17: 126 | D17: =G17-C17 -> 5 | E17: =C17/G17 -> 0.9618320611 | F17: =100%-E17 -> 0.03816793893 | G17: 131 | H17: =K17-G17 -> 19 | I17: =G17/K17 -> 0.8733333333 | J17: =100%-I17 -> 0.1266666667 | K17: 150 | L17: =SUM(B17:K17) -> 543 | N17: College of Arts & Sciences | O17: 711 | P17: 723 | Q17: =T17-P17 -> 72 | R17: =P17/T17 -> 0.9094339623 | S17: =100%-R17 -> 0.09056603774 | T17: 795 | U17: =X17-T17 -> -13 | V17: =T17/X17 -> 1.016624041 | W17: =100%-V17 -> -0.01662404092 | X17: 782 | Y17: =SUM(O17:X17) -> 3072
A18: College of Business & Public Affairs | B18: 110 | C18: 113 | D18: -2 | E18: 1.018018018 | F18: -0.01801801802 | G18: 111 | H18: -16 | I18: 1.168421053 | J18: -0.1684210526 | K18: 95 | L18: =SUM(B18:K18) -> 413 | N18: College of Business & Public Affairs | O18: 555 | P18: 552 | Q18: 14 | R18: 0.9752650177 | S18: 0.02473498233 | T18: 566 | U18: -57 | V18: 1.111984283 | W18: -0.1119842829 | X18: 509 | Y18: =SUM(O18:X18) -> 2141
A19: College of Education | B19: 184 | C19: 189 | D19: -16 | E19: 1.092485549 | F19: -0.09248554913 | G19: 173 | H19: 24 | I19: 0.8781725888 | J19: 0.1218274112 | K19: 197 | L19: =SUM(B19:K19) -> 753 | N19: College of Education | O19: 360 | P19: 351 | Q19: -18 | R19: 1.054054054 | S19: -0.05405405405 | T19: 333 | U19: 24 | V19: 0.9327731092 | W19: 0.06722689076 | X19: 357 | Y19: =SUM(O19:X19) -> 1409
A20: College of Health Sciences | B20: 87 | C20: 69 | D20: 25 | E20: 0.7340425532 | F20: 0.2659574468 | G20: 94 | H20: 16 | I20: 0.8545454545 | J20: 0.1454545455 | K20: 110 | L20: =SUM(B20:K20) -> 403 | N20: College of Health Sciences | O20: 218 | P20: 247 | Q20: 72 | R20: 0.7742946708 | S20: 0.2257053292 | T20: 319 | U20: 47 | V20: 0.8715846995 | W20: 0.1284153005 | X20: 366 | Y20: =SUM(O20:X20) -> 1271
A21: College of Visual & Performing Arts | B21: 30 | C21: 8 | D21: 6 | E21: 0.5714285714 | F21: 0.4285714286 | G21: 14 | H21: 13 | I21: 0.5185185185 | J21: 0.4814814815 | K21: 27 | L21: =SUM(B21:K21) -> 100 | N21: College of Visual & Performing Arts | O21: 57 | P21: 147 | Q21: 6 | R21: 0.9607843137 | S21: 0.03921568627 | T21: 153 | U21: -7 | V21: 1.047945205 | W21: -0.04794520548 | X21: 146 | Y21: =SUM(O21:X21) -> 504
A22: Total | B22: =SUM(B17:B21) -> 521 | C22: =SUM(C17:C21) -> 505 | D22: 18 | E22: 0.965583174 | F22: 0.034416826 | G22: =SUM(G17:G21) -> 523 | H22: 56 | I22: 0.9032815199 | J22: 0.09671848014 | K22: =SUM(K17:K21) -> 579 | L22: =SUM(L17:L21) -> 2212 | N22: Total | O22: =SUM(O17:O21) -> 1901 | P22: =SUM(P17:P21) -> 2020 | Q22: 146 | R22: 0.9325946445 | S22: 0.06740535549 | T22: =SUM(T17:T21) -> 2166 | U22: -6 | V22: 1.002777778 | W22: -0.002777777778 | X22: =SUM(X17:X21) -> 2160 | Y22: =SUM(Y17:Y21) -> 8397
A25: Location of files
A27: F/Research/Internal/ProgramReview/ProgramReview08_09

Sheet Fall 2008 Staff Totals (hidden)
A1: West Chester University's Staff Gender and Race/Ethnicity Totals
A2: Fall 2008
A4: University Summary
B6: Gender | C6: H10 | E6: H20 | G6: H30 | I6: H40 | K6: H50 | M6: H60 | O6: H70 | Q6: Total
C7: Executive | E7: Faculty | G7: Other Prof. | I7: Clerical | K7: Technical | M7: Skilled Crafts | O7: Service
C8: N | D8: % | E8: N | F8: % | G8: N | H8: % | I8: N | J8: % | K8: N | L8: % | M8: N | N8: % | O8: N | P8: % | Q8: N | R8: %
B9: Female | C9: 19 | D9: =C9/C$11 -> 0.387755102 | E9: 474 | F9: =E9/E$11 -> 0.5380249716 | G9: 149 | H9: =G9/G$11 -> 0.6032388664 | I9: 170 | J9: =I9/I$11 -> 0.8762886598 | K9: 30 | L9: =K9/K$11 -> 0.7317073171 | M9: 0 | N9: =M9/M$11 -> 0 | O9: 55 | P9: =O9/O$11 -> 0.3125 | Q9: 897 | R9: =Q9/Q$11 -> 0.5446265938
B10: Male | C10: 30 | D10: =C10/C$11 -> 0.612244898 | E10: 407 | F10: =E10/E$11 -> 0.4619750284 | G10: 98 | H10: =G10/G$11 -> 0.3967611336 | I10: 24 | J10: =I10/I$11 -> 0.1237113402 | K10: 11 | L10: =K10/K$11 -> 0.2682926829 | M10: 59 | N10: =M10/M$11 -> 1 | O10: 121 | P10: =O10/O$11 -> 0.6875 | Q10: 750 | R10: =Q10/Q$11 -> 0.4553734062
B11: Total | C11: =SUM(C9:C10) -> 49 | D11: =C11/C$11 -> 1 | E11: =SUM(E9:E10) -> 881 | F11: =E11/E$11 -> 1 | G11: =SUM(G9:G10) -> 247 | H11: =G11/G$11 -> 1 | I11: =SUM(I9:I10) -> 194 | J11: =I11/I$11 -> 1 | K11: =SUM(K9:K10) -> 41 | L11: =K11/K$11 -> 1 | M11: =SUM(M9:M10) -> 59 | N11: =M11/M$11 -> 1 | O11: =SUM(O9:O10) -> 176 | P11: =O11/O$11 -> 1 | Q11: =SUM(Q9:Q10) -> 1647 | R11: =Q11/Q$11 -> 1
B14: Race/Ethnicity | C14: H10 | E14: H20 | G14: H30 | I14: H40 | K14: H50 | M14: H60 | O14: H70 | Q14: Total
C15: Executive | E15: Faculty | G15: Other Prof. | I15: Clerical | K15: Technical | M15: Skilled Crafts | O15: Service
C16: N | D16: % | E16: N | F16: % | G16: N | H16: % | I16: N | J16: % | K16: N | L16: % | M16: N | N16: % | O16: N | P16: % | Q16: N | R16: %
B17: Black/Not Hispanic origin | C17: 3 | D17: =C17/C$22 -> 0.0612244898 | E17: 44 | F17: =E17/E$22 -> 0.04994324631 | G17: 20 | H17: =G17/G$22 -> 0.08097165992 | I17: 25 | J17: =I17/I$22 -> 0.1288659794 | K17: 4 | L17: =K17/K$22 -> 0.09756097561 | M17: 4 | N17: =M17/M$22 -> 0.06779661017 | O17: 82 | P17: =O17/O$22 -> 0.4659090909 | Q17: 182 | R17: =Q17/Q$22 -> 0.1105039466
B18: American Indian/Alaskan | C18: 0 | D18: 0 | E18: 2 | F18: 0.00227014756 | G18: 0 | H18: 0 | I18: 0 | J18: 0 | K18: 0 | L18: 0 | M18: 0 | N18: 0 | O18: 0 | P18: 0 | Q18: 2 | R18: 0.001214329083
B19: Asian/Pacific Islander/Hawaiian | C19: 3 | D19: 0.0612244898 | E19: 43 | F19: 0.04880817253 | G19: 6 | H19: 0.02429149798 | I19: 1 | J19: 0.005154639175 | K19: 1 | L19: 0.0243902439 | M19: 1 | N19: 0.01694915254 | O19: 6 | P19: 0.03409090909 | Q19: 61 | R19: 0.03703703704
B20: Hispanic | C20: 0 | D20: 0 | E20: 19 | F20: 0.02156640182 | G20: 2 | H20: 0.008097165992 | I20: 4 | J20: 0.0206185567 | K20: 1 | L20: 0.0243902439 | M20: 1 | N20: 0.01694915254 | O20: 8 | P20: 0.04545454545 | Q20: 35 | R20: 0.02125075896
B21: White/Not Hispanic origin | C21: 43 | D21: 0.8775510204 | E21: 773 | F21: 0.8774120318 | G21: 219 | H21: 0.8866396761 | I21: 164 | J21: 0.8453608247 | K21: 35 | L21: 0.8536585366 | M21: 53 | N21: 0.8983050847 | O21: 80 | P21: 0.4545454545 | Q21: 1367 | R21: 0.8299939284
B22: Total | C22: =SUM(C17:C21) -> 49 | D22: 1 | E22: =SUM(E17:E21) -> 881 | F22: 1 | G22: =SUM(G17:G21) -> 247 | H22: 1 | I22: =SUM(I17:I21) -> 194 | J22: 1 | K22: =SUM(K17:K21) -> 41 | L22: 1 | M22: =SUM(M17:M21) -> 59 | N22: 1 | O22: =SUM(O17:O21) -> 176 | P22: 1 | Q22: =SUM(Q17:Q21) -> 1647 | R22: 1
N66: EEO Category | R66: University Total
R68: N | S68: %
N69: H10 | O69: Executive | R69: 49 | S69: 0.02975106254
N70: H20 | O70: Faculty | R70: 881 | S70: 0.5349119611
N71: H30 | O71: Other | R71: 247 | S71: 0.1499696418
N72: H40 | O72: Clerical | R72: 194 | S72: 0.1177899211
N73: H50 | O73: Technical | R73: 41 | S73: 0.02489374621
N74: H60 | O74: Skill Crafts | R74: 59 | S74: 0.03582270795
N75: H70 | O75: Service | R75: 176 | S75: 0.1068609593
N76: Total | R76: 1647 | S76: 1

Sheet Dynamic Charts (hidden)
A2: Student Level | B2: College | C2: Descrip | D2: Fall 02 | E2: Fall 03 | F2: Fall 04 | G2: Fall 05 | H2: Fall 06 | I2: Fall 07 | J2: Fall 08
A3: Undergrad | B3: CAS | C3: A102 Anthropology BA | D3: 33 | E3: 33 | F3: 29 | G3: 29 | H3: 31 | I3: 42 | J3: 39
A4: Undergrad | B4: CAS | C4: A103 Anthropology-Sociology BA | D4: 10 | E4: 4 | F4: 2 | G4: 1 | H4: 0 | I4: 0 | J4: 0
A5: Undergrad | B5: CAS | C5: A185 Sociology BA | D5: 99 | E5: 97 | F5: 81 | G5: 77 | H5: 94 | I5: 92 | J5: 92
A6: Undergrad | B6: CAS | C6: E174 Social Studies: Anthropol BSED | D6: 3 | E6: 0 | F6: 0 | G6: 0 | H6: 0 | I6: 0 | J6: 0
A7: Undergrad | B7: CAS | C7: E182 Social Studies: Sociology BSED | D7: 3 | E7: 1 | F7: 1 | G7: 0 | H7: 0 | I7: 0 | J7: 0
A8: Undergrad | B8: CAS | C8: A104 Studio Arts BA | D8: 31 | E8: 32 | F8: 0 | G8: 0 | H8: 0 | I8: 0 | J8: 0
A9: Undergrad | B9: CAS | C9: F190 Studio Arts BFA | D9: 194 | E9: 192 | F9: 0 | G9: 0 | H9: 0 | I9: 0 | J9: 0
A10: Undergrad | B10: CAS | C10: A106 Biology BA | D10: 16 | E10: 15 | F10: 19 | G10: 18 | H10: 23 | I10: 21 | J10: 17
A11: Undergrad | B11: CAS | C11: E106 Biology BSED | D11: 40 | E11: 28 | F11: 28 | G11: 37 | H11: 48 | I11: 37 | J11: 36
A12: Undergrad | B12: CAS | C12: S106 Biology BS | D12: 120 | E12: 117 | F12: 106 | G12: 121 | H12: 135 | I12: 170 | J12: 200
A13: Undergrad | B13: CAS | C13: S107 Biology: Microbiology BS | D13: 22 | E13: 13 | F13: 15 | G13: 14 | H13: 19 | I13: 25 | J13: 26
A14: Undergrad | B14: CAS | C14: S108 Biology: Ecology BS | D14: 24 | E14: 29 | F14: 26 | G14: 23 | H14: 14 | I14: 12 | J14: 23
A15: Undergrad | B15: CAS | C15: S109 Biology: Medical Technology BS | D15: 9 | E15: 11 | F15: 18 | G15: 21 | H15: 26 | I15: 19 | J15: 19
A16: Undergrad | B16: CAS | C16: S115 Biology: Cell & Molecular BS | D16: 48 | E16: 49 | F16: 50 | G16: 35 | H16: 31 | I16: 32 | J16: 33
A17: Undergrad | B17: CAS | C17: T193 Biology TCHGCERT | D17: 2 | E17: 2 | F17: 3 | G17: 2 | H17: 3 | I17: 0 | J17: 1
A18: Undergrad | B18: CAS | C18: E112 Chemistry BSED | D18: 8 | E18: 10 | F18: 14 | G18: 14 | H18: 18 | I18: 19 | J18: 20
A19: Undergrad | B19: CAS | C19: S111 Chemistry-Biology * BS | D19: 31 | E19: 33 | F19: 37 | G19: 64 | H19: 70 | I19: 75 | J19: 81
A20: Undergrad | B20: CAS | C20: S112 Chemistry BS | D20: 25 | E20: 29 | F20: 35 | G20: 42 | H20: 39 | I20: 41 | J20: 32
A21: Undergrad | B21: CAS | C21: S114 Biochemistry BS | D21: 5 | E21: 14 | F21: 21 | G21: 23 | H21: 24 | I21: 21 | J21: 26
A22: Undergrad | B22: CAS | C22: S129 Foren & Toxicol Chemistry BS | D22: 83 | E22: 101 | F22: 103 | G22: 109 | H22: 92 | I22: 86 | J22: 73
A23: Undergrad | B23: CAS | C23: T194 Chemistry TCHGCERT | D23: 2 | E23: 3 | F23: 4 | G23: 3 | H23: 1 | I23: 1 | J23: 2
A24: Undergrad | B24: CAS | C24: A188 Communication Studies BA | D24: 311 | E24: 339 | F24: 363 | G24: 365 | H24: 335 | I24: 328 | J24: 330
A25: Undergrad | B25: CAS | C25: E115 Communication-Comm/Tha BSED | D25: 12 | E25: 16 | F25: 13 | G25: 15 | H25: 8 | I25: 8 | J25: 3
A26: Undergrad | B26: CAS | C26: E118 Communication-Theatre/Med BSED | D26: 1 | E26: 1 | F26: 0 | G26: 0 | H26: 0 | I26: 0 | J26: 0
A27: Undergrad | B27: CAS | C27: E119 Communication - Media/Com BSED | D27: 1 | E27: 0 | F27: 1 | G27: 0 | H27: 0 | I27: 1 | J27: 1
A28: Undergrad | B28: CAS | C28: T195 Communication TCHGCERT | D28: 1 | E28: 2 | F28: 1 | G28: 0 | H28: 0 | I28: 0 | J28: 0
A29: Undergrad | B29: CAS | C29: T195 Communications TCHGCERT | D29: 0 | E29: 0 | F29: 0 | G29: 0 | H29: 0 | I29: 0 | J29: 1
A30: Undergrad | B30: CAS | C30: S118 Computer Science BS | D30: 188 | E30: 175 | F30: 138 | G30: 113 | H30: 107 | I30: 107 | J30: 110
A31: Undergrad | B31: CAS | C31: S311 Computer Science - Comp Sys BS | D31: 1 | E31: 1 | F31: 0 | G31: 0 | H31: 0 | I31: 0 | J31: 0
A32: Undergrad | B32: CAS | C32: A117 Comparative Literature BA | D32: 10 | E32: 11 | F32: 9 | G32: 7 | H32: 6 | I32: 0 | J32: 0
A33: Undergrad | B33: CAS | C33: A142 Literature BA | D33: 138 | E33: 166 | F33: 179 | G33: 217 | H33: 211 | I33: 0 | J33: 0
A34: Undergrad | B34: CAS | C34: A146 English BA | D34: 0 | E34: 0 | F34: 0 | G34: 0 | H34: 0 | I34: 219 | J34: 256
A35: Undergrad | B35: CAS | C35: E128 English BSED | D35: 128 | E35: 138 | F35: 148 | G35: 179 | H35: 180 | I35: 196 | J35: 203
A36: Undergrad | B36: CAS | C36: T199 English TCHGCERT | D36: 12 | E36: 9 | F36: 12 | G36: 8 | H36: 2 | I36: 1 | J36: 2
A37: Undergrad | B37: CAS | C37: E122 Earth-Space Science - Env BSED | D37: 4 | E37: 2 | F37: 0 | G37: 0 | H37: 0 | I37: 0 | J37: 0
A38: Undergrad | B38: CAS | C38: E123 Earth-Space Science BSED | D38: 15 | E38: 20 | F38: 33 | G38: 34 | H38: 29 | I38: 25 | J38: 21
A39: Undergrad | B39: CAS | C39: E124 Earth-Space Sci - Geology BSED | D39: 16 | E39: 23 | F39: 8 | G39: 2 | H39: 0 | I39: 0 | J39: 0
A40: Undergrad | B40: CAS | C40: E125 Earth-Space Science BSED | D40: 1 | E40: 0 | F40: 0 | G40: 0 | H40: 0 | I40: 0 | J40: 0
A41: Undergrad | B41: CAS | C41: S122 Geoscience - Earth Systems BS | D41: 10 | E41: 11 | F41: 11 | G41: 10 | H41: 13 | I41: 11 | J41: 14
A42: Undergrad | B42: CAS | C42: S124 Geoscience: Geology BS | D42: 9 | E42: 12 | F42: 18 | G42: 23 | H42: 24 | I42: 17 | J42: 16
A43: Undergrad | B43: CAS | C43: S125 Geoscience: Environ Geosci BS | D43: 15 | E43: 10 | F43: 2 | G43: 2 | H43: 0 | I43: 0 | J43: 0
A44: Undergrad | B44: CAS | C44: T200 General Science TCHGCERT | D44: 2 | E44: 5 | F44: 6 | G44: 0 | H44: 0 | I44: 0 | J44: 1
A45: Undergrad | B45: CAS | C45: T201 Earth Sciences TCHGCERT | D45: 1 | E45: 4 | F45: 3 | G45: 0 | H45: 1 | I45: 0 | J45: 0
A46: Undergrad | B46: CAS | C46: T201 Earth-Space Science TCHGCERT | D46: 0 | E46: 0 | F46: 0 | G46: 1 | H46: 0 | I46: 0 | J46: 1
A47: Undergrad | B47: CAS | C47: A130 French BA | D47: 11 | E47: 13 | F47: 21 | G47: 20 | H47: 22 | I47: 25 | J47: 26
A48: Undergrad | B48: CAS | C48: A134 German BA | D48: 1 | E48: 5 | F48: 5 | G48: 9 | H48: 16 | I48: 18 | J48: 16
A49: Undergrad | B49: CAS | C49: A140 Latin BA | D49: 0 | E49: 2 | F49: 6 | G49: 9 | H49: 7 | I49: 8 | J49: 6
A50: Undergrad | B50: CAS | C50: A171 Russian BA | D50: 4 | E50: 4 | F50: 1 | G50: 4 | H50: 3 | I50: 8 | J50: 4
A51: Undergrad | B51: CAS | C51: A186 Spanish BA | D51: 23 | E51: 36 | F51: 46 | G51: 69 | H51: 71 | I51: 72 | J51: 76
A52: Undergrad | B52: CAS | C52: E130 French BSED | D52: 7 | E52: 6 | F52: 2 | G52: 0 | H52: 0 | I52: 0 | J52: 0
A53: Undergrad | B53: CAS | C53: E134 German BSED | D53: 1 | E53: 3 | F53: 1 | G53: 0 | H53: 0 | I53: 0 | J53: 0
A54: Undergrad | B54: CAS | C54: E140 Latin BSED | D54: 1 | E54: 1 | F54: 1 | G54: 1 | H54: 0 | I54: 1 | J54: 0
A55: Undergrad | B55: CAS | C55: E186 Spanish BSED | D55: 38 | E55: 27 | F55: 15 | G55: 8 | H55: 2 | I55: 0 | J55: 0
A56: Undergrad | B56: CAS | C56: T203 German TCHGCERT | D56: 2 | E56: 1 | F56: 2 | G56: 1 | H56: 0 | I56: 0 | J56: 0
A57: Undergrad | B57: CAS | C57: T204 French TCHGCERT | D57: 2 | E57: 2 | F57: 1 | G57: 1 | H57: 0 | I57: 0 | J57: 1
A58: Undergrad | B58: CAS | C58: T205 Spanish TCHGCERT | D58: 4 | E58: 2 | F58: 4 | G58: 5 | H58: 2 | I58: 0 | J58: 1
A59: Undergrad | B59: CAS | C59: A101 American Studies BA | D59: 7 | E59: 10 | F59: 9 | G59: 5 | H59: 3 | I59: 6 | J59: 4
A60: Undergrad | B60: CAS | C60: A137 History BA | D60: 209 | E60: 279 | F60: 348 | G60: 387 | H60: 404 | I60: 431 | J60: 422
A61: Undergrad | B61: CAS | C61: E177 Social Studies: History BSED | D61: 128 | E61: 66 | F61: 28 | G61: 9 | H61: 3 | I61: 0 | J61: 0
A62: Undergrad | B62: CAS | C62: T207 Social Studies TCHGCERT | D62: 0 | E62: 11 | F62: 3 | G62: 0 | H62: 0 | I62: 0 | J62: 0
A63: Undergrad | B63: CAS | C63: T210 History TCHGCERT | D63: 21 | E63: 0 | F63: 0 | G63: 0 | H63: 0 | I63: 0 | J63: 0
A64: Undergrad | B64: CAS | C64: T210 Soc Studies - History TCHGCERT | D64: 0 | E64: 0 | F64: 0 | G64: 1 | H64: 0 | I64: 0 | J64: 0
A65: Undergrad | B65: CAS | C65: A141 Liberal Studies: Arts & Sci BA | D65: 7 | E65: 48 | F65: 64 | G65: 89 | H65: 76 | I65: 82 | J65: 85
A66: Undergrad | B66: CAS | C66: A143 Liberal Studies: Career Pre BA | D66: 123 | E66: 51 | F66: 14 | G66: 7 | H66: 3 | I66: 4 | J66: 3
A67: Undergrad | B67: CAS | C67: S100 Pharmaceutical Product Dev BS | D67: 41 | E67: 42 | F67: 38 | G67: 42 | H67: 47 | I67: 43 | J67: 47
A68: Undergrad | B68: CAS | C68: S141 Liberal Studies: Sci/Math BS | D68: 26 | E68: 13 | F68: 25 | G68: 15 | H68: 22 | I68: 24 | J68: 15
A69: Undergrad | B69: CAS | C69: S322 Liberal Studies: Profession BS | D69: 111 | E69: 222 | F69: 222 | G69: 265 | H69: 295 | I69: 294 | J69: 300
A70: Undergrad | B70: CAS | C70: A144 Mathematics BA | D70: 22 | E70: 27 | F70: 30 | G70: 35 | H70: 39 | I70: 31 | J70: 27
A71: Undergrad | B71: CAS | C71: A145 Mathematics-Computer Sci BA | D71: 6 | E71: 1 | F71: 0 | G71: 0 | H71: 0 | I71: 0 | J71: 0
A72: Undergrad | B72: CAS | C72: A518 Mathematics BS | D72: 0 | E72: 0 | F72: 0 | G72: 0 | H72: 2 | I72: 23 | J72: 34
A73: Undergrad | B73: CAS | C73: E144 Mathematics BSED | D73: 91 | E73: 116 | F73: 121 | G73: 139 | H73: 134 | I73: 131 | J73: 122
A74: Undergrad | B74: CAS | C74: T213 Mathematics TCHGCERT | D74: 1 | E74: 2 | F74: 3 | G74: 1 | H74: 1 | I74: 0 | J74: 3
A75: Undergrad | B75: CAS | C75: A157 Philosophy BA | D75: 27 | E75: 31 | F75: 33 | G75: 35 | H75: 24 | I75: 30 | J75: 46
A76: Undergrad | B76: CAS | C76: A158 Philosophy-Religious Studie BA | D76: 11 | E76: 8 | F76: 1 | G76: 1 | H76: 0 | I76: 0 | J76: 0
A77: Undergrad | B77: CAS | C77: A245 Philosophy-Religious Studie BA | D77: 0 | E77: 0 | F77: 0 | G77: 0 | H77: 0 | I77: 4 | J77: 6
A78: Undergrad | B78: CAS | C78: E159 Physics BSED | D78: 5 | E78: 8 | F78: 11 | G78: 18 | H78: 16 | I78: 12 | J78: 17
A79: Undergrad | B79: CAS | C79: S159 Physics BS | D79: 9 | E79: 12 | F79: 13 | G79: 12 | H79: 14 | I79: 18 | J79: 24
A80: Undergrad | B80: CAS | C80: S160 Physics-Engineering BS | D80: 14 | E80: 15 | F80: 13 | G80: 17 | H80: 13 | I80: 19 | J80: 18
A81: Undergrad | B81: CAS | C81: T215 Physics TCHGCERT | D81: 3 | E81: 3 | F81: 1 | G81: 0 | H81: 0 | I81: 0 | J81: 2
A82: Undergrad | B82: CAS | C82: A168 Psychology BA | D82: 472 | E82: 455 | F82: 454 | G82: 469 | H82: 480 | I82: 461 | J82: 476
A83: Undergrad | B83: CAS | C83: E181 Social Studies: Psycholog BSED | D83: 4 | E83: 1 | F83: 1 | G83: 0 | H83: 0 | I83: 0 | J83: 0
A84: Undergrad | B84: CAS | C84: A190 Theatre Arts: Acting BA | D84: 1 | E84: 0 | F84: 0 | G84: 0 | H84: 0 | I84: 0 | J84: 0
A85: Undergrad | B85: CAS | C85: A191 Theatre Arts: Performance BA | D85: 34 | E85: 27 | F85: 0 | G85: 0 | H85: 0 | I85: 0 | J85: 0
A86: Undergrad | B86: CAS | C86: A194 Theatre Arts: Mus Theatre BA | D86: 29 | E86: 30 | F86: 0 | G86: 0 | H86: 0 | I86: 0 | J86: 0
A87: Undergrad | B87: CAS | C87: A195 Theatre Arts: Tech Producti BA | D87: 19 | E87: 13 | F87: 0 | G87: 0 | H87: 0 | I87: 0 | J87: 0
A88: Undergrad | B88: CAS | C88: A888 Theatre Arts: General BA | D88: 13 | E88: 13 | F88: 0 | G88: 0 | H88: 0 | I88: 0 | J88: 0
A89: Undergrad | B89: CAS | C89: A230 Women's Studies BA | D89: 16 | E89: 20 | F89: 15 | G89: 12 | H89: 8 | I89: 9 | J89: 8
A90: Undergrad | B90: CBPA | C90: S232 Accounting BS | D90: 227 | E90: 256 | F90: 265 | G90: 272 | H90: 309 | I90: 318 | J90: 364
A91: Undergrad | B91: CBPA | C91: S119 Criminal Justice BS | D91: 385 | E91: 362 | F91: 350 | G91: 329 | H91: 329 | I91: 350 | J91: 365
A92: Undergrad | B92: CBPA | C92: A126 Economics-Business BA | D92: 1 | E92: 0 | F92: 0 | G92: 0 | H92: 0 | I92: 0 | J92: 0
A93: Undergrad | B93: CBPA | C93: F455 Pre-Business Eco-Finance BS | D93: 50 | E93: 81 | F93: 58 | G93: 57 | H93: 68 | I93: 100 | J93: 128
A94: Undergrad | B94: CBPA | C94: S126 Economics BS | D94: 27 | E94: 16 | F94: 21 | G94: 15 | H94: 12 | I94: 9 | J94: 6
A95: Undergrad | B95: CBPA | C95: S128 Finance BS | D95: 137 | E95: 107 | F95: 91 | G95: 83 | H95: 81 | I95: 91 | J95: 87
A96: Undergrad | B96: CBPA | C96: S312 Business BS | D96: 0 | E96: 0 | F96: 0 | G96: 0 | H96: 0 | I96: 1 | J96: 0
A97: Undergrad | B97: CBPA | C97: A133 Geography BA | D97: 25 | E97: 22 | F97: 25 | G97: 27 | H97: 24 | I97: 27 | J97: 23
A98: Undergrad | B98: CBPA | C98: A237 Geography-Urban/Regional Pl BA | D98: 6 | E98: 5 | F98: 5 | G98: 3 | H98: 5 | I98: 8 | J98: 5
A99: Undergrad | B99: CBPA | C99: A238 Geography-Geographic Analys BA | D99: 11 | E99: 9 | F99: 8 | G99: 6 | H99: 7 | I99: 3 | J99: 3
A100: Undergrad | B100: CBPA | C100: A162 Poli Sci-Applied Pub Policy BA | D100: 8 | E100: 8 | F100: 8 | G100: 9 | H100: 16 | I100: 26 | J100: 32
A101: Undergrad | B101: CBPA | C101: A163 Polit Sci - Int'l Relations BA | D101: 56 | E101: 61 | F101: 46 | G101: 56 | H101: 68 | I101: 67 | J101: 79
A102: Undergrad | B102: CBPA | C102: A164 Political Science BA | D102: 133 | E102: 158 | F102: 162 | G102: 176 | H102: 142 | I102: 131 | J102: 128
A103: Undergrad | B103: CBPA | C103: E176 Social Studies: Geography BSED | D103: 2 | E103: 1 | F103: 1 | G103: 0 | H103: 0 | I103: 0 | J103: 0
A104: Undergrad | B104: CBPA | C104: E180 Social Studies: Polit Sci BSED | D104: 6 | E104: 1 | F104: 0 | G104: 0 | H104: 0 | I104: 0 | J104: 0
A105: Undergrad | B105: CBPA | C105: T207 Social Studies TCHGCERT | D105: 1 | E105: 0 | F105: 0 | G105: 0 | H105: 0 | I105: 0 | J105: 0
A106: Undergrad | B106: CBPA | C106: M455 Pre-Business-Management BS | D106: 97 | E106: 169 | F106: 178 | G106: 213 | H106: 219 | I106: 223 | J106: 255
A107: Undergrad | B107: CBPA | C107: S233 Business Management BS | D107: 385 | E107: 278 | F107: 239 | G107: 211 | H107: 201 | I107: 190 | J107: 174
A108: Undergrad | B108: CBPA | C108: K455 Pre-Business-Marketing BS | D108: 74 | E108: 109 | F108: 131 | G108: 140 | H108: 165 | I108: 164 | J108: 166
A109: Undergrad | B109: CBPA | C109: S143 Marketing BS | D109: 266 | E109: 205 | F109: 157 | G109: 159 | H109: 132 | I109: 134 | J109: 145
A110: Undergrad | B110: CBPA | C110: A184 Social Work BSW | D110: 108 | E110: 138 | F110: 165 | G110: 175 | H110: 150 | I110: 142 | J110: 134
A111: Undergrad | B111: EDS | C111: A143 Liberal Studies: Career Pre BA | D111: 0 | E111: 0 | F111: 1 | G111: 0 | H111: 0 | I111: 0 | J111: 0
A112: Undergrad | B112: EDS | C112: A196 Undeclared General UNDECL | D112: 1643 | E112: 1550 | F112: 1535 | G112: 1561 | H112: 1540 | I112: 1688 | J112: 1743
A113: Undergrad | B113: EDS | C113: A197 Undeclared Business UNDECL | D113: 27 | E113: 56 | F113: 96 | G113: 56 | H113: 20 | I113: 7 | J113: 1
A114: Undergrad | B114: EDS | C114: Z107 NON-DEGR General | D114: 329 | E114: 297 | F114: 306 | G114: 198 | H114: 205 | I114: 176 | J114: 88
A115: Undergrad | B115: EDS | C115: Z108 NON-DEGR Professnl Development | D115: 6 | E115: 2 | F115: 3 | G115: 3 | H115: 2 | I115: 0 | J115: 0
A116: Undergrad | B116: EDS | C116: Z109 NON-DEGR Commun Disord Interes | D116: 1 | E116: 0 | F116: 0 | G116: 1 | H116: 18 | I116: 21 | J116: 20
A117: Undergrad | B117: EDS | C117: Z110 NON-DEGR ESL Program | D117: 3 | E117: 1 | F117: 2 | G117: 1 | H117: 0 | I117: 4 | J117: 0
A118: Undergrad | B118: EDS | C118: Z111 NON-DEGR Nat Student Exchange | D118: 14 | E118: 9 | F118: 4 | G118: 7 | H118: 9 | I118: 5 | J118: 8
A119: Undergrad | B119: EDS | C119: Z112 NON-DEGR Post Baccalaur: WCU | D119: 29 | E119: 36 | F119: 31 | G119: 27 | H119: 28 | I119: 38 | J119: 25
A120: Undergrad | B120: EDS | C120: Z113 NON-DEGR Post Baccal: Non-WCU | D120: 77 | E120: 92 | F120: 64 | G120: 79 | H120: 67 | I120: 93 | J120: 70
A121: Undergrad | B121: EDS | C121: Z115 NON-DEGR Cheyney University | D121: 2 | E121: 4 | F121: 3 | G121: 2 | H121: 1 | I121: 1 | J121: 2
A122: Undergrad | B122: EDS | C122: Z116 NON-DEGR Senior Citizen | D122: 42 | E122: 36 | F122: 29 | G122: 33 | H122: 29 | I122: 40 | J122: 38
A123: Undergrad | B123: EDS | C123: Z117 NON-DEGR Post Associate: WCU | D123: 1 | E123: 1 | F123: 0 | G123: 1 | H123: 0 | I123: 0 | J123: 0
A124: Undergrad | B124: EDS | C124: Z119 NON-DEGR Qualifier | D124: 18 | E124: 21 | F124: 20 | G124: 20 | H124: 4 | I124: 0 | J124: 0
A125: Undergrad | B125: EDS | C125: Z121 NON-DEGR SSHE Visiting Student | D125: 0 | E125: 1 | F125: 2 | G125: 0 | H125: 1 | I125: 6 | J125: 6
A126: Undergrad | B126: EDS | C126: Z140 NON-DEGR High School Student | D126: 0 | E126: 0 | F126: 0 | G126: 0 | H126: 0 | I126: 0 | J126: 61
A127: Undergrad | B127: COE | C127: E121 Early Childhood Educ BSED | D127: 230 | E127: 256 | F127: 259 | G127: 303 | H127: 340 | I127: 331 | J127: 295
A128: Undergrad | B128: COE | C128: E187 Special Education BSED | D128: 261 | E128: 231 | F128: 253 | G128: 254 | H128: 263 | I128: 282 | J128: 260
A129: Undergrad | B129: COE | C129: T196 Special Education TCHGCERT | D129: 1 | E129: 0 | F129: 0 | G129: 0 | H129: 0 | I129: 0 | J129: 0
A130: Undergrad | B130: COE | C130: T197 Early Childhood Educ TCHGCERT | D130: 0 | E130: 1 | F130: 1 | G130: 1 | H130: 0 | J130: 1
A131: Undergrad | B131: COE | C131: E127 Elementary Education BSED | D131: 920 | E131: 896 | F131: 896 | G131: 871 | H131: 844 | I131: 787 | J131: 814
A132: Undergrad | B132: COE | C132: T198 Elementary Education TCHGCERT | D132: 0 | E132: 0 | F132: 0 | G132: 0 | H132: 0 | I132: 0 | J132: 1
A133: Undergrad | B133: CHS | C133: S136 Health Education BS | D133: 1 | E133: 0 | F133: 0 | G133: 0 | H133: 0 | I133: 0 | J133: 0
A134: Undergrad | B134: CHS | C134: S169 Public Health:Health Promot BS | D134: 40 | E134: 42 | F134: 66 | G134: 40 | H134: 56 | I134: 50 | J134: 55
A135: Undergrad | B135: CHS | C135: S170 Public Health:Environmental BS | D135: 11 | E135: 10 | F135: 10 | G135: 11 | H135: 9 | I135: 18 | J135: 28
A136: Undergrad | B136: CHS | C136: S171 Nutrition and Dietetics BS | D136: 61 | E136: 86 | F136: 94 | G136: 162 | H136: 197 | I136: 197 | J136: 239
A137: Undergrad | B137: CHS | C137: S301 Health Sci: General BS | D137: 15 | E137: 16 | F137: 15 | G137: 13 | H137: 16 | I137: 24 | J137: 16
A138: Undergrad | B138: CHS | C138: S302 Health Sci: Dental Hygiene BS | D138: 2 | E138: 1 | F138: 0 | G138: 0 | H138: 0 | I138: 0 | J138: 0
A139: Undergrad | B139: CHS | C139: S303 Hlth Sci: Respiratory Care BS | D139: 26 | E139: 33 | F139: 51 | G139: 63 | H139: 64 | I139: 73 | J139: 75
A140: Undergrad | B140: CHS | C140: S135 Health & Physical Educ BS | D140: 373 | E140: 393 | F140: 435 | G140: 428 | H140: 463 | I140: 456 | J140: 455
A141: Undergrad | B141: CHS | C141: S138 Exercise Science Specialist BS | D141: 180 | E141: 190 | F141: 182 | G141: 185 | H141: 175 | I141: 217 | J141: 277
A142: Undergrad | B142: CHS | C142: T212 Health & Phys Educ TCHGCERT | D142: 0 | E142: 0 | F142: 0 | G142: 40 | H142: 0 | I142: 0 | J142: 20
A143: Undergrad | B143: CHS | C143: T212 Physical Education TCHGCERT | D143: 35 | E143: 26 | F143: 35 | G143: 0 | H143: 24 | I143: 9 | J143: 0
A144: Undergrad | B144: CHS | C144: S156 Nursing BSN | D144: 291 | E144: 324 | F144: 332 | G144: 292 | H144: 262 | I144: 264 | J144: 286
A145: Undergrad | B145: CHS | C145: S166 RN to BSN | D145: 0 | E145: 0 | F145: 0 | G145: 0 | H145: 28 | I145: 51 | J145: 69
A146: Undergrad | B146: CHS | C146: S105 Athletic Training BS | D146: 100 | E146: 101 | F146: 111 | G146: 112 | H146: 120 | I146: 115 | J146: 135
A147: Undergrad | B147: CHS | C147: A116 Communicative Disorders BA | D147: 63 | E147: 58 | F147: 79 | G147: 88 | H147: 100 | I147: 111 | J147: 106
A148: Undergrad | B148: CVPA | C148: M175 Music: Keybrd Perf - Pedago BM | D148: 0 | E148: 1 | F148: 0 | G148: 0 | H148: 0 | I148: 0 | J148: 0
A149: Undergrad | B149: CVPA | C149: M188 Music - Performance BM | D149: 0 | E149: 45 | F149: 38 | G149: 41 | H149: 41 | I149: 42 | J149: 54
A150: Undergrad | B150: CVPA | C150: A104 Studio Arts BA | D150: 0 | E150: 0 | F150: 25 | G150: 30 | H150: 36 | I150: 33 | J150: 38
A151: Undergrad | B151: CVPA | C151: F190 Studio Arts BFA | D151: 0 | E151: 0 | F151: 192 | G151: 197 | H151: 147 | I151: 144 | J151: 139
A152: Undergrad | B152: CVPA | C152: M151 Music: Instrumental Perform BM | D152: 14 | E152: 0 | F152: 0 | G152: 0 | H152: 0 | I152: 0 | J152: 0
A153: Undergrad | B153: CVPA | C153: M188 Music - Performance BM | D153: 27 | E153: 0 | F153: 0 | G153: 0 | H153: 0 | I153: 0 | J153: 0
A154: Undergrad | B154: CVPA | C154: M152 Music: Keyboard Performance BM | D154: 2 | E154: 0 | F154: 0 | G154: 0 | H154: 0 | I154: 0 | J154: 0
A155: Undergrad | B155: CVPA | C155: M175 Music: Keybrd Perf - Pedago BM | D155: 1 | E155: 0 | F155: 0 | G155: 0 | H155: 0 | I155: 0 | J155: 0
A156: Undergrad | B156: CVPA | C156: M145 Music: Elective Studies BM | D156: 35 | E156: 30 | F156: 32 | G156: 34 | H156: 34 | I156: 25 | J156: 27
A157: Undergrad | B157: CVPA | C157: M150 Music: Composition BM | D157: 8 | E157: 5 | F157: 2 | G157: 1 | H157: 0 | I157: 0 | J157: 0
A158: Undergrad | B158: CVPA | C158: M153 Music: Theory BM | D158: 10 | E158: 3 | F158: 0 | G158: 0 | H158: 0 | I158: 0 | J158: 0
A159: Undergrad | B159: CVPA | C159: M190 Music: Theory & Composition BM | D159: 2 | E159: 6 | F159: 8 | G159: 10 | H159: 11 | I159: 14 | J159: 14
A160: Undergrad | B160: CVPA | C160: M147 Music Educ: Instrument BM | D160: 179 | E160: 195 | F160: 211 | G160: 186 | H160: 213 | I160: 225 | J160: 225
A161: Undergrad | B161: CVPA | C161: M148 Music Educ: Voice BM | D161: 87 | E161: 101 | F161: 98 | G161: 95 | H161: 94 | I161: 94 | J161: 94
A162: Undergrad | B162: CVPA | C162: M149 Music Educ: Keyboard BM | D162: 42 | E162: 35 | F162: 25 | G162: 25 | H162: 33 | I162: 33 | J162: 34
A163: Undergrad | B163: CVPA | C163: S147 Music Educ: General-Instrum BS | D163: 10 | E163: 0 | F163: 0 | G163: 0 | H163: 0 | I163: 0 | J163: 0
A164: Undergrad | B164: CVPA | C164: S149 Music Ed: Vocal/Choral-Voic BS | D164: 3 | E164: 0 | F164: 0 | G164: 0 | H164: 0 | I164: 0 | J164: 0
A165: Undergrad | B165: CVPA | C165: S314 Music Educ: General-Voice BS | D165: 2 | E165: 0 | F165: 0 | G165: 0 | H165: 0 | I165: 0 | J165: 0
A166: Undergrad | B166: CVPA | C166: T214 Music Education TCHGCERT | D166: 3 | E166: 3 | F166: 2 | G166: 2 | H166: 2 | I166: 0 | J166: 1
A167: Undergrad | B167: CVPA | C167: A191 Theatre and Dance: Perfmnce BA | D167: 0 | E167: 0 | F167: 0 | G167: 27 | H167: 0 | I167: 0 | J167: 9
A168: Undergrad | B168: CVPA | C168: A191 Theatre Arts: Performance BA | D168: 0 | E168: 0 | F168: 0 | G168: 0 | H168: 13 | I168: 14 | J168: 0
A169: Undergrad | B169: CVPA | C169: A194 Theatre and Dnce: Mus Thtre BA | D169: 0 | E169: 0 | F169: 39 | G169: 22 | H169: 0 | I169: 0 | J169: 15
A170: Undergrad | B170: CVPA | C170: A194 Theatre Arts: Mus Theatre BA | D170: 0 | E170: 0 | F170: 30 | G170: 0 | H170: 17 | I170: 13 | J170: 0
A171: Undergrad | B171: CVPA | C171: A195 Theatre and Dnce: Tech Prod BA | D171: 0 | E171: 0 | F171: 0 | G171: 9 | H171: 0 | I171: 0 | J171: 10
A172: Undergrad | B172: CVPA | C172: A195 Theatre Arts: Tech Producti BA | D172: 0 | E172: 0 | F172: 15 | G172: 0 | H172: 9 | I172: 4 | J172: 0
A173: Undergrad | B173: CVPA | C173: A888 Theatre and Dance: General BA | D173: 0 | E173: 0 | F173: 0 | G173: 50 | H173: 0 | I173: 0 | J173: 68
A174: Undergrad | B174: CVPA | C174: A888 Theatre Arts: General BA | D174: 0 | E174: 0 | F174: 14 | G174: 0 | H174: 67 | I174: 64 | J174: 0
A175: Undergrad | B175: CVPA | C175: M155 Music: Vocal Performance BM | D175: 7 | E175: 0 | F175: 0 | G175: 0 | H175: 0 | I175: 0 | J175: 0

Sheet NEEDS WORK - Retention (hidden)
B1: West Chester University's Retention and Graduation Rates 1992 - 2008
A4: University Summary
B6: Fall Cohort | C6: 1st Fall | D6: Cohort after IPEDS Exclusion | E6: AVG SATC | F6: 2nd Fall | H6: 3rd Fall | J6: 4th Fall | L6: 5th Fall | P6: 6th Fall | T6: 7th Fall
F7: Cohort Retained | H7: Cohort Retained | J7: Cohort Retained | L7: Cohort Retained | P7: Cohort Retained | T7: Cohort Retained
F8: N | G8: %1F | H8: N | I8: %1F | J8: N | K8: %1F | L8: N | M8: %1F | N8: N | O8: %1F | P8: N | Q8: %1F | R8: N | S8: %1F | T8: N | U8: %1F | V8: N | W8: %1F
B9: 1992 | C9: 1372 | D9: 1372 | E9: 947 | F9: 1134 | G9: 82.7 | H9: 989 | I9: 72.1 | J9: 953 | K9: 69.5 | L9: 373 | M9: 27.2 | N9: 497 | O9: 36.2 | P9: 728 | Q9: 53.1 | R9: 89 | S9: 6.5 | T9: 781 | U9: 56.9 | V9: 30 | W9: 2.2
B10: 1993 | C10: 1380 | D10: 1380 | E10: 946 | F10: 1140 | G10: 82.6 | H10: 958 | I10: 69.4 | J10: 877 | K10: 63.6 | L10: 367 | M10: 26.6 | N10: 461 | O10: 33.4 | P10: 711 | Q10: 51.5 | R10: 101 | S10: 7.3 | T10: 771 | U10: 55.9 | V10: 42 | W10: 3
B11: 1994 | C11: 1364 | D11: 1364 | E11: 943 | F11: 1084 | G11: 79.5 | H11: 906 | I11: 66.4 | J11: 823 | K11: 60.3 | L11: 319 | M11: 23.4 | N11: 473 | O11: 34.7 | P11: 666 | Q11: 48.8 | R11: 109 | S11: 8 | T11: 741 | U11: 54.3 | V11: 30 | W11: 2.2
B12: 1995 | C12: 1384 | D12: 1384 | E12: 936 | F12: 1129 | G12: 81.6 | H12: 985 | I12: 71.2 | J12: 902 | K12: 65.2 | L12: 363 | M12: 26.2 | N12: 512 | O12: 37 | P12: 761 | Q12: 55 | R12: 89 | S12: 6.4 | T12: 816 | U12: 59 | V12: 33 | W12: 2.4
B13: 1996 | C13: 1454 | D13: 1454 | E13: 1026 | F13: 1170 | G13: 80.5 | H13: 1003 | I13: 69 | J13: 945 | K13: 65 | L13: 376 | M13: 25.9 | N13: 527 | O13: 36.2 | P13: 771 | Q13: 53 | R13: 103 | S13: 7.1 | T13: 833 | U13: 57.3 | V13: 35 | W13: 2.4
B14: 1997 | C14: 1577 | D14: 1576 | E14: 1030 | F14: 1298 | G14: 82.4 | H14: 1116 | I14: 70.8 | J14: 1055 | K14: 66.9 | L14: 409 | M14: 26 | N14: 605 | O14: 38.4 | P14: 861 | Q14: 54.6 | R14: 109 | S14: 6.9 | T14: 932 | U14: 59.1 | V14: 30 | W14: 1.9
B15: 1998 | C15: 1629 | D15: 1627 | E15: 1038 | F15: 1353 | G15: 83.2 | H15: 1173 | I15: 72.1 | J15: 1070 | K15: 65.8 | L15: 474 | M15: 29.1 | N15: 577 | O15: 35.5 | P15: 898 | Q15: 55.2 | R15: 108 | S15: 6.6 | T15: 964 | U15: 59.3 | V15: 34 | W15: 2.1
B16: 1999 | C16: 1715 | D16: 1710 | E16: 1035 | F16: 1413 | G16: 82.6 | H16: 1219 | I16: 71.3 | J16: 1150 | K16: 67.3 | L16: 444 | M16: 26 | N16: 653 | O16: 38.2 | P16: 943 | Q16: 55.1 | R16: 91 | S16: 5.3 | T16: 1023 | U16: 59.8 | V16: 24 | W16: 1.4
B17: 2000 | C17: 1721 | D17: 1715 | E17: 1032 | F17: 1412 | G17: 82.3 | H17: 1275 | I17: 74.3 | J17: 1166 | K17: 68 | L17: 536 | M17: 31.3 | N17: 569 | O17: 33.2 | P17: 961 | Q17: 56 | R17: 103 | S17: 6 | T17: 1037 | U17: 60.5 | V17: 35 | W17: 2
B18: 2001 | C18: 1631 | D18: 1625 | E18: 1046 | F18: 1384 | G18: 85.2 | H18: 1222 | I18: 75.2 | J18: 1149 | K18: 70.7 | L18: 571 | M18: 35.1 | N18: 520 | O18: 32 | P18: 996 | Q18: 61.3 | R18: 79 | S18: 4.9 | T18: 1050 | U18: 64.6 | V18: 29 | W18: 1.8
B19: 2002 | C19: 1768 | D19: 1766 | E19: 1045 | F19: 1461 | G19: 82.7 | H19: 1290 | I19: 73 | J19: 1236 | K19: 70 | L19: 636 | M19: 36 | N19: 536 | O19: 30.4 | P19: 1041 | Q19: 58.9 | R19: 97 | S19: 5.5 | T19: 1113 | U19: 63 | V19: 25 | W19: 1.4
B20: 2003 | C20: 1726 | D20: 1724 | E20: 1058 | F20: 1467 | G20: 85.1 | H20: 1299 | I20: 75.3 | J20: 1208 | K20: 70.1 | L20: 685 | M20: 39.7 | N20: 481 | O20: 27.9 | P20: 1048 | Q20: 60.8 | R20: 89 | S20: 5.2
B21: 2004 | C21: 1874 | D21: 1871 | E21: 1061 | F21: 1571 | G21: 84 | H21: 1362 | I21: 72.8 | J21: 1306 | K21: 69.8 | L21: 733 | M21: 39.2 | N21: 535 | O21: 28.6
B22: 2005 | C22: 1897 | D22: 1894 | E22: 1067 | F22: 1607 | G22: 84.8 | H22: 1442 | I22: 76.1 | J22: 1378 | K22: 72.8
B23: 2006 | C23: 1885 | D23: 1884 | E23: 1062 | F23: 1617 | G23: 85.8 | H23: 1468 | I23: 77.9
B24: 2007 | C24: 1957 | D24: 1955 | E24: 1059 | F24: 1650 | G24: 84.4
B25: 2008 | C25: 1993 | D25: 1993 | E25: 1059
A59: Gender
B63: Fall Cohort | C63: 1st Fall | D63: Cohort after IPEDS Exclusion | E63: AVG SATC | F63: 2nd Fall | H63: 3rd Fall | J63: 4th Fall | L63: 5th Fall | P63: 6th Fall | T63: 7th Fall
F64: Cohort Retained | H64: Cohort Retained | J64: Cohort Retained | L64: Cohort Retained | P64: Cohort Retained | T64: Cohort Retained
F65: N | G65: %1F | H65: N | I65: %1F | J65: N | K65: %1F | L65: N | M65: %1F | N65: N | O65: %1F | P65: N | Q65: %1F | R65: N | S65: %1F | T65: N | U65: %1F | V65: N | W65: %1F
B66: 1992 | C66: 879 | D66: 879 | E66: 937 | F66: 720 | G66: 81.9 | H66: 632 | I66: 71.9 | J66: 608 | K66: 69.2 | L66: 278 | M66: 31.6 | N66: 281 | O66: 32.0 | P66: 501 | Q66: 57.0 | R66: 45 | S66: 5.1 | T66: 527 | U66: 60.0 | V66: 15 | W66: 1.7
B67: 1993 | C67: 873 | D67: 873 | E67: 934 | F67: 741 | G67: 84.9 | H67: 634 | I67: 72.6 | J67: 580 | K67: 66.4 | L67: 291 | M67: 33.3 | N67: 265 | O67: 30.4 | P67: 506 | Q67: 58.0 | R67: 43 | S67: 4.9 | T67: 534 | U67: 61.2 | V67: 17 | W67: 1.9
B68: 1994 | C68: 806 | D68: 806 | E68: 925 | F68: 656 | G68: 81.4 | H68: 555 | I68: 68.9 | J68: 507 | K68: 62.9 | L68: 229 | M68: 28.4 | N68: 260 | O68: 32.3 | P68: 438 | Q68: 54.3 | R68: 48 | S68: 6.0 | T68: 476 | U68: 59.1 | V68: 11 | W68: 1.4
B69: 1995 | C69: 873 | D69: 873 | E69: 921 | F69: 725 | G69: 83.0 | H69: 636 | I69: 72.9 | J69: 609 | K69: 69.8 | L69: 278 | M69: 31.8 | N69: 300 | O69: 34.4 | P69: 541 | Q69: 62.0 | R69: 34 | S69: 3.9 | T69: 562 | U69: 64.4 | V69: 14 | W69: 1.6
B70: 1996 | C70: 943 | D70: 943 | E70: 1014 | F70: 778 | G70: 82.5 | H70: 674 | I70: 71.5 | J70: 639 | K70: 67.8 | L70: 288 | M70: 30.5 | N70: 333 | O70: 35.3 | P70: 552 | Q70: 58.5 | R70: 52 | S70: 5.5 | T70: 585 | U70: 62.0 | V70: 18 | W70: 1.9
B71: 1997 | C71: 1021 | D71: 1020 | E71: 1021 | F71: 840 | G71: 82.4 | H71: 718 | I71: 70.4 | J71: 684 | K71: 67.1 | L71: 316 | M71: 31.0 | N71: 349 | O71: 34.2 | P71: 585 | Q71: 57.4 | R71: 59 | S71: 5.8 | T71: 621 | U71: 60.9 | V71: 17 | W71: 1.7
B72: 1998 | C72: 1029 | D72: 1029 | E72: 1025 | F72: 858 | G72: 83.4 | H72: 748 | I72: 72.7 | J72: 687 | K72: 66.8 | L72: 350 | M72: 34.0 | N72: 335 | O72: 32.6 | P72: 604 | Q72: 58.7 | R72: 59 | S72: 5.7 | T72: 639 | U72: 62.1 | V72: 18 | W72: 1.7
B73: 1999 | C73: 1070 | D73: 1069 | E73: 1024 | F73: 886 | G73: 82.9 | H73: 754 | I73: 70.5 | J73: 721 | K73: 67.4 | L73: 322 | M73: 30.1 | N73: 382 | O73: 35.7 | P73: 638 | Q73: 59.7 | R73: 43 | S73: 4.0 | T73: 676 | U73: 63.2 | V73: 11 | W73: 1.0
B74: 2000 | C74: 1085 | D74: 1085 | E74: 1022 | F74: 900 | G74: 82.9 | H74: 821 | I74: 75.7 | J74: 751 | K74: 69.2 | L74: 409 | M74: 37.7 | N74: 313 | O74: 28.8 | P74: 673 | Q74: 62.0 | R74: 43 | S74: 4.0 | T74: 705 | U74: 65.0 | V74: 10 | W74: 0.9
B75: 2001 | C75: 1023 | D75: 1019 | E75: 1037 | F75: 888 | G75: 87.1 | H75: 792 | I75: 77.7 | J75: 748 | K75: 73.4 | L75: 427 | M75: 41.9 | N75: 295 | O75: 28.9 | P75: 687 | Q75: 67.4 | R75: 32 | S75: 3.1 | T75: 706 | U75: 69.3 | V75: 13 | W75: 1.3
B76: 2002 | C76: 1106 | D76: 1104 | E76: 1029 | F76: 933 | G76: 84.5 | H76: 829 | I76: 75.1 | J76: 808 | K76: 73.2 | L76: 471 | M76: 42.7 | N76: 304 | O76: 27.5 | P76: 718 | Q76: 65.0 | R76: 47 | S76: 4.3 | T76: 757 | U76: 68.6 | V76: 11 | W76: 1.0
B77: 2003 | C77: 1120 | D77: 1119 | E77: 1045 | F77: 963 | G77: 86.1 | H77: 859 | I77: 76.8 | J77: 805 | K77: 71.9 | L77: 533 | M77: 47.6 | N77: 252 | O77: 22.5 | P77: 730 | Q77: 65.2 | R77: 45 | S77: 4.0
B78: 2004 | C78: 1216 | D78: 1214 | E78: 1048 | F78: 1027 | G78: 84.6 | H78: 903 | I78: 74.4 | J78: 871 | K78: 71.7 | L78: 557 | M78: 45.9 | N78: 299 | O78: 24.6
B79: 2005 | C79: 1219 | D79: 1217 | E79: 1054 | F79: 1051 | G79: 86.4 | H79: 943 | I79: 77.5 | J79: 914 | K79: 75.1
B80: 2006 | C80: 1201 | D80: 1201 | E80: 1047 | F80: 1059 | G80: 88.2 | H80: 984 | I80: 81.9
B81: 2007 | C81: 1216 | D81: 1215 | E81: 1043 | F81: 1038 | G81: 85.4
B82: 2008 | C82: 1231 | D82: 1231 | E82: 1047
B84: Male
B85: Fall Cohort | C85: 1st Fall | D85: Cohort after IPEDS Exclusion | E85: AVG SATC | F85: 2nd Fall | H85: 3rd Fall | J85: 4th Fall | L85: 5th Fall | P85: 6th Fall | T85: 7th Fall
F86: Cohort Retained | H86: Cohort Retained | J86: Cohort Retained | L86: Cohort Retained | P86: Cohort Retained | T86: Cohort Retained
F87: N | G87: %1F | H87: N | I87: %1F | J87: N | K87: %1F | L87: N | M87: %1F | N87: N | O87: %1F | P87: N | Q87: %1F | R87: N | S87: %1F | T87: N | U87: %1F | V87: N | W87: %1F
B88: 1992 | C88: 493 | D88: 493 | E88: 964 | F88: 414 | G88: 84.0 | H88: 357 | I88: 72.4 | J88: 345 | K88: 70.0 | L88: 95 | M88: 19.3 | N88: 216 | O88: 43.8 | P88: 227 | Q88: 46.0 | R88: 44 | S88: 8.9 | T88: 254 | U88: 51.5 | V88: 15 | W88: 3.0
B89: 1993 | C89: 507 | D89: 507 | E89: 967 | F89: 399 | G89: 78.7 | H89: 324 | I89: 63.9 | J89: 297 | K89: 58.6 | L89: 76 | M89: 15.0 | N89: 196 | O89: 38.7 | P89: 205 | Q89: 40.4 | R89: 58 | S89: 11.4 | T89: 237 | U89: 46.7 | V89: 25 | W89: 4.9
B90: 1994 | C90: 558 | D90: 558 | E90: 969 | F90: 428 | G90: 76.7 | H90: 351 | I90: 62.9 | J90: 316 | K90: 56.6 | L90: 90 | M90: 16.1 | N90: 213 | O90: 38.2 | P90: 228 | Q90: 40.9 | R90: 61 | S90: 10.9 | T90: 265 | U90: 47.5 | V90: 19 | W90: 3.4
B91: 1995 | C91: 511 | D91: 511 | E91: 961 | F91: 404 | G91: 79.1 | H91: 349 | I91: 68.3 | J91: 293 | K91: 57.3 | L91: 85 | M91: 16.6 | N91: 212 | O91: 41.5 | P91: 220 | Q91: 43.1 | R91: 55 | S91: 10.8 | T91: 254 | U91: 49.7 | V91: 19 | W91: 3.7
B92: 1996 | C92: 511 | D92: 511 | E92: 1048 | F92: 392 | G92: 76.7 | H92: 329 | I92: 64.4 | J92: 306 | K92: 59.9 | L92: 88 | M92: 17.2 | N92: 194 | O92: 38.0 | P92: 219 | Q92: 42.9 | R92: 51 | S92: 10.0 | T92: 248 | U92: 48.5 | V92: 17 | W92: 3.3
B93: 1997 | C93: 556 | D93: 556 | E93: 1047 | F93: 458 | G93: 82.4 | H93: 398 | I93: 71.6 | J93: 371 | K93: 66.7 | L93: 93 | M93: 16.7 | N93: 256 | O93: 46.0 | P93: 276 | Q93: 49.6 | R93: 50 | S93: 9.0 | T93: 311 | U93: 55.9 | V93: 13 | W93: 2.3
B94: 1998 | C94: 600 | D94: 598 | E94: 1060 | F94: 495 | G94: 82.8 | H94: 425 | I94: 71.1 | J94: 383 | K94: 64.0 | L94: 124 | M94: 20.7 | N94: 242 | O94: 40.5 | P94: 294 | Q94: 49.2 | R94: 49 | S94: 8.2 | T94: 325 | U94: 54.3 | V94: 16 | W94: 2.7
B95: 1999 | C95: 645 | D95: 641 | E95: 1055 | F95: 527 | G95: 82.2 | H95: 465 | I95: 72.5 | J95: 429 | K95: 66.9 | L95: 122 | M95: 19.0 | N95: 271 | O95: 42.3 | P95: 305 | Q95: 47.6 | R95: 48 | S95: 7.5 | T95: 347 | U95: 54.1 | V95: 13 | W95: 2.0
B96: 2000 | C96: 636 | D96: 630 | E96: 1048 | F96: 512 | G96: 81.3 | H96: 454 | I96: 72.1 | J96: 415 | K96: 65.9 | L96: 127 | M96: 20.2 | N96: 256 | O96: 40.6 | P96: 288 | Q96: 45.7 | R96: 60 | S96: 9.5 | T96: 332 | U96: 52.7 | V96: 25 | W96: 4.0
B97: 2001 | C97: 608 | D97: 606 | E97: 1062 | F97: 496 | G97: 81.8 | H97: 430 | I97: 71.0 | J97: 401 | K97: 66.2 | L97: 144 | M97: 23.8 | N97: 225 | O97: 37.1 | P97: 309 | Q97: 51.0 | R97: 47 | S97: 7.8 | T97: 344 | U97: 56.8 | V97: 16 | W97: 2.6
B98: 2002 | C98: 662 | D98: 662 | E98: 1073 | F98: 528 | G98: 79.8 | H98: 461 | I98: 69.6 | J98: 428 | K98: 64.7 | L98: 165 | M98: 24.9 | N98: 232 | O98: 35.0 | P98: 323 | Q98: 48.8 | R98: 50 | S98: 7.6 | T98: 356 | U98: 53.8 | V98: 14 | W98: 2.1
B99: 2003 | C99: 606 | D99: 605 | E99: 1081 | F99: 504 | G99: 83.3 | H99: 440 | I99: 72.7 | J99: 403 | K99: 66.6 | L99: 152 | M99: 25.1 | N99: 229 | O99: 37.9 | P99: 318 | Q99: 52.6 | R99: 44 | S99: 7.3
B100: 2004 | C100: 658 | D100: 657 | E100: 1085 | F100: 544 | G100: 82.8 | H100: 459 | I100: 69.9 | J100: 435 | K100: 66.2 | L100: 176 | M100: 26.8 | N100: 236 | O100: 35.9
B101: 2005 | C101: 678 | D101: 677 | E101: 1091 | F101: 556 | G101: 82.1 | H101: 499 | I101: 73.7 | J101: 464 | K101: 68.5
B102: 2006 | C102: 684 | D102: 683 | E102: 1090 | F102: 558 | G102: 81.7 | H102: 484 | I102: 70.9
B103: 2007 | C103: 741 | D103: 740 | E103: 1085 | F103: 612 | G103: 82.7
B104: 2008 | C104: 762 | D104: 762 | E104: 1078
B106: Female
B107: Categories | C107: Fall Cohort | D107: Data
B110: 1st Fall | C110: 1992 | D110: 493
B111: Cohort After IPEDS Excl. | C111: 1993 | D111: 873
B112: AVG SATC | C112: 1994 | D112: 493
B113: 2nd Fall (N) | C113: 1995 | D113: 873
B114: 2nd Fall (%) | C114: 1996 | D114: 806
B115: 3rd Fall (N) | C115: 1997 | D115: 873
B116: 3rd Fall (%) | C116: 1998 | D116: 943
B117: 4th Fall (N) | C117: 1999 | D117: 1020
B118: 4th Fall (%) | C118: 2000 | D118: 1029
B119: 5th Fall (N) | C119: 2001 | D119: 1069
B120: 5th Fall (%) | C120: 2002 | D120: 1085
B121: 6th Fall (N) | C121: 2003 | D121: 1019
B122: 6th Fall (%) | C122: 2004 | D122: 1104
B123: 7th Fall (N) | C123: 2005 | D123: 1119
B124: 7th Fall (%) | C124: 2006 | D124: 1214
C125: 2007 | D125: 1217
C126: 2008 | D126: 1201
D127: 1215
B128: Male | D128: 1231
B129: Categories | C129: Fall Cohort | D129: Data
B132: 1st Fall | C132: 1992 | D132: 46
B133: Cohort After IPEDS Excl. | C133: 1993 | D133: 507
B134: AVG SATC | C134: 1994 | D134: 558
B135: 2nd Fall (N) | C135: 1995 | D135: 507
B136: 2nd Fall (%) | C136: 1996 | D136: 558
B137: 3rd Fall (N) | C137: 1997 | D137: 511
B138: 3rd Fall (%) | C138: 1998 | D138: 511
B139: 4th Fall (N) | C139: 1999 | D139: 556
B140: 4th Fall (%) | C140: 2000 | D140: 600
B141: 70 | C141: 2001 | D141: 645
B142: 5th Fall (%) | C142: 2002 | D142: 636
B143: 6th Fall (N) | C143: 2003 | D143: 608
B144: 6th Fall (%) | C144: 2004 | D144: 662
B145: 7th Fall (N) | C145: 2005 | D145: 606
B146: 7th Fall (%) | C146: 2006 | D146: 658
C147: 2007 | D147: 678
C148: 2008 | D148: 684
D149: 741
A150: 762
B153: Fall Cohort | C153: African-American | G153: Native-American | K153: Asian | O153: Latino | S153: White
C154: 4th Fall | E154: 6th Fall | G154: 4th Fall | I154: 6th Fall | K154: 4th Fall | M154: 6th Fall | O154: 4th Fall | Q154: 6th Fall | S154: 4th Fall | U154: 6th Fall
C155: Cohort Retained | E155: Cohort Retained | G155: Cohort Retained | I155: Cohort Retained | K155: Cohort Retained | M155: Cohort Retained | O155: Cohort Retained | Q155: Cohort Retained | S155: Cohort Retained | U155: Cohort Retained
C156: N | D156: %1F | E156: N | F156: %1F | G156: N | H156: %1F | I156: N | J156: %1F | K156: N | L156: %1F | M156: N | N156: %1F | O156: N | P156: %1F | Q156: N | R156: %1F | S156: N | T156: %1F | U156: N | V156: %1F
B157: 1992 | C157: 64 | D157: 50 | E157: 33 | F157: 25.8 | G157: 1 | H157: 100 | I157: 1 | J157: 100 | K157: 9 | L157: 64.3 | M157: 8 | N157: 57.1 | O157: 15 | P157: 65.2 | Q157: 8 | R157: 34.8 | S157: 864 | T157: 71.6 | U157: 678 | V157: 56.2
B158: 1993 | C158: 65 | D158: 40.9 | E158: 35 | F158: 22 | G158: 4 | H158: 57.1 | I158: 3 | J158: 42.9 | K158: 11 | L158: 34.4 | M158: 9 | N158: 28.1 | O158: 9 | P158: 50 | Q158: 5 | R158: 27.8 | S158: 788 | T158: 67.7 | U158: 659 | V158: 56.6
B159: 1994 | C159: 85 | D159: 503 | E159: 51 | F159: 30.2 | G159: 1 | H159: 33.3 | I159: 1 | J159: 33.3 | K159: 20 | L159: 69 | M159: 14 | N159: 48.3 | O159: 14 | P159: 46.7 | Q159: 12 | R159: 40 | S159: 703 | T159: 62 | U159: 588 | V159: 51.9
B160: 1995 | C160: 81 | D160: 56.3 | E160: 53 | F160: 36.8 | G160: 1 | H160: 16.7 | I160: 1 | J160: 16.7 | K160: 13 | L160: 54.2 | M160: 9 | N160: 37.5 | O160: 20 | P160: 71.4 | Q160: 13 | R160: 46.4 | S160: 787 | T160: 66.6 | U160: 685 | V160: 58
B161: 1996 | C161: 101 | D161: 62.7 | E161: 69 | F161: 42.9 | G161: 1 | H161: 16.7 | I161: 0 | J161: 0 | K161: 16 | L161: 61.5 | M161: 12 | N161: 46.2 | O161: 18 | P161: 51.4 | Q161: 13 | R161: 37.1 | S161: 809 | T161: 66 | U161: 677 | V161: 55.2
B162: 1997 | C162: 83 | D162: 59.3 | E162: 58 | F162: 41.4 | G162: 3 | H162: 60 | I162: 3 | J162: 60 | K162: 16 | L162: 64 | M162: 14 | N162: 56 | O162: 19 | P162: 57.6 | Q162: 12 | R162: 36.4 | S162: 934 | T162: 68.1 | U162: 774 | V162: 56.5
B163: 1998 | C163: 87 | D163: 63 | E163: 57 | F163: 41.3 | G163: 1 | H163: 100 | I163: 0 | J163: 0 | K163: 13 | L163: 46.4 | M163: 11 | N163: 39.3 | O163: 22 | P163: 53.7 | Q163: 14 | R163: 34.1 | S163: 946 | T163: 66.8 | U163: 816 | V163: 57.6
B164: 1999 | C164: 99 | D164: 69.2 | E164: 67 | F164: 46.9 | G164: 1 | H164: 25 | I164: 1 | J164: 25 | K164: 16 | L164: 53.3 | M164: 15 | N164: 50 | O164: 12 | P164: 70.6 | Q164: 8 | R164: 47.1 | S164: 1019 | T164: 67.3 | U164: 849 | V164: 56.1
B165: 2000 | C165: 94 | D165: 65.7 | E165: 72 | F165: 50.3 | G165: 3 | H165: 60 | I165: 3 | J165: 60 | K165: 17 | L165: 70.8 | M165: 13 | N165: 54.2 | O165: 21 | P165: 67.7 | Q165: 17 | R165: 54.8 | S165: 1028 | T165: 68.3 | U165: 853 | V165: 56.6
B166: 2001 | C166: 96 | D166: 70.1 | E166: 66 | F166: 48.2 | G166: 5 | H166: 71.4 | I166: 3 | J166: 42.9 | K166: 22 | L166: 59.5 | M166: 16 | N166: 43.2 | O166: 35 | P166: 72.9 | Q166: 29 | R166: 60.4 | S166: 987 | T166: 71 | U166: 879 | V166: 63.2
B167: 2002 | C167: 96 | D167: 67.6 | E167: 65 | F167: 45.8 | G167: 4 | H167: 50 | I167: 2 | J167: 25 | K167: 23 | L167: 62.2 | M167: 17 | N167: 45.9 | O167: 24 | P167: 57.1 | Q167: 20 | R167: 47.6 | S167: 1088 | T167: 70.9 | U167: 942 | V167: 61.4
B168: 2003 | C168: 122 | D168: 67.4 | E168: 82 | F168: 45.3 | G168: 0 | H168: 0 | I168: 0 | J168: 0 | K168: 14 | L168: 56 | M168: 12 | N168: 48 | O168: 36 | P168: 61 | Q168: 32 | R168: 54.2 | S168: 1028 | T168: 71.3 | U168: 916 | V168: 63.5
B169: 2004 | C169: 104 | D169: 63 | G169: 3 | H169: 75 | K169: 22 | L169: 62.9 | O169: 40 | P169: 69 | S169: 1136 | T169: 70.7
B170: 2005 | C170: 112 | D170: 66.3 | G170: 1 | H170: 33.3 | K170: 23 | L170: 60.5 | O170: 44 | P170: 66.7 | S170: 1198 | T170: 74.2
B171: 2006
B172: 2007
B173: 2008
B179: Fall Cohort | C179: White
C180: 4th Fall | E180: 6th Fall
C181: Cohort Retained | E181: Cohort Retained
C182: N | D182: %1F | E182: N | F182: %1F
B183: 1992 | C183: 864 | D183: 71.6 | E183: 678 | F183: 56.2
B184: 1993 | C184: Latino | D184: 67.7 | E184: 659 | F184: 56.6
B185: 1994 | C185: 703 | D185: 62 | E185: 588 | F185: 51.9
B186: 1995 | C186: 787 | D186: 66.6 | E186: 685 | F186: 58
B187: 1996 | C187: 809 | D187: 66 | E187: 677 | F187: 55.2
B188: 1997 | C188: 19 | D188: 57.6 | E188: 12 | F188: 36.4
B189: 1998 | C189: 22 | D189: 53.7 | E189: 14 | F189: 34.1
B190: 1999 | C190: 12 | D190: 70.6 | E190: 8 | F190: 47.1
B191: 2000 | C191: 21 | D191: 67.7 | E191: 17 | F191: 54.8
B192: 2001 | C192: 35 | D192: 72.9 | E192: 29 | F192: 60.4
B193: 2002 | C193: 24 | D193: 57.1 | E193: 20 | F193: 47.6
B194: 2003 | C194: 36 | D194: 61 | E194: 32 | F194: 54.2
B195: 2004 | C195: 40 | D195: 69
B196: 2005 | C196: 44 | D196: 66.7
B197: 2006
B198: 2007
B199: 2008
B230: Race & Ethnicity - 6 Year Graduation Rates

Sheet Combo boxes (hidden)
A1: Jan | B1: 9
A2: Feb
A3: Mar
A4: Apr
A5: May
A6: Jun
A7: Jul
A8: Aug
A9: Sep
A10: Oct
A11: Nov
A12: Dec
A24: Fall Cohort | B24: 1st Fall | C24: Cohort after IPEDS Exclusion | D24: AVG SATC | E24: 2nd Fall | G24: 3rd Fall | I24: 4th Fall | K24: 5th Fall | O24: 6th Fall | S24: 7th Fall
E25: Cohort Retained | G25: Cohort Retained | I25: Cohort Retained | K25: Cohort Retained | O25: Cohort Retained | S25: Cohort Retained
E26: N | F26: %1F | G26: N | H26: %1F | I26: N | J26: %1F | K26: N | L26: %1F | M26: N | N26: %1F | O26: N | P26: %1F | Q26: N | R26: %1F | S26: N | T26: %1F | U26: N | V26: %1F
A27: 1992 | B27: 1372 | C27: 1372 | D27: 947 | E27: 1134 | F27: 82.7 | G27: 989 | H27: 72.1 | I27: 953 | J27: 69.5 | K27: 373 | L27: 27.2 | M27: 497 | N27: 36.2 | O27: 728 | P27: 53.1 | Q27: 89 | R27: 6.5 | S27: 781 | T27: 56.9 | U27: 30 | V27: 2.2
A28: 1993 | B28: 1380 | C28: 1380 | D28: 946 | E28: 1140 | F28: 82.6 | G28: 958 | H28: 69.4 | I28: 877 | J28: 63.6 | K28: 367 | L28: 26.6 | M28: 461 | N28: 33.4 | O28: 711 | P28: 51.5 | Q28: 101 | R28: 7.3 | S28: 771 | T28: 55.9 | U28: 42 | V28: 3
A29: 1994 | B29: 1364 | C29: 1364 | D29: 943 | E29: 1084 | F29: 79.5 | G29: 906 | H29: 66.4 | I29: 823 | J29: 60.3 | K29: 319 | L29: 23.4 | M29: 473 | N29: 34.7 | O29: 666 | P29: 48.8 | Q29: 109 | R29: 8 | S29: 741 | T29: 54.3 | U29: 30 | V29: 2.2
A30: 1995 | B30: 1384 | C30: 1384 | D30: 936 | E30: 1129 | F30: 81.6 | G30: 985 | H30: 71.2 | I30: 902 | J30: 65.2 | K30: 363 | L30: 26.2 | M30: 512 | N30: 37 | O30: 761 | P30: 55 | Q30: 89 | R30: 6.4 | S30: 816 | T30: 59 | U30: 33 | V30: 2.4
A31: 1996 | B31: 1454 | C31: 1454 | D31: 1026 | E31: 1170 | F31: 80.5 | G31: 1003 | H31: 69 | I31: 945 | J31: 65 | K31: 376 | L31: 25.9 | M31: 527 | N31: 36.2 | O31: 771 | P31: 53 | Q31: 103 | R31: 7.1 | S31: 833 | T31: 57.3 | U31: 35 | V31: 2.4
A32: 1997 | B32: 1577 | C32: 1576 | D32: 1030 | E32: 1298 | F32: 82.4 | G32: 1116 | H32: 70.8 | I32: 1055 | J32: 66.9 | K32: 409 | L32: 26 | M32: 605 | N32: 38.4 | O32: 861 | P32: 54.6 | Q32: 109 | R32: 6.9 | S32: 932 | T32: 59.1 | U32: 30 | V32: 1.9
A33: 1998 | B33: 1629 | C33: 1627 | D33: 1038 | E33: 1353 | F33: 83.2 | G33: 1173 | H33: 72.1 | I33: 1070 | J33: 65.8 | K33: 474 | L33: 29.1 | M33: 577 | N33: 35.5 | O33: 898 | P33: 55.2 | Q33: 108 | R33: 6.6 | S33: 964 | T33: 59.3 | U33: 34 | V33: 2.1
A34: 1999 | B34: 1715 | C34: 1710 | D34: 135 | E34: 1413 | F34: 82.6 | G34: 1219 | H34: 71.3 | I34: 1150 | J34: 67.3 | K34: 444 | L34: 26 | M34: 653 | N34: 38.2 | O34: 943 | P34: 55.1 | Q34: 91 | R34: 5.3 | S34: 1023 | T34: 59.8 | U34: 24 | V34: 1.4
A35: 2000 | B35: 1721 | C35: 1715 | D35: 132 | E35: 1412 | F35: 82.3 | G35: 1275 | H35: 74.3 | I35: 1166 | J35: 68 | K35: 536 | L35: 31.3 | M35: 569 | N35: 33.2 | O35: 961 | P35: 56 | Q35: 103 | R35: 6 | S35: 1037 | T35: 60.5 | U35: 35 | V35: 2
A36: 2001 | B36: 1631 | C36: 1625 | D36: 1046 | E36: 1384 | F36: 85.2 | G36: 1222 | H36: 75.2 | I36: 1149 | J36: 70.7 | K36: 571 | L36: 35.1 | M36: 520 | N36: 32 | O36: 996 | P36: 61.3 | Q36: 79 | R36: 4.9 | S36: 1050 | T36: 64.6 | U36: 29 | V36: 1.8
A37: 2002 | B37: 1768 | C37: 1766 | D37: 1045 | E37: 1461 | F37: 82.7 | G37: 1290 | H37: 73 | I37: 1236 | J37: 70 | K37: 636 | L37: 36 | M37: 536 | N37: 30.4 | O37: 1041 | P37: 58.9 | Q37: 97 | R37: 5.5 | S37: 1113 | T37: 63 | U37: 25 | V37: 1.4
A38: 2003 | B38: 1726 | C38: 1724 | D38: 1058 | E38: 1467 | F38: 85.1 | G38: 1299 | H38: 75.3 | I38: 1208 | J38: 70.1 | K38: 685 | L38: 39.7 | M38: 481 | N38: 27.9 | O38: 1048 | P38: 60.8 | Q38: 89 | R38: 5.2
A39: 2004 | B39: 1874 | C39: 1871 | D39: 1061 | E39: 1571 | F39: 84 | G39: 1362 | H39: 72.8 | I39: 1306 | J39: 69.8 | K39: 733 | L39: 39.2 | M39: 535 | N39: 28.6
A40: 2005 | B40: 1897 | C40: 1894 | D40: 1067 | E40: 1607 | F40: 84.8 | G40: 1442 | H40: 76.1 | I40: 1378 | J40: 72.8
A41: 2006 | B41: 1885 | C41: 1884 | D41: 1062 | E41: 1617 | F41: 85.8 | G41: 1468 | H41: 77.9
A42: 2007 | B42: 1957 | C42: 1955 | D42: 1059 | E42: 1650 | F42: 84.4
A43: 2008 | B43: 1993 | C43: 1993 | D43: 1059

Sheet Retention & Grad ScrapWork (hidden)

Sheet Macro Scrapwork (hidden)
A1: 1992 | D1: 947
A2: 946
A3: 943
A4: 936
A5: 1026
A6: 1030 | F6: 947
A7: 1038
A8: 135 | F8: 947
A9: 132
A10: 1046
A11: 1045
A12: 1058
A13: 1061
A14: 1067
A15: 1062
A16: 1059
A17: 1059

Sheet Common Data Set 0809
A1: West Chester University's Common Data Set 2008 - 2009
A4: General Information
D8: Public | E8: √ | H8: Coeducational college | I8: √
D9: Private (nonprofit) | H9: Men's college
D10: Proprietary | H10: Women's college
E12: Semester | F12: √ | I12: Certificate | J12: √
E13: Quarter | I13: Diploma
E14: Trimester | I14: Associate
E15: 4-1-4 | I15: Transfer Associate
E16: Continuous | I16: Terminal Associate
E17: Differs by program (describe): | I17: Bachelor's | J17: √
E18: Other (describe): | I18: Postbachelor's certificate | J18: √
I19: Master's | J19: √
I20: Post-master's certificate
I21: Doctoral
I22: First professional
A24: Enrollment Persistence
B26: Institutional Enrollment - Men and Women Provide numbers of students for each of the following categories as of the institution's official fall reporting date or as of October 15, 2008.
B27: Undergraduates | D27: FULL-TIME | F27: PART-TIME | H27: Totals
D28: Men | E28: Women | F28: Men | G28: Women
B30: Degree-seeking, First-time, First-year | D30: 762 | E30: 1231 | F30: 4 | G30: 5 | H30: =SUM(D30:G30) -> 2002
B31: Other first-year, degree-seeking | D31: 416 | E31: 485 | F31: 17 | G31: 25 | H31: 943
B32: All other degree-seeking | D32: 2840 | E32: 4556 | F32: 331 | G32: 455 | H32: 8182
B33: Total degree-seeking | D33: =SUM(D30:D32) -> 4018 | E33: =SUM(E30:E32) -> 6272 | F33: =SUM(F30:F32) -> 352 | G33: =SUM(G30:G32) -> 485 | H33: 11127
B34: All other undergraduates enrolled in credit courses | D34: 14 | E34: 38 | F34: 121 | G34: 182 | H34: 355
B35: Total undergraduates | D35: =SUM(B33:B34) -> 0 | E35: =SUM(D33:D34) -> 4032 | F35: =SUM(E33:E34) -> 6310 | G35: =SUM(F33:F34) -> 473 | H35: 10815
B36: First-Professional
B37: First-time, first-professional students
B38: All other first-professionals
B39: Total first-professional | D39: =SUM(D37,D38) -> 0 | E39: =SUM(E37,E38) -> 0 | F39: =SUM(F37,F38) -> 0 | G39: =SUM(G37,G38) -> 0
B40: Graduate
B41: Degree-seeking, first-time | D41: 57 | E41: 145 | F41: 62 | G41: 141 | H41: =SUM(D41:G41) -> 405
B42: All other degree-seeking | D42: 82 | E42: 242 | F42: 233 | G42: 666 | H42: =SUM(D42:G42) -> 1223
B43: All other graduates enrolled in credit courses | D43: 21 | E43: 68 | F43: 131 | G43: 289 | H43: =SUM(D43:G43) -> 509
B44: Total graduate | D44: =SUM(B41:B43) -> 0 | E44: =SUM(D41:D43) -> 160 | F44: =SUM(E41:E43) -> 455 | G44: =SUM(F41:F43) -> 426 | H44: =SUM(D44:G44) -> 1041
B45: Total all undergraduates | H45: 11482
B46: Total all graduate and professional students | H46: 2137
B47: GRAND TOTAL ALL STUDENTS | H47: 13619
B49: Enrollment by Racial/Ethnic Category. Provide numbers of undergraduate students for each of the following categories as of the institution's official fall reporting date or as of October 15, 2008. Include international students only in the category "Nonresident aliens." Complete the "Total Undergraduates" column only if you cannot provide data for the first two columns.
E50: Degree-Seeking First-Time First Year | F50: Degree-Seeking Undergraduates (include first-time first-year) | G50: Total Undergraduates (both degree- and non-degree-seeking)
B51: NRA | E51: 9 | F51: 26 | G51: 30
B52: Black | E52: 152 | F52: 979 | G52: 997
B53: American Indian | E53: 4 | F53: 31 | G53: 34
B54: Asian | E54: 51 | F54: 223 | G54: 230
B55: Hispanic | E55: 86 | F55: 334 | G55: 341
B56: White | E56: 1865 | F56: 9512 | G56: 9815
B57: Unknown | E57: 14 | F57: 19 | G57: 35
B58: TOTAL | E58: =SUM(E51:E57) -> 2181 | F58: =SUM(F51:F57) -> 11124 | G58: =SUM(G51:G57) -> 11482
E59: 2002 | F59: 11127
F62: Persistence
F63: Number of degrees awarded from July 1, 2007 to June 30, 2008
F64: Certificate/diploma
F65: Associate degrees
F66: Bachelor's degrees
F67: Postbachelor's certificates
F68: Master's degrees
F69: Post-Master's certificates
F70: Doctoral degrees
F71: First professional degrees
F72: First professional certificates
A74: Graduation Rates
E76: For Bachelor's or Equivalent Programs
D78: Fall 2002 Cohort
D79: Report for the cohort of full-time first-time bachelor's (or equivalent) degree-seeking undergraduate students who entered in fall 2002. Include in the cohort those who entered your institution during the summer term preceding fall 2002.
D80: Initial 2002 cohort of first-time, full-time bachelor's (or equivalent) degree-seeking undergraduate students; total all students: | I80: 1768
D81: Of the initial 2002 cohort, how many did not persist and did not graduate for the following reasons: death, permanent disability, service in the armed forces, foreign aid service of the federal government, or official church missions; total allowable exclusions: | I81: 2
D82: Final 2002 cohort, after adjusting for allowable exclusions: (subtract question B5 from question B4) | I82: =I80-I81 -> 1766
D83: Of the initial 2002 cohort, how many completed the program in four years or less (by August 31, 2006): | I83: 641
D84: Of the initial 2002 cohort, how many completed the program in more than four years but in five years or less (after August 31, 2006 and by August 31, 2007): | I84: 407
D85: Of the initial 2002 cohort, how many completed the program in more than five years but in six years or less (after August 31, 2007 and by August 31, 2008): | I85: 68
D86: Total graduating within six years (sum of questions B7, B8, and B9): | I86: =SUM(I83:I85) -> 1116
D87: Six-year graduation rate for 2002 cohort (question B10 divided by question B6): | I87: =I86/I82 -> 0.6319365798
D89: Fall 2001 Cohort
D90: Report for the cohort of full-time first-time bachelor's (or equivalent) degree-seeking undergraduate students who entered in fall 2001. Include in the cohort those who entered your institution during the summer term preceding fall 2001.
D91: Initial 2001 cohort of first-time, full-time bachelor's (or equivalent) degree-seeking undergraduate students; total all students: | I91: 1631
D92: Of the initial 2001 cohort, how many did not persist and did not graduate for the following reasons: death, permanent disability, service in the armed forces, foreign aid service of the federal government, or official church missions; total allowable exclusions: | I92: 6
D93: Final 2001 cohort, after adjusting for allowable exclusions: (subtract question B5 from question B4) | I93: =I91-I92 -> 1625
D94: Of the initial 2001 cohort, how many completed the program in four years or less (by August 31, 2005): | I94: 571
D95: Of the initial 2001 cohort, how many completed the program in more than four years but in five years or less (after August 31, 2005 and by August 31, 2006): | I95: 425
D96: Of the initial 2001 cohort, how many completed the program in more than five years but in six years or less (after August 31, 2006 and by August 31, 2007): | I96: 54
D97: Total graduating within six years (sum of questions B7, B8, and B9): | I97: =SUM(I94:I96) -> 1050
D98: Six-year graduation rate for 2001 cohort (question B10 divided by question B6): | I98: =I97/I93 -> 0.6461538462
E100: For Two-Year Institutions
D102: 2005 Cohort
D103: Initial 2005 cohort, total of first-time, full-time degree/certificate-seeking students:
D104: Of the initial 2005 cohort, how many did not persist and did not graduate for the following reasons: death, permanent disability, service in the armed forces, foreign aid service of the federal government, or official church missions; total allowable exclusions:
D105: Final 2005 cohort, after adjusting for allowable exclusions (Subtract question B13 from question B12): | I105: =I103-I104 -> 0
D106: Completers of programs of less than two years duration (total):
D107: Completers of programs of less than two years within 150 percent of normal time:
D108: Completers of programs of at least two but less than four years (total):
D109: Completers of programs of at least two but less than four-years within 150 percent of normal time:
D110: Total transfers-out (within three years) to other institutions:
D111: Total transfers to two-year institutions:
D112: Total transfers to four-year institutions:
D114: 2004 Cohort
D115: Initial 2004 cohort, total of first-time, full-time degree/certificate-seeking students:
D116: Of the initial 2004 cohort, how many did not persist and did not graduate for the following reasons: death, permanent disability, service in the armed forces, foreign aid service of the federal government, or official church missions; total allowable exclusions:
D117: Final 2004 cohort, after adjusting for allowable exclusions (Subtract question B13 from question B12): | I117: =I115-I116 -> 0
D118: Completers of programs of less than two years duration (total):
D119: Completers of programs of less than two years within 150 percent of normal time:
D120: Completers of programs of at least two but less than four years (total):
D121: Completers of programs of at least two but less than four-years within 150 percent of normal time:
D122: Total transfers-out (within three years) to other institutions:
D123: Total transfers to two-year institutions:
D124: Total transfers to four-year institutions:
A126: Retention Rates
D128: Report for the cohort of all full-time, first-time bachelor’s (or equivalent) degree-seeking undergraduate students who entered in fall 2007 (or the preceding summer term). The initial cohort may be adjusted for students who departed for the following reasons: death, permanent disability, service in the armed forces, foreign aid service of the federal government or official church missions. No other adjustments to the initial cohort should be made.
D129: For the cohort of all full-time bachelor’s (or equivalent) degree-seeking undergraduate students who entered your institution as freshmen in fall 2007 (or the preceding summer term), what percentage was enrolled at your institution as of the date your institution calculates its official enrollment in fall 2008? | I129: 0.844
A131: First-time, First-year (Freshman) Admission
D133: Applications
D134: First-time, first-year, (freshmen) students: Provide the number of degree-seeking, first-time, first-year students who applied, were admitted, and enrolled (full- or part-time) in fall 2008. Include early decision, early action, and students who began studies during summer in this cohort. Applicants should include only those students who fulfilled the requirements for consideration for admission (i.e., who completed actionable applications) and who have been notified of one of the following actions: admission, nonadmission, placement on waiting list, or application withdrawn (by applicant or institution). Admitted applicants should include wait-listed students who were subsequently offered admission.
D135: Total first-time, first-year (freshman) men who applied | I135: 5016
D136: Total first-time, first-year (freshman) women who applied | I136: 8337
D138: Total first-time, first-year (freshman) men who were admitted | I138: 2348
D139: Total first-time, first-year (freshman) women who were admitted | I139: 3969
D141: Total full-time, first-time, first-year (freshman) men who enrolled | I141: 762
D142: Total part-time, first-time, first-year (freshman) men who enrolled | I142: 1
D144: Total full-time, first-time, first-year (freshman) women who enrolled | I144: 1231
D145: Total part-time, first-time, first-year (freshman) women who enrolled | I145: 10
D147: Freshman wait-listed students (students who met admission requirements but whose final admission was contingent on space availability)
H148: Yes | I148: No
D149: Do you have a policy of placing students on a waiting list? | H149: √
D151: If yes, please answer the questions below for fall 2008 admissions:
D152: Number of qualified applicants offered a place on waiting list | I152: 850
D153: Number accepting a place on the waiting list | I153: 319
D154: Number of wait-listed students admitted | I154: 35
D155: Is your waiting list ranked?
D156: If yes, do you release that information to students?
D157: Do you release that information to school counselors?
E159: Admission Requirements
D161: High school completion requirement
D162: High school diploma is required and GED is accepted | I162: √
D163: High school diploma is required and GED is not accepted
D164: High school diploma or equivalent is not required
D166: Does your institution require or recommend a general college-preparatory program for degree-seeking students?
D167: Require | I167: √
D168: Recommend
D169: Neither require nor recommend
H171: Distribution of high school units required and/or recommended. Specify the distribution of academic high school course units required and/or recommended of all or most degree-seeking students using Carnegie units (one unit equals one year of study or its equivalent). If you use a different system for calculating units, please convert.
E172: 763 | J172: Units Required | K172: Units Recommended
E173: 1241 | H173: Total academic units | J173: 16 | K173: 25
H174: English | J174: 4 | K174: 4
H175: Mathematics | J175: 3 | K175: 4
H176: Science | J176: 2 | K176: 3
H177: Of these, units that must be lab lab | J177: 1 | K177: 2
H178: Foreign language | K178: 2
H179: Social studies | J179: 2 | K179: 2
H180: History | J180: 2 | K180: 2
H181: Academic electives | J181: 1 | K181: 2
H182: Computer Science | K182: 1
H183: Visual/Performing Arts | K183: 1
H184: Other (specify)
E187: Basis for Selection
B189: Do you have an open admission policy, under which virtually all secondary school graduates or students with GED equivalency diplomas are admitted without regard to academic record, test scores, or other qualifications? If so, check which applies: | H189: Relative importance of each of the following academic and nonacademic factors in first-time, first-year, degree-seeking (freshman) admission decisions.
B190: Open admission policy as described above for all students | J190: Very Important | K190: Important | L190: Considered | M190: Not Considered
B191: Open admission policy as described above for most students, but-- | H191: Academic
B192: selective admission for out-of-state students | H192: Rigor of secondary school record | J192: √
B193: selective admission to some programs | H193: Class rank | J193: √
B194: other (explain) | H194: Academic GPA | J194: √
H195: Standardized test scores | K195: √
H196: Application Essay | L196: √
B197: SAT and ACT Policies | H197: Recommendation(s) | M197: √
H198: Nonacademic
H199: Interview | M199: √
E200: Yes | F200: No | H200: Extracurricular activities | L200: √
B201: Does your institution make use of SAT, ACT, or SAT Subject Test scores in admission decisions for first-time, first-year, degree-seeking applicants? | E201: √ | H201: Talent/ability | L201: √
H202: Character/personal qualities | L202: √
H203: First generation | M203: √
B204: Please indicate which tests your institution uses for placement (e.g., state tests): | H204: Alumni/ae relation | M204: √
H205: Geographical residence | M205: √
B206: SAT | D206: √ | H206: State residency | M206: √
B207: ACT | H207: Religious affiliation/commitment | M207: √
B208: SAT Subject Tests | H208: Racial/ethnic status | L208: √
B209: AP | D209: √ | H209: Volunteer work | L209: √
B210: CLEP | D210: √ | H210: Work experience | L210: √
B211: Institutional Exam | D211: √ | H211: Level of applicant’s interest | M211: √
B212: State Exam (specify):
E214: Admissions
E216: Does your institution use applicants' test scores for academic advising?
E217: Yes | G217: No
G218: √
E220: Require | F220: Recommend | G220: Require for Some | H220: Consider if Submitted | I220: Not Used
D221: SAT or ACT | E221: √
D222: ACT only
D223: SAT only
D224: SAT and SAT Subject Tests or ACT
D225: SAT Subject Tests only
D227: If your institution will make use of the ACT in admission decisions for first-time, first-year, degree-seeking applicants for Fall 2010, please indicate which ONE of the following applies: (regardless of whether the writing score will be used in the admissions process):
D228: ACT with Writing Component required | I228: √
D229: ACT with Writing component recommended
D230: ACT with or without Writing component accepted
D232: Please indicate how your institution will use the SAT or ACT writing component; check all that apply:
H233: SAT essay | I233: ACT essay
D234: For admission
D235: For placement
D236: For advising
D237: In place of an application essay
D238: As a validity check on the application essay
D239: No college policy as of now
D240: Not using essay component | H240: √
... 357 more rows

Sheet Admissions (hidden)
A1: West Chester University's Admissions Data Fall 2007 - Fall 2008
A4: First-Time Freshmen
B6: Applications, Acceptances, and Enrollment by Ethnicity and Gender
C7: Fall 2007 | F7: Fall 2008 | I7: Total
C8: Male | D8: Female | E8: Total | F8: Male | G8: Female | H8: Total | I8: Change | J8: %Change
B9: African American
B10: Applied | C10: 517 | D10: 958 | E10: 1475 | F10: 570 | G10: 1136 | H10: 1706 | I10: 231 | J10: 0.157
B11: Accepted | C11: 149 | D11: 311 | E11: 460 | F11: 155 | G11: 332 | H11: 487 | I11: 27 | J11: 0.059
B12: Enrolled | C12: 58 | D12: 132 | E12: 190 | F12: 69 | G12: 132 | H12: 201 | I12: 11 | J12: 0.058
B13: Native American
B14: Applied | C14: 13 | D14: 22 | E14: 35 | F14: 13 | G14: 30 | H14: 43 | I14: 8 | J14: 0.229
B15: Accepted | C15: 2 | D15: 14 | E15: 16 | F15: 5 | G15: 19 | H15: 24 | I15: 8 | J15: 0.5
B16: Enrolled | C16: 1 | D16: 8 | E16: 9 | F16: 2 | G16: 3 | H16: 5 | I16: -4 | J16: -0.444
B17: Asian
B18: Applied | C18: 120 | D18: 137 | E18: 257 | F18: 111 | G18: 180 | H18: 291 | I18: 34 | J18: 0.132
B19: Accepted | C19: 62 | D19: 68 | E19: 130 | F19: 57 | G19: 97 | H19: 154 | I19: 24 | J19: 0.185
B20: Enrolled | C20: 18 | D20: 21 | E20: 39 | F20: 15 | G20: 27 | H20: 42 | I20: 3 | J20: 0.077
B21: Latino
B22: Applied | C22: 159 | D22: 234 | E22: 393 | F22: 173 | G22: 350 | H22: 523 | I22: 130 | J22: 0.331
B23: Accepted | C23: 81 | D23: 130 | E23: 211 | F23: 78 | G23: 193 | H23: 271 | I23: 60 | J23: 0.284
B24: Enrolled | C24: 22 | D24: 40 | E24: 62 | F24: 26 | G24: 64 | H24: 90 | I24: 28 | J24: 0.452
B25: Caucasian
B26: Applied | C26: 3716 | D26: 6095 | E26: 9811 | F26: 4027 | G26: 6483 | H26: 10510 | I26: 699 | J26: 0.071
B27: Accepted | C27: 1805 | D27: 3170 | E27: 4975 | F27: 2017 | G27: 3287 | H27: 5304 | I27: 329 | J27: 0.066
B28: Enrolled | C28: 641 | D28: 1015 | E28: 1656 | F28: 644 | G28: 994 | H28: 1638 | I28: -18 | J28: -0.011
B29: NRA/Unknown
B30: Applied | C30: 115 | D30: 142 | E30: 257 | F30: 122 | G30: 158 | H30: 280 | I30: 23 | J30: 0.089
B31: Accepted | C31: 16 | D31: 21 | E31: 37 | F31: 36 | G31: 41 | H31: 77 | I31: 40 | J31: 1.081
B32: Enrolled | C32: 1 | D32: 0 | E32: 1 | F32: 6 | G32: 11 | H32: 17 | I32: 16 | J32: 16
B33: Total
B34: Applied | C34: 4640 | D34: 7588 | E34: 12228 | F34: 5016 | G34: 8337 | H34: 13353 | I34: 1125 | J34: 0.092
B35: Accepted | C35: 2115 | D35: 3714 | E35: 5829 | F35: 2348 | G35: 3969 | H35: 6317 | I35: 488 | J35: 0.084
B36: Enrolled | C36: 741 | D36: 1216 | E36: 1957 | F36: 762 | G36: 1231 | H36: 1993 | I36: 36 | J36: 0.018
A39: Freshmen by Admit Type | Y39: 8337 | Z39: 13353
Y43: 3969 | Z43: 6317
A44: First Time Full-Time Freshmen by Admission Type | Y44: 1231 | Z44: 1993
A46: Admittance Type | D46: 2004 | E46: 2005 | F46: 2006 | G46: 2007 | H46: 2008 | Y46: Admittance Type | Z46: 2004 | AA46: blah | AB46: doing | AC46: haha | AD46: hehe
D47: N | E47: N | G47: N | H47: N | Y47: Regular | Z47: 1534 | AA47: 1568 | AB47: 1564 | AC47: 1597 | AD47: 1597
D48: =INDEX(PRICE, AB60) -> 226 | E48: =INDEX(AA47:AA50, AB60) -> 214 | F48: =INDEX(AB47:AB50, AB60) -> 194 | G48: =INDEX(AC47:AC50, AB60) -> 212 | H48: =INDEX(AD47:AD50, AB60) -> 246 | Y48: ADP ACT 101 | Z48: 39 | AA48: 42 | AB48: 48 | AC48: 61 | AD48: 50
Y49: ADP Non-ACT 101 | Z49: 80 | AA49: 77 | AB49: 79 | AC49: 87 | AD49: 100
Y50: Special Admission | Z50: 226 | AA50: 214 | AB50: 194 | AC50: 212 | AD50: 246
AB60: 4
A68: SAT
F70: SAT- Verbal Distribution
F71: Score | G71: 2004 | I71: 2005 | K71: 2006 | M71: 2007 | O71: 2008
G72: N | H72: % | I72: N | J72: % | K72: N | L72: % | M72: N | N72: % | O72: N | P72: %
F73: 700 - 800 | G73: 21 | H73: 1.1 | I73: 20 | J73: 1.1 | K73: 21 | L73: 1.1 | M73: 24 | N73: 1.2 | O73: 27 | P73: 1.4
F74: 600 - 699 | G74: 285 | H74: 15.2 | I74: 294 | J74: 15.5 | K74: 252 | L74: 13.4 | M74: 261 | N74: 13.3 | O74: 255 | P74: 12.8
F75: 500 - 599 | G75: 993 | H75: 52.8 | I75: 1058 | J75: 55.7 | K75: 1036 | L75: 55 | M75: 1073 | N75: 54.8 | O75: 1062 | P75: 53.3
F76: 400 - 499 | G76: 538 | H76: 28.6 | I76: 492 | J76: 25.9 | K76: 539 | L76: 28.6 | M76: 530 | N76: 27.1 | O76: 587 | P76: 29.5
F77: 300 - 399 | G77: 35 | H77: 2 | I77: 35 | J77: 2 | K77: 37 | L77: 2 | M77: 68 | N77: 3.5 | O77: 59 | P77: 3
F78: 200 - 299 | G78: 0 | H78: 0 | I78: 0 | J78: 0 | K78: 0 | L78: 0 | M78: 1 | N78: 0.1 | O78: 1 | P78: 0.1
F79: No Scores | G79: 7 | H79: 0 | I79: 2 | J79: 0 | K79: 0 | L79: 0 | M79: 0 | N79: 0 | O79: 2 | P79: 0.1
F80: Total | G80: 1879 | I80: 1901 | K80: 1885 | M80: 1957 | O80: 1993
